Workbook

Sheet checklist (hidden)
I1: paste special - need to update shortcut
J3: ok
A4: make sure each subsection is numbered to easily jump around the screen | J4: x | K4: When you're finished, Use CTRL+ Page Down to jump to the next worksheet
A5: make sure the mouse enables/disables properly based on sheets. | J5: x | K5: new beg, int, advanced section labels
A6: rename exercises? | B6: make sure all nav buttons work | J6: x | K6: figure out page headers
A7: remove gridlines | B7: check formatting | K7: a/b test the intro/outro button colors?
A10: spellcheck
I11: utm links
I12: http://www.automateexcel.com/?utm_source=shortcuttrainer&utm_medium=link&utm_term=shortcut&utm_content=shortcut&utm_campaign=mainpage
A13: reset computer id | I13: http://www.automateexcel.com/excel-practice-test?utm_source=shortcuttrainer&utm_medium=link&utm_term=shortcut&utm_content=shortcut&utm_campaign=tests
A14: reset test results | I14: http://www.automateexcel.com/advanced-excel-course?utm_source=shortcuttrainer&utm_medium=link&utm_term=shortcut&utm_content=shortcut&utm_campaign=course
D15: http://www.automateexcel.com/learnshortcuts | I15: http://www.automateexcel.com/learn-shortcuts?utm_source=shortcuttrainer&utm_medium=link&utm_term=shortcut&utm_content=shortcut&utm_campaign=keyrocket
D16: use this link still | I16: http://www.automateexcel.com/shortcuts/shortcut-pdfs?utm_source=shortcuttrainer&utm_medium=link&utm_term=shortcut&utm_content=shortcut&utm_campaign=shortcutpdf
A17: col az
A18: call to action at the bottom of each page…
D19: section on creating macro with custom shortcut?
D20: and maybe a sample of macros to actually use?
I23: need to figure out landing page issue...
A24: old diag test macros
E31: Sub Open_MainSite()
E32: ActiveWorkbook.FollowHyperlink Address:="http://www.automateexcel.com/?utm_source=shortcuttrainer&utm_medium=link&utm_term=shortcut&utm_content=shortcut&utm_campaign=mainpage", NewWindow:=True 'Open Website"
A33: (so I also need some disclaimer…) | E33: End Sub
E34: Sub Open_practicetests()
E35: ActiveWorkbook.FollowHyperlink Address:="http://www.automateexcel.com/excel-practice-test?utm_source=shortcuttrainer&utm_medium=link&utm_term=shortcut&utm_content=shortcut&utm_campaign=tests", NewWindow:=True 'Open Website" | K35: Add a counter on the top right, above "select entire column"
E36: End Sub
E37: Sub open_course_landingpage()
E38: ActiveWorkbook.FollowHyperlink Address:="http://www.automateexcel.com/advanced-excel-course?utm_source=shortcuttrainer&utm_medium=link&utm_term=shortcut&utm_content=shortcut&utm_campaign=course", NewWindow:=True 'Open Website"
E39: End Sub
E40: Sub open_keyrocket()
E41: ActiveWorkbook.FollowHyperlink Address:="http://www.automateexcel.com/learn-shortcuts?utm_source=shortcuttrainer&utm_medium=link&utm_term=shortcut&utm_content=shortcut&utm_campaign=keyrocket", NewWindow:=True 'Open Website"
E42: End Sub
E43: Sub Open_shortcutpdf()
E44: ActiveWorkbook.FollowHyperlink Address:="http://www.automateexcel.com/shortcuts/shortcut-pdfs?utm_source=shortcuttrainer&utm_medium=link&utm_term=shortcut&utm_content=shortcut&utm_campaign=shortcutpdf", NewWindow:=True 'Open Website"
E45: End Sub

Sheet redirectlist (hidden)
D1: get this set up so it does the utm tracking… then I can set up macros that link to those pages…
A2: home-header-about | B2: http://www.automateexcel.com?utm_source=shortcuttrainer&utm_medium=header&utm_term=About&utm_campaign=shortcuttrainer | C2: home | D2: http://www.automateexcel.com | G2: home | I2: header | K2: http://www.automateexcel.com | M2: about | N2: About | P2: =A2&","&B2 -> home-header-about,http://www.automateexcel.com?utm_source=shortcuttrainer&utm_medium=header&utm_term=About&utm_campaign=shortcuttrainer
A3: home-header-start-here | B3: http://www.automateexcel.com?utm_source=shortcuttrainer&utm_medium=header&utm_term=start-here&utm_campaign=shortcuttrainer | C3: fulltutorial | D3: http://www.automateexcel.com/advanced-excel-training-course | F3: 1 page | G3: affiliate | K3: http://www.automateexcel.com/affiliate | M3: start here | N3: <<Start Here>> | P3: =A3&","&B3 -> home-header-start-here,http://www.automateexcel.com?utm_source=shortcuttrainer&utm_medium=header&utm_term=start-here&utm_campaign=shortcuttrainer
A4: home-header-using-the-mouse | B4: http://www.automateexcel.com?utm_source=shortcuttrainer&utm_medium=header&utm_term=Using-the-Mouse&utm_campaign=shortcuttrainer | C4: keyrocket_download | D4: http://www.automateexcel.com/thank-you-for-downloading-keyrocket | G4: fulltutorial | I4: header | J4: individual pages | K4: http://www.automateexcel.com/advanced-excel-training-course | M4: using the mouse | N4: Using the Mouse | P4: home-header-using-the-mouse,http://www.automateexcel.com?utm_source=shortcuttrainer&utm_medium=header&utm_term=Using-the-Mouse&utm_campaign=shortcuttrainer
A5: home-header-intro-basic-shortcuts | B5: http://www.automateexcel.com?utm_source=shortcuttrainer&utm_medium=header&utm_term=Intro-Basic-Shortcuts&utm_campaign=shortcuttrainer | C5: keyrocket_info | D5: http://www.automateexcel.com/learn-excel-shortcuts/keyrocket-vid1 | G5: keyrocketinfo | J5: individual pages | K5: http://www.automateexcel.com/learn-excel-shortcuts/keyrocket-vid1 | M5: intro & basic shortcuts | N5: Intro & Basic Shortcuts | P5: home-header-intro-basic-shortcuts,http://www.automateexcel.com?utm_source=shortcuttrainer&utm_medium=header&utm_term=Intro-Basic-Shortcuts&utm_campaign=shortcuttrainer
A6: home-header-selecting-navigating | B6: http://www.automateexcel.com?utm_source=shortcuttrainer&utm_medium=header&utm_term=Selecting-Navigating&utm_campaign=shortcuttrainer | C6: shortcut_diag_test | D6: http://www.automateexcel.com/excel-practice-test/ | F6: 1 page | G6: keyrocketdownload | K6: http://www.automateexcel.com/thank-you-for-downloading-keyrocket | M6: selecting & navigating | N6: Selecting & Navigating | P6: home-header-selecting-navigating,http://www.automateexcel.com?utm_source=shortcuttrainer&utm_medium=header&utm_term=Selecting-Navigating&utm_campaign=shortcuttrainer
A7: home-header-copying-pasting | B7: http://www.automateexcel.com?utm_source=shortcuttrainer&utm_medium=header&utm_term=Copying-Pasting&utm_campaign=shortcuttrainer | C7: shortcut_basics | D7: http://www.automateexcel.com/excel-practice-test/ | G7: shortcuttest | J7: individual pages | K7: http://www.automateexcel.com/excel-practice-test/ | M7: copying & pasting | N7: Copying & Pasting | P7: home-header-copying-pasting,http://www.automateexcel.com?utm_source=shortcuttrainer&utm_medium=header&utm_term=Copying-Pasting&utm_campaign=shortcuttrainer
A8: home-header-nav1 | B8: http://www.automateexcel.com?utm_source=shortcuttrainer&utm_medium=header&utm_term=nav1&utm_campaign=shortcuttrainer | C8: shortcut_selectnav | D8: http://www.automateexcel.com/excel-practice-test/ | G8: learnshortcuts | I8: header | K8: http://www.automateexcel.com/learn-excel-shortcuts/ | M8: nav1 | N8: Nav 1. | P8: home-header-nav1,http://www.automateexcel.com?utm_source=shortcuttrainer&utm_medium=header&utm_term=nav1&utm_campaign=shortcuttrainer
A9: home-header-nav2 | B9: http://www.automateexcel.com?utm_source=shortcuttrainer&utm_medium=header&utm_term=nav2&utm_campaign=shortcuttrainer | C9: shortcut_copypaste | D9: http://www.automateexcel.com/excel-practice-test/ | M9: nav2 | N9: Nav 2. | P9: home-header-nav2,http://www.automateexcel.com?utm_source=shortcuttrainer&utm_medium=header&utm_term=nav2&utm_campaign=shortcuttrainer
A10: home-header-formatting-i | B10: http://www.automateexcel.com?utm_source=shortcuttrainer&utm_medium=header&utm_term=Formatting-I&utm_campaign=shortcuttrainer | C10: shortcut_formatting1 | D10: http://www.automateexcel.com/excel-practice-test/ | M10: formatting i | N10: Formatting I | P10: home-header-formatting-i,http://www.automateexcel.com?utm_source=shortcuttrainer&utm_medium=header&utm_term=Formatting-I&utm_campaign=shortcuttrainer
A11: home-header-altshortcuts | B11: http://www.automateexcel.com?utm_source=shortcuttrainer&utm_medium=header&utm_term=altshortcuts&utm_campaign=shortcuttrainer | C11: shortcut_menusformats | D11: http://www.automateexcel.com/excel-practice-test/ | G11: start page is unique | M11: altshortcuts | N11: Alt Shortcuts, Menus, Formats | P11: home-header-altshortcuts,http://www.automateexcel.com?utm_source=shortcuttrainer&utm_medium=header&utm_term=altshortcuts&utm_campaign=shortcuttrainer
A12: home-header-rowscolssheets | B12: http://www.automateexcel.com?utm_source=shortcuttrainer&utm_medium=header&utm_term=rowscolssheets&utm_campaign=shortcuttrainer | C12: shortcut_rowscolssheets | D12: http://www.automateexcel.com/excel-practice-test/ | G12: header | M12: rowscolssheets | N12: Rows, Columns, Sheets | P12: home-header-rowscolssheets,http://www.automateexcel.com?utm_source=shortcuttrainer&utm_medium=header&utm_term=rowscolssheets&utm_campaign=shortcuttrainer
A13: home-header-exs-rowscolssheets | B13: http://www.automateexcel.com?utm_source=shortcuttrainer&utm_medium=header&utm_term=exs-rowscolssheets&utm_campaign=shortcuttrainer | C13: shortcut_formulas | D13: http://www.automateexcel.com/excel-practice-test/ | M13: exs-rowscolssheets | N13: Exs. Rows,Cols,Sheets | P13: home-header-exs-rowscolssheets,http://www.automateexcel.com?utm_source=shortcuttrainer&utm_medium=header&utm_term=exs-rowscolssheets&utm_campaign=shortcuttrainer
A14: home-header-formatting | B14: http://www.automateexcel.com?utm_source=shortcuttrainer&utm_medium=header&utm_term=Formatting&utm_campaign=shortcuttrainer | C14: shortcut_workbooknav | D14: http://www.automateexcel.com/excel-practice-test/ | M14: formatting | N14: Formatting | P14: home-header-formatting,http://www.automateexcel.com?utm_source=shortcuttrainer&utm_medium=header&utm_term=Formatting&utm_campaign=shortcuttrainer
A15: home-header-exercise-support | B15: http://www.automateexcel.com?utm_source=shortcuttrainer&utm_medium=header&utm_term=Exercise-support&utm_campaign=shortcuttrainer | C15: shortcut_datatools | D15: http://www.automateexcel.com/excel-practice-test/ | G15: pay with a tweet for the pdf shortcut download? | M15: exercise support | N15: Exercise support | P15: home-header-exercise-support,http://www.automateexcel.com?utm_source=shortcuttrainer&utm_medium=header&utm_term=Exercise-support&utm_campaign=shortcuttrainer
A16: home-header-formula-shortcuts | B16: http://www.automateexcel.com?utm_source=shortcuttrainer&utm_medium=header&utm_term=Formula-Shortcuts&utm_campaign=shortcuttrainer | C16: shortcut_landingpage | D16: http://www.automateexcel.com/learn-excel-shortcuts/ | M16: formula shortcuts | N16: Formula Shortcuts | P16: home-header-formula-shortcuts,http://www.automateexcel.com?utm_source=shortcuttrainer&utm_medium=header&utm_term=Formula-Shortcuts&utm_campaign=shortcuttrainer
A17: home-header-workbook-nav | B17: http://www.automateexcel.com?utm_source=shortcuttrainer&utm_medium=header&utm_term=Workbook-Nav&utm_campaign=shortcuttrainer | C17: sbc_image | D17: http://www.automateexcel.com/advanced-excel-training-course | M17: workbook nav | N17: Workbook Nav | P17: home-header-workbook-nav,http://www.automateexcel.com?utm_source=shortcuttrainer&utm_medium=header&utm_term=Workbook-Nav&utm_campaign=shortcuttrainer
A18: home-header-data-tools | B18: http://www.automateexcel.com?utm_source=shortcuttrainer&utm_medium=header&utm_term=Data-Tools&utm_campaign=shortcuttrainer | M18: data tools | N18: Data Tools | P18: home-header-data-tools,http://www.automateexcel.com?utm_source=shortcuttrainer&utm_medium=header&utm_term=Data-Tools&utm_campaign=shortcuttrainer
A19: home-header-keyboard-layout-troubleshoot | B19: http://www.automateexcel.com?utm_source=shortcuttrainer&utm_medium=header&utm_term=Keyboard-Layout-Troubleshoot&utm_campaign=shortcuttrainer | C19: shortcuts | D19: http://www.automateexcel.com/learn-excel-shortcuts/ | M19: keyboard layout & troubleshoot | N19: Keyboard Layout & Troubleshoot | P19: home-header-keyboard-layout-troubleshoot,http://www.automateexcel.com?utm_source=shortcuttrainer&utm_medium=header&utm_term=Keyboard-Layout-Troubleshoot&utm_campaign=shortcuttrainer
A20: home-header-productivity-software | B20: http://www.automateexcel.com?utm_source=shortcuttrainer&utm_medium=header&utm_term=Productivity-Software&utm_campaign=shortcuttrainer | C20: automateexcel | D20: http://www.automateexcel.com/ | M20: productivity software | N20: Productivity Software | P20: home-header-productivity-software,http://www.automateexcel.com?utm_source=shortcuttrainer&utm_medium=header&utm_term=Productivity-Software&utm_campaign=shortcuttrainer
A21: home-header-optimize-your-workspace | B21: http://www.automateexcel.com?utm_source=shortcuttrainer&utm_medium=header&utm_term=Optimize-Your-Workspace&utm_campaign=shortcuttrainer | M21: optimize your workspace | N21: Optimize Your Workspace | P21: home-header-optimize-your-workspace,http://www.automateexcel.com?utm_source=shortcuttrainer&utm_medium=header&utm_term=Optimize-Your-Workspace&utm_campaign=shortcuttrainer
A22: home-header-results | B22: http://www.automateexcel.com?utm_source=shortcuttrainer&utm_medium=header&utm_term=Results&utm_campaign=shortcuttrainer | C22: codevba | D22: http://codevba.com/automateexcel.htm | M22: results | N22: Results | P22: home-header-results,http://www.automateexcel.com?utm_source=shortcuttrainer&utm_medium=header&utm_term=Results&utm_campaign=shortcuttrainer
A23: home-header-freq-used-shortcuts | B23: http://www.automateexcel.com?utm_source=shortcuttrainer&utm_medium=header&utm_term=Freq-Used-Shortcuts&utm_campaign=shortcuttrainer | M23: freq used shortcuts | N23: Freq Used Shortcuts | P23: home-header-freq-used-shortcuts,http://www.automateexcel.com?utm_source=shortcuttrainer&utm_medium=header&utm_term=Freq-Used-Shortcuts&utm_campaign=shortcuttrainer
A24: home-header-all-shortcuts | B24: http://www.automateexcel.com?utm_source=shortcuttrainer&utm_medium=header&utm_term=All-Shortcuts&utm_campaign=shortcuttrainer | C24: #How to work affiliate program with this? I guess I can create | M24: all shortcuts | N24: All Shortcuts | P24: home-header-all-shortcuts,http://www.automateexcel.com?utm_source=shortcuttrainer&utm_medium=header&utm_term=All-Shortcuts&utm_campaign=shortcuttrainer
A25: fulltutorial-header-about | B25: http://www.automateexcel.com/advanced-excel-training-course?utm_source=shortcuttrainer&utm_medium=header&utm_term=About&utm_campaign=shortcuttrainer | P25: fulltutorial-header-about,http://www.automateexcel.com/advanced-excel-training-course?utm_source=shortcuttrainer&utm_medium=header&utm_term=About&utm_campaign=shortcuttrainer
A26: fulltutorial-header-start-here | B26: http://www.automateexcel.com/advanced-excel-training-course?utm_source=shortcuttrainer&utm_medium=header&utm_term=start-here&utm_campaign=shortcuttrainer | P26: fulltutorial-header-start-here,http://www.automateexcel.com/advanced-excel-training-course?utm_source=shortcuttrainer&utm_medium=header&utm_term=start-here&utm_campaign=shortcuttrainer
A27: fulltutorial-header-using-the-mouse | B27: http://www.automateexcel.com/advanced-excel-training-course?utm_source=shortcuttrainer&utm_medium=header&utm_term=Using-the-Mouse&utm_campaign=shortcuttrainer | C27: #keyrocket | D27: http://sites.fastspring.com/veodin/product/keyrocketpremium_onetime?source=spreadsheetbootcamp | P27: fulltutorial-header-using-the-mouse,http://www.automateexcel.com/advanced-excel-training-course?utm_source=shortcuttrainer&utm_medium=header&utm_term=Using-the-Mouse&utm_campaign=shortcuttrainer
A28: fulltutorial-header-intro-basic-shortcuts | B28: http://www.automateexcel.com/advanced-excel-training-course?utm_source=shortcuttrainer&utm_medium=header&utm_term=Intro-Basic-Shortcuts&utm_campaign=shortcuttrainer | P28: fulltutorial-header-intro-basic-shortcuts,http://www.automateexcel.com/advanced-excel-training-course?utm_source=shortcuttrainer&utm_medium=header&utm_term=Intro-Basic-Shortcuts&utm_campaign=shortcuttrainer
A29: fulltutorial-header-selecting-navigating | B29: http://www.automateexcel.com/advanced-excel-training-course?utm_source=shortcuttrainer&utm_medium=header&utm_term=Selecting-Navigating&utm_campaign=shortcuttrainer | C29: #https://yoast.com/cloak-affiliate-links/ | P29: fulltutorial-header-selecting-navigating,http://www.automateexcel.com/advanced-excel-training-course?utm_source=shortcuttrainer&utm_medium=header&utm_term=Selecting-Navigating&utm_campaign=shortcuttrainer
A30: fulltutorial-header-copying-pasting | B30: http://www.automateexcel.com/advanced-excel-training-course?utm_source=shortcuttrainer&utm_medium=header&utm_term=Copying-Pasting&utm_campaign=shortcuttrainer | P30: fulltutorial-header-copying-pasting,http://www.automateexcel.com/advanced-excel-training-course?utm_source=shortcuttrainer&utm_medium=header&utm_term=Copying-Pasting&utm_campaign=shortcuttrainer
A31: fulltutorial-header-nav1 | B31: http://www.automateexcel.com/advanced-excel-training-course?utm_source=shortcuttrainer&utm_medium=header&utm_term=nav1&utm_campaign=shortcuttrainer | P31: fulltutorial-header-nav1,http://www.automateexcel.com/advanced-excel-training-course?utm_source=shortcuttrainer&utm_medium=header&utm_term=nav1&utm_campaign=shortcuttrainer
A32: fulltutorial-header-nav2 | B32: http://www.automateexcel.com/advanced-excel-training-course?utm_source=shortcuttrainer&utm_medium=header&utm_term=nav2&utm_campaign=shortcuttrainer | P32: fulltutorial-header-nav2,http://www.automateexcel.com/advanced-excel-training-course?utm_source=shortcuttrainer&utm_medium=header&utm_term=nav2&utm_campaign=shortcuttrainer
A33: fulltutorial-header-formatting-i | B33: http://www.automateexcel.com/advanced-excel-training-course?utm_source=shortcuttrainer&utm_medium=header&utm_term=Formatting-I&utm_campaign=shortcuttrainer | P33: fulltutorial-header-formatting-i,http://www.automateexcel.com/advanced-excel-training-course?utm_source=shortcuttrainer&utm_medium=header&utm_term=Formatting-I&utm_campaign=shortcuttrainer
A34: fulltutorial-header-altshortcuts | B34: http://www.automateexcel.com/advanced-excel-training-course?utm_source=shortcuttrainer&utm_medium=header&utm_term=altshortcuts&utm_campaign=shortcuttrainer | P34: fulltutorial-header-altshortcuts,http://www.automateexcel.com/advanced-excel-training-course?utm_source=shortcuttrainer&utm_medium=header&utm_term=altshortcuts&utm_campaign=shortcuttrainer
A35: fulltutorial-header-rowscolssheets | B35: http://www.automateexcel.com/advanced-excel-training-course?utm_source=shortcuttrainer&utm_medium=header&utm_term=rowscolssheets&utm_campaign=shortcuttrainer | P35: fulltutorial-header-rowscolssheets,http://www.automateexcel.com/advanced-excel-training-course?utm_source=shortcuttrainer&utm_medium=header&utm_term=rowscolssheets&utm_campaign=shortcuttrainer
A36: fulltutorial-header-exs-rowscolssheets | B36: http://www.automateexcel.com/advanced-excel-training-course?utm_source=shortcuttrainer&utm_medium=header&utm_term=exs-rowscolssheets&utm_campaign=shortcuttrainer | P36: fulltutorial-header-exs-rowscolssheets,http://www.automateexcel.com/advanced-excel-training-course?utm_source=shortcuttrainer&utm_medium=header&utm_term=exs-rowscolssheets&utm_campaign=shortcuttrainer
A37: fulltutorial-header-formatting | B37: http://www.automateexcel.com/advanced-excel-training-course?utm_source=shortcuttrainer&utm_medium=header&utm_term=Formatting&utm_campaign=shortcuttrainer | P37: fulltutorial-header-formatting,http://www.automateexcel.com/advanced-excel-training-course?utm_source=shortcuttrainer&utm_medium=header&utm_term=Formatting&utm_campaign=shortcuttrainer
A38: fulltutorial-header-exercise-support | B38: http://www.automateexcel.com/advanced-excel-training-course?utm_source=shortcuttrainer&utm_medium=header&utm_term=Exercise-support&utm_campaign=shortcuttrainer | P38: fulltutorial-header-exercise-support,http://www.automateexcel.com/advanced-excel-training-course?utm_source=shortcuttrainer&utm_medium=header&utm_term=Exercise-support&utm_campaign=shortcuttrainer
A39: fulltutorial-header-formula-shortcuts | B39: http://www.automateexcel.com/advanced-excel-training-course?utm_source=shortcuttrainer&utm_medium=header&utm_term=Formula-Shortcuts&utm_campaign=shortcuttrainer | P39: fulltutorial-header-formula-shortcuts,http://www.automateexcel.com/advanced-excel-training-course?utm_source=shortcuttrainer&utm_medium=header&utm_term=Formula-Shortcuts&utm_campaign=shortcuttrainer
A40: fulltutorial-header-workbook-nav | B40: http://www.automateexcel.com/advanced-excel-training-course?utm_source=shortcuttrainer&utm_medium=header&utm_term=Workbook-Nav&utm_campaign=shortcuttrainer | P40: fulltutorial-header-workbook-nav,http://www.automateexcel.com/advanced-excel-training-course?utm_source=shortcuttrainer&utm_medium=header&utm_term=Workbook-Nav&utm_campaign=shortcuttrainer
A41: fulltutorial-header-data-tools | B41: http://www.automateexcel.com/advanced-excel-training-course?utm_source=shortcuttrainer&utm_medium=header&utm_term=Data-Tools&utm_campaign=shortcuttrainer | P41: fulltutorial-header-data-tools,http://www.automateexcel.com/advanced-excel-training-course?utm_source=shortcuttrainer&utm_medium=header&utm_term=Data-Tools&utm_campaign=shortcuttrainer
A42: fulltutorial-header-keyboard-layout-troubleshoot | B42: http://www.automateexcel.com/advanced-excel-training-course?utm_source=shortcuttrainer&utm_medium=header&utm_term=Keyboard-Layout-Troubleshoot&utm_campaign=shortcuttrainer | P42: fulltutorial-header-keyboard-layout-troubleshoot,http://www.automateexcel.com/advanced-excel-training-course?utm_source=shortcuttrainer&utm_medium=header&utm_term=Keyboard-Layout-Troubleshoot&utm_campaign=shortcuttrainer
A43: fulltutorial-header-productivity-software | B43: http://www.automateexcel.com/advanced-excel-training-course?utm_source=shortcuttrainer&utm_medium=header&utm_term=Productivity-Software&utm_campaign=shortcuttrainer | P43: fulltutorial-header-productivity-software,http://www.automateexcel.com/advanced-excel-training-course?utm_source=shortcuttrainer&utm_medium=header&utm_term=Productivity-Software&utm_campaign=shortcuttrainer
A44: fulltutorial-header-optimize-your-workspace | B44: http://www.automateexcel.com/advanced-excel-training-course?utm_source=shortcuttrainer&utm_medium=header&utm_term=Optimize-Your-Workspace&utm_campaign=shortcuttrainer | P44: fulltutorial-header-optimize-your-workspace,http://www.automateexcel.com/advanced-excel-training-course?utm_source=shortcuttrainer&utm_medium=header&utm_term=Optimize-Your-Workspace&utm_campaign=shortcuttrainer
A45: fulltutorial-header-results | B45: http://www.automateexcel.com/advanced-excel-training-course?utm_source=shortcuttrainer&utm_medium=header&utm_term=Results&utm_campaign=shortcuttrainer | P45: fulltutorial-header-results,http://www.automateexcel.com/advanced-excel-training-course?utm_source=shortcuttrainer&utm_medium=header&utm_term=Results&utm_campaign=shortcuttrainer
A46: fulltutorial-header-freq-used-shortcuts | B46: http://www.automateexcel.com/advanced-excel-training-course?utm_source=shortcuttrainer&utm_medium=header&utm_term=Freq-Used-Shortcuts&utm_campaign=shortcuttrainer | P46: fulltutorial-header-freq-used-shortcuts,http://www.automateexcel.com/advanced-excel-training-course?utm_source=shortcuttrainer&utm_medium=header&utm_term=Freq-Used-Shortcuts&utm_campaign=shortcuttrainer
A47: fulltutorial-header-all-shortcuts | B47: http://www.automateexcel.com/advanced-excel-training-course?utm_source=shortcuttrainer&utm_medium=header&utm_term=All-Shortcuts&utm_campaign=shortcuttrainer | P47: fulltutorial-header-all-shortcuts,http://www.automateexcel.com/advanced-excel-training-course?utm_source=shortcuttrainer&utm_medium=header&utm_term=All-Shortcuts&utm_campaign=shortcuttrainer
A48: keyrocketinfo-incontent-about | B48: http://www.automateexcel.com/learn-excel-shortcuts/keyrocket-vid1?utm_source=shortcuttrainer&utm_medium=incontent&utm_term=About&utm_campaign=shortcuttrainer | P48: keyrocketinfo-incontent-about,http://www.automateexcel.com/learn-excel-shortcuts/keyrocket-vid1?utm_source=shortcuttrainer&utm_medium=incontent&utm_term=About&utm_campaign=shortcuttrainer
A49: keyrocketinfo-incontent-start-here | B49: http://www.automateexcel.com/learn-excel-shortcuts/keyrocket-vid1?utm_source=shortcuttrainer&utm_medium=incontent&utm_term=start-here&utm_campaign=shortcuttrainer | P49: keyrocketinfo-incontent-start-here,http://www.automateexcel.com/learn-excel-shortcuts/keyrocket-vid1?utm_source=shortcuttrainer&utm_medium=incontent&utm_term=start-here&utm_campaign=shortcuttrainer
A50: keyrocketinfo-incontent-using-the-mouse | B50: http://www.automateexcel.com/learn-excel-shortcuts/keyrocket-vid1?utm_source=shortcuttrainer&utm_medium=incontent&utm_term=Using-the-Mouse&utm_campaign=shortcuttrainer | P50: keyrocketinfo-incontent-using-the-mouse,http://www.automateexcel.com/learn-excel-shortcuts/keyrocket-vid1?utm_source=shortcuttrainer&utm_medium=incontent&utm_term=Using-the-Mouse&utm_campaign=shortcuttrainer
A51: keyrocketinfo-incontent-intro-basic-shortcuts | B51: http://www.automateexcel.com/learn-excel-shortcuts/keyrocket-vid1?utm_source=shortcuttrainer&utm_medium=incontent&utm_term=Intro-Basic-Shortcuts&utm_campaign=shortcuttrainer | P51: keyrocketinfo-incontent-intro-basic-shortcuts,http://www.automateexcel.com/learn-excel-shortcuts/keyrocket-vid1?utm_source=shortcuttrainer&utm_medium=incontent&utm_term=Intro-Basic-Shortcuts&utm_campaign=shortcuttrainer
A52: keyrocketinfo-incontent-selecting-navigating | B52: http://www.automateexcel.com/learn-excel-shortcuts/keyrocket-vid1?utm_source=shortcuttrainer&utm_medium=incontent&utm_term=Selecting-Navigating&utm_campaign=shortcuttrainer | P52: keyrocketinfo-incontent-selecting-navigating,http://www.automateexcel.com/learn-excel-shortcuts/keyrocket-vid1?utm_source=shortcuttrainer&utm_medium=incontent&utm_term=Selecting-Navigating&utm_campaign=shortcuttrainer
A53: keyrocketinfo-incontent-copying-pasting | B53: http://www.automateexcel.com/learn-excel-shortcuts/keyrocket-vid1?utm_source=shortcuttrainer&utm_medium=incontent&utm_term=Copying-Pasting&utm_campaign=shortcuttrainer | P53: keyrocketinfo-incontent-copying-pasting,http://www.automateexcel.com/learn-excel-shortcuts/keyrocket-vid1?utm_source=shortcuttrainer&utm_medium=incontent&utm_term=Copying-Pasting&utm_campaign=shortcuttrainer
A54: keyrocketinfo-incontent-nav1 | B54: http://www.automateexcel.com/learn-excel-shortcuts/keyrocket-vid1?utm_source=shortcuttrainer&utm_medium=incontent&utm_term=nav1&utm_campaign=shortcuttrainer | P54: keyrocketinfo-incontent-nav1,http://www.automateexcel.com/learn-excel-shortcuts/keyrocket-vid1?utm_source=shortcuttrainer&utm_medium=incontent&utm_term=nav1&utm_campaign=shortcuttrainer
A55: keyrocketinfo-incontent-nav2 | B55: http://www.automateexcel.com/learn-excel-shortcuts/keyrocket-vid1?utm_source=shortcuttrainer&utm_medium=incontent&utm_term=nav2&utm_campaign=shortcuttrainer | P55: keyrocketinfo-incontent-nav2,http://www.automateexcel.com/learn-excel-shortcuts/keyrocket-vid1?utm_source=shortcuttrainer&utm_medium=incontent&utm_term=nav2&utm_campaign=shortcuttrainer
A56: keyrocketinfo-incontent-formatting-i | B56: http://www.automateexcel.com/learn-excel-shortcuts/keyrocket-vid1?utm_source=shortcuttrainer&utm_medium=incontent&utm_term=Formatting-I&utm_campaign=shortcuttrainer | P56: keyrocketinfo-incontent-formatting-i,http://www.automateexcel.com/learn-excel-shortcuts/keyrocket-vid1?utm_source=shortcuttrainer&utm_medium=incontent&utm_term=Formatting-I&utm_campaign=shortcuttrainer
A57: keyrocketinfo-incontent-altshortcuts | B57: http://www.automateexcel.com/learn-excel-shortcuts/keyrocket-vid1?utm_source=shortcuttrainer&utm_medium=incontent&utm_term=altshortcuts&utm_campaign=shortcuttrainer | P57: keyrocketinfo-incontent-altshortcuts,http://www.automateexcel.com/learn-excel-shortcuts/keyrocket-vid1?utm_source=shortcuttrainer&utm_medium=incontent&utm_term=altshortcuts&utm_campaign=shortcuttrainer
A58: keyrocketinfo-incontent-rowscolssheets | B58: http://www.automateexcel.com/learn-excel-shortcuts/keyrocket-vid1?utm_source=shortcuttrainer&utm_medium=incontent&utm_term=rowscolssheets&utm_campaign=shortcuttrainer | P58: keyrocketinfo-incontent-rowscolssheets,http://www.automateexcel.com/learn-excel-shortcuts/keyrocket-vid1?utm_source=shortcuttrainer&utm_medium=incontent&utm_term=rowscolssheets&utm_campaign=shortcuttrainer
A59: keyrocketinfo-incontent-exs-rowscolssheets | B59: http://www.automateexcel.com/learn-excel-shortcuts/keyrocket-vid1?utm_source=shortcuttrainer&utm_medium=incontent&utm_term=exs-rowscolssheets&utm_campaign=shortcuttrainer | P59: keyrocketinfo-incontent-exs-rowscolssheets,http://www.automateexcel.com/learn-excel-shortcuts/keyrocket-vid1?utm_source=shortcuttrainer&utm_medium=incontent&utm_term=exs-rowscolssheets&utm_campaign=shortcuttrainer
A60: keyrocketinfo-incontent-formatting | B60: http://www.automateexcel.com/learn-excel-shortcuts/keyrocket-vid1?utm_source=shortcuttrainer&utm_medium=incontent&utm_term=Formatting&utm_campaign=shortcuttrainer | P60: keyrocketinfo-incontent-formatting,http://www.automateexcel.com/learn-excel-shortcuts/keyrocket-vid1?utm_source=shortcuttrainer&utm_medium=incontent&utm_term=Formatting&utm_campaign=shortcuttrainer
A61: keyrocketinfo-incontent-exercise-support | B61: http://www.automateexcel.com/learn-excel-shortcuts/keyrocket-vid1?utm_source=shortcuttrainer&utm_medium=incontent&utm_term=Exercise-support&utm_campaign=shortcuttrainer | P61: keyrocketinfo-incontent-exercise-support,http://www.automateexcel.com/learn-excel-shortcuts/keyrocket-vid1?utm_source=shortcuttrainer&utm_medium=incontent&utm_term=Exercise-support&utm_campaign=shortcuttrainer
A62: keyrocketinfo-incontent-formula-shortcuts | B62: http://www.automateexcel.com/learn-excel-shortcuts/keyrocket-vid1?utm_source=shortcuttrainer&utm_medium=incontent&utm_term=Formula-Shortcuts&utm_campaign=shortcuttrainer | P62: keyrocketinfo-incontent-formula-shortcuts,http://www.automateexcel.com/learn-excel-shortcuts/keyrocket-vid1?utm_source=shortcuttrainer&utm_medium=incontent&utm_term=Formula-Shortcuts&utm_campaign=shortcuttrainer
A63: keyrocketinfo-incontent-workbook-nav | B63: http://www.automateexcel.com/learn-excel-shortcuts/keyrocket-vid1?utm_source=shortcuttrainer&utm_medium=incontent&utm_term=Workbook-Nav&utm_campaign=shortcuttrainer | P63: keyrocketinfo-incontent-workbook-nav,http://www.automateexcel.com/learn-excel-shortcuts/keyrocket-vid1?utm_source=shortcuttrainer&utm_medium=incontent&utm_term=Workbook-Nav&utm_campaign=shortcuttrainer
A64: keyrocketinfo-incontent-data-tools | B64: http://www.automateexcel.com/learn-excel-shortcuts/keyrocket-vid1?utm_source=shortcuttrainer&utm_medium=incontent&utm_term=Data-Tools&utm_campaign=shortcuttrainer | P64: keyrocketinfo-incontent-data-tools,http://www.automateexcel.com/learn-excel-shortcuts/keyrocket-vid1?utm_source=shortcuttrainer&utm_medium=incontent&utm_term=Data-Tools&utm_campaign=shortcuttrainer
A65: keyrocketinfo-incontent-keyboard-layout-troubleshoot | B65: http://www.automateexcel.com/learn-excel-shortcuts/keyrocket-vid1?utm_source=shortcuttrainer&utm_medium=incontent&utm_term=Keyboard-Layout-Troubleshoot&utm_campaign=shortcuttrainer | P65: keyrocketinfo-incontent-keyboard-layout-troubleshoot,http://www.automateexcel.com/learn-excel-shortcuts/keyrocket-vid1?utm_source=shortcuttrainer&utm_medium=incontent&utm_term=Keyboard-Layout-Troubleshoot&utm_campaign=shortcuttrainer
A66: keyrocketinfo-incontent-productivity-software | B66: http://www.automateexcel.com/learn-excel-shortcuts/keyrocket-vid1?utm_source=shortcuttrainer&utm_medium=incontent&utm_term=Productivity-Software&utm_campaign=shortcuttrainer | P66: keyrocketinfo-incontent-productivity-software,http://www.automateexcel.com/learn-excel-shortcuts/keyrocket-vid1?utm_source=shortcuttrainer&utm_medium=incontent&utm_term=Productivity-Software&utm_campaign=shortcuttrainer
A67: keyrocketinfo-incontent-optimize-your-workspace | B67: http://www.automateexcel.com/learn-excel-shortcuts/keyrocket-vid1?utm_source=shortcuttrainer&utm_medium=incontent&utm_term=Optimize-Your-Workspace&utm_campaign=shortcuttrainer | P67: =A67&","&B67 -> keyrocketinfo-incontent-optimize-your-workspace,http://www.automateexcel.com/learn-excel-shortcuts/keyrocket-vid1?utm_source=shortcuttrainer&utm_medium=incontent&utm_term=Optimize-Your-Workspace&utm_campaign=shortcuttrainer
A68: keyrocketinfo-incontent-results | B68: http://www.automateexcel.com/learn-excel-shortcuts/keyrocket-vid1?utm_source=shortcuttrainer&utm_medium=incontent&utm_term=Results&utm_campaign=shortcuttrainer | P68: keyrocketinfo-incontent-results,http://www.automateexcel.com/learn-excel-shortcuts/keyrocket-vid1?utm_source=shortcuttrainer&utm_medium=incontent&utm_term=Results&utm_campaign=shortcuttrainer
A69: keyrocketinfo-incontent-freq-used-shortcuts | B69: http://www.automateexcel.com/learn-excel-shortcuts/keyrocket-vid1?utm_source=shortcuttrainer&utm_medium=incontent&utm_term=Freq-Used-Shortcuts&utm_campaign=shortcuttrainer | P69: keyrocketinfo-incontent-freq-used-shortcuts,http://www.automateexcel.com/learn-excel-shortcuts/keyrocket-vid1?utm_source=shortcuttrainer&utm_medium=incontent&utm_term=Freq-Used-Shortcuts&utm_campaign=shortcuttrainer
A70: keyrocketinfo-incontent-all-shortcuts | B70: http://www.automateexcel.com/learn-excel-shortcuts/keyrocket-vid1?utm_source=shortcuttrainer&utm_medium=incontent&utm_term=All-Shortcuts&utm_campaign=shortcuttrainer | P70: keyrocketinfo-incontent-all-shortcuts,http://www.automateexcel.com/learn-excel-shortcuts/keyrocket-vid1?utm_source=shortcuttrainer&utm_medium=incontent&utm_term=All-Shortcuts&utm_campaign=shortcuttrainer
A71: shortcuttest-incontent-about | B71: http://www.automateexcel.com/excel-practice-test/?utm_source=shortcuttrainer&utm_medium=incontent&utm_term=About&utm_campaign=shortcuttrainer | P71: shortcuttest-incontent-about,http://www.automateexcel.com/excel-practice-test/?utm_source=shortcuttrainer&utm_medium=incontent&utm_term=About&utm_campaign=shortcuttrainer
A72: shortcuttest-incontent-start-here | B72: http://www.automateexcel.com/excel-practice-test/?utm_source=shortcuttrainer&utm_medium=incontent&utm_term=start-here&utm_campaign=shortcuttrainer | P72: shortcuttest-incontent-start-here,http://www.automateexcel.com/excel-practice-test/?utm_source=shortcuttrainer&utm_medium=incontent&utm_term=start-here&utm_campaign=shortcuttrainer
A73: shortcuttest-incontent-using-the-mouse | B73: http://www.automateexcel.com/excel-practice-test/?utm_source=shortcuttrainer&utm_medium=incontent&utm_term=Using-the-Mouse&utm_campaign=shortcuttrainer | P73: shortcuttest-incontent-using-the-mouse,http://www.automateexcel.com/excel-practice-test/?utm_source=shortcuttrainer&utm_medium=incontent&utm_term=Using-the-Mouse&utm_campaign=shortcuttrainer
A74: shortcuttest-incontent-intro-basic-shortcuts | B74: http://www.automateexcel.com/excel-practice-test/?utm_source=shortcuttrainer&utm_medium=incontent&utm_term=Intro-Basic-Shortcuts&utm_campaign=shortcuttrainer | P74: shortcuttest-incontent-intro-basic-shortcuts,http://www.automateexcel.com/excel-practice-test/?utm_source=shortcuttrainer&utm_medium=incontent&utm_term=Intro-Basic-Shortcuts&utm_campaign=shortcuttrainer
A75: shortcuttest-incontent-selecting-navigating | B75: http://www.automateexcel.com/excel-practice-test/?utm_source=shortcuttrainer&utm_medium=incontent&utm_term=Selecting-Navigating&utm_campaign=shortcuttrainer | P75: shortcuttest-incontent-selecting-navigating,http://www.automateexcel.com/excel-practice-test/?utm_source=shortcuttrainer&utm_medium=incontent&utm_term=Selecting-Navigating&utm_campaign=shortcuttrainer
A76: shortcuttest-incontent-copying-pasting | B76: http://www.automateexcel.com/excel-practice-test/?utm_source=shortcuttrainer&utm_medium=incontent&utm_term=Copying-Pasting&utm_campaign=shortcuttrainer | P76: shortcuttest-incontent-copying-pasting,http://www.automateexcel.com/excel-practice-test/?utm_source=shortcuttrainer&utm_medium=incontent&utm_term=Copying-Pasting&utm_campaign=shortcuttrainer
A77: shortcuttest-incontent-nav1 | B77: http://www.automateexcel.com/excel-practice-test/?utm_source=shortcuttrainer&utm_medium=incontent&utm_term=nav1&utm_campaign=shortcuttrainer | P77: shortcuttest-incontent-nav1,http://www.automateexcel.com/excel-practice-test/?utm_source=shortcuttrainer&utm_medium=incontent&utm_term=nav1&utm_campaign=shortcuttrainer
A78: shortcuttest-incontent-nav2 | B78: http://www.automateexcel.com/excel-practice-test/?utm_source=shortcuttrainer&utm_medium=incontent&utm_term=nav2&utm_campaign=shortcuttrainer | P78: shortcuttest-incontent-nav2,http://www.automateexcel.com/excel-practice-test/?utm_source=shortcuttrainer&utm_medium=incontent&utm_term=nav2&utm_campaign=shortcuttrainer
A79: shortcuttest-incontent-formatting-i | B79: http://www.automateexcel.com/excel-practice-test/?utm_source=shortcuttrainer&utm_medium=incontent&utm_term=Formatting-I&utm_campaign=shortcuttrainer | P79: shortcuttest-incontent-formatting-i,http://www.automateexcel.com/excel-practice-test/?utm_source=shortcuttrainer&utm_medium=incontent&utm_term=Formatting-I&utm_campaign=shortcuttrainer
A80: shortcuttest-incontent-altshortcuts | B80: http://www.automateexcel.com/excel-practice-test/?utm_source=shortcuttrainer&utm_medium=incontent&utm_term=altshortcuts&utm_campaign=shortcuttrainer | P80: shortcuttest-incontent-altshortcuts,http://www.automateexcel.com/excel-practice-test/?utm_source=shortcuttrainer&utm_medium=incontent&utm_term=altshortcuts&utm_campaign=shortcuttrainer
A81: shortcuttest-incontent-rowscolssheets | B81: http://www.automateexcel.com/excel-practice-test/?utm_source=shortcuttrainer&utm_medium=incontent&utm_term=rowscolssheets&utm_campaign=shortcuttrainer | P81: shortcuttest-incontent-rowscolssheets,http://www.automateexcel.com/excel-practice-test/?utm_source=shortcuttrainer&utm_medium=incontent&utm_term=rowscolssheets&utm_campaign=shortcuttrainer
A82: shortcuttest-incontent-exs-rowscolssheets | B82: http://www.automateexcel.com/excel-practice-test/?utm_source=shortcuttrainer&utm_medium=incontent&utm_term=exs-rowscolssheets&utm_campaign=shortcuttrainer | P82: shortcuttest-incontent-exs-rowscolssheets,http://www.automateexcel.com/excel-practice-test/?utm_source=shortcuttrainer&utm_medium=incontent&utm_term=exs-rowscolssheets&utm_campaign=shortcuttrainer
A83: shortcuttest-incontent-formatting | B83: http://www.automateexcel.com/excel-practice-test/?utm_source=shortcuttrainer&utm_medium=incontent&utm_term=Formatting&utm_campaign=shortcuttrainer | P83: shortcuttest-incontent-formatting,http://www.automateexcel.com/excel-practice-test/?utm_source=shortcuttrainer&utm_medium=incontent&utm_term=Formatting&utm_campaign=shortcuttrainer
A84: shortcuttest-incontent-exercise-support | B84: http://www.automateexcel.com/excel-practice-test/?utm_source=shortcuttrainer&utm_medium=incontent&utm_term=Exercise-support&utm_campaign=shortcuttrainer | P84: shortcuttest-incontent-exercise-support,http://www.automateexcel.com/excel-practice-test/?utm_source=shortcuttrainer&utm_medium=incontent&utm_term=Exercise-support&utm_campaign=shortcuttrainer
A85: shortcuttest-incontent-formula-shortcuts | B85: http://www.automateexcel.com/excel-practice-test/?utm_source=shortcuttrainer&utm_medium=incontent&utm_term=Formula-Shortcuts&utm_campaign=shortcuttrainer | P85: shortcuttest-incontent-formula-shortcuts,http://www.automateexcel.com/excel-practice-test/?utm_source=shortcuttrainer&utm_medium=incontent&utm_term=Formula-Shortcuts&utm_campaign=shortcuttrainer
A86: shortcuttest-incontent-workbook-nav | B86: http://www.automateexcel.com/excel-practice-test/?utm_source=shortcuttrainer&utm_medium=incontent&utm_term=Workbook-Nav&utm_campaign=shortcuttrainer | P86: shortcuttest-incontent-workbook-nav,http://www.automateexcel.com/excel-practice-test/?utm_source=shortcuttrainer&utm_medium=incontent&utm_term=Workbook-Nav&utm_campaign=shortcuttrainer
A87: shortcuttest-incontent-data-tools | B87: http://www.automateexcel.com/excel-practice-test/?utm_source=shortcuttrainer&utm_medium=incontent&utm_term=Data-Tools&utm_campaign=shortcuttrainer | P87: shortcuttest-incontent-data-tools,http://www.automateexcel.com/excel-practice-test/?utm_source=shortcuttrainer&utm_medium=incontent&utm_term=Data-Tools&utm_campaign=shortcuttrainer
A88: shortcuttest-incontent-keyboard-layout-troubleshoot | B88: http://www.automateexcel.com/excel-practice-test/?utm_source=shortcuttrainer&utm_medium=incontent&utm_term=Keyboard-Layout-Troubleshoot&utm_campaign=shortcuttrainer | P88: shortcuttest-incontent-keyboard-layout-troubleshoot,http://www.automateexcel.com/excel-practice-test/?utm_source=shortcuttrainer&utm_medium=incontent&utm_term=Keyboard-Layout-Troubleshoot&utm_campaign=shortcuttrainer
A89: shortcuttest-incontent-productivity-software | B89: http://www.automateexcel.com/excel-practice-test/?utm_source=shortcuttrainer&utm_medium=incontent&utm_term=Productivity-Software&utm_campaign=shortcuttrainer | P89: shortcuttest-incontent-productivity-software,http://www.automateexcel.com/excel-practice-test/?utm_source=shortcuttrainer&utm_medium=incontent&utm_term=Productivity-Software&utm_campaign=shortcuttrainer
A90: shortcuttest-incontent-optimize-your-workspace | B90: http://www.automateexcel.com/excel-practice-test/?utm_source=shortcuttrainer&utm_medium=incontent&utm_term=Optimize-Your-Workspace&utm_campaign=shortcuttrainer | P90: shortcuttest-incontent-optimize-your-workspace,http://www.automateexcel.com/excel-practice-test/?utm_source=shortcuttrainer&utm_medium=incontent&utm_term=Optimize-Your-Workspace&utm_campaign=shortcuttrainer
A91: shortcuttest-incontent-results | B91: http://www.automateexcel.com/excel-practice-test/?utm_source=shortcuttrainer&utm_medium=incontent&utm_term=Results&utm_campaign=shortcuttrainer | P91: shortcuttest-incontent-results,http://www.automateexcel.com/excel-practice-test/?utm_source=shortcuttrainer&utm_medium=incontent&utm_term=Results&utm_campaign=shortcuttrainer
A92: shortcuttest-incontent-freq-used-shortcuts | B92: http://www.automateexcel.com/excel-practice-test/?utm_source=shortcuttrainer&utm_medium=incontent&utm_term=Freq-Used-Shortcuts&utm_campaign=shortcuttrainer | P92: shortcuttest-incontent-freq-used-shortcuts,http://www.automateexcel.com/excel-practice-test/?utm_source=shortcuttrainer&utm_medium=incontent&utm_term=Freq-Used-Shortcuts&utm_campaign=shortcuttrainer
A93: shortcuttest-incontent-all-shortcuts | B93: http://www.automateexcel.com/excel-practice-test/?utm_source=shortcuttrainer&utm_medium=incontent&utm_term=All-Shortcuts&utm_campaign=shortcuttrainer | P93: shortcuttest-incontent-all-shortcuts,http://www.automateexcel.com/excel-practice-test/?utm_source=shortcuttrainer&utm_medium=incontent&utm_term=All-Shortcuts&utm_campaign=shortcuttrainer
A94: learnshortcuts-header-about | B94: http://www.automateexcel.com/learn-excel-shortcuts/?utm_source=shortcuttrainer&utm_medium=header&utm_term=About&utm_campaign=shortcuttrainer | P94: learnshortcuts-header-about,http://www.automateexcel.com/learn-excel-shortcuts/?utm_source=shortcuttrainer&utm_medium=header&utm_term=About&utm_campaign=shortcuttrainer
A95: learnshortcuts-header-start-here | B95: http://www.automateexcel.com/learn-excel-shortcuts/?utm_source=shortcuttrainer&utm_medium=header&utm_term=start-here&utm_campaign=shortcuttrainer | P95: learnshortcuts-header-start-here,http://www.automateexcel.com/learn-excel-shortcuts/?utm_source=shortcuttrainer&utm_medium=header&utm_term=start-here&utm_campaign=shortcuttrainer
A96: learnshortcuts-header-using-the-mouse | B96: http://www.automateexcel.com/learn-excel-shortcuts/?utm_source=shortcuttrainer&utm_medium=header&utm_term=Using-the-Mouse&utm_campaign=shortcuttrainer | P96: learnshortcuts-header-using-the-mouse,http://www.automateexcel.com/learn-excel-shortcuts/?utm_source=shortcuttrainer&utm_medium=header&utm_term=Using-the-Mouse&utm_campaign=shortcuttrainer
A97: learnshortcuts-header-intro-basic-shortcuts | B97: http://www.automateexcel.com/learn-excel-shortcuts/?utm_source=shortcuttrainer&utm_medium=header&utm_term=Intro-Basic-Shortcuts&utm_campaign=shortcuttrainer | P97: learnshortcuts-header-intro-basic-shortcuts,http://www.automateexcel.com/learn-excel-shortcuts/?utm_source=shortcuttrainer&utm_medium=header&utm_term=Intro-Basic-Shortcuts&utm_campaign=shortcuttrainer
A98: learnshortcuts-header-selecting-navigating | B98: http://www.automateexcel.com/learn-excel-shortcuts/?utm_source=shortcuttrainer&utm_medium=header&utm_term=Selecting-Navigating&utm_campaign=shortcuttrainer | P98: learnshortcuts-header-selecting-navigating,http://www.automateexcel.com/learn-excel-shortcuts/?utm_source=shortcuttrainer&utm_medium=header&utm_term=Selecting-Navigating&utm_campaign=shortcuttrainer
A99: learnshortcuts-header-copying-pasting | B99: http://www.automateexcel.com/learn-excel-shortcuts/?utm_source=shortcuttrainer&utm_medium=header&utm_term=Copying-Pasting&utm_campaign=shortcuttrainer | P99: learnshortcuts-header-copying-pasting,http://www.automateexcel.com/learn-excel-shortcuts/?utm_source=shortcuttrainer&utm_medium=header&utm_term=Copying-Pasting&utm_campaign=shortcuttrainer
A100: learnshortcuts-header-nav1 | B100: http://www.automateexcel.com/learn-excel-shortcuts/?utm_source=shortcuttrainer&utm_medium=header&utm_term=nav1&utm_campaign=shortcuttrainer | P100: learnshortcuts-header-nav1,http://www.automateexcel.com/learn-excel-shortcuts/?utm_source=shortcuttrainer&utm_medium=header&utm_term=nav1&utm_campaign=shortcuttrainer
A101: learnshortcuts-header-nav2 | B101: http://www.automateexcel.com/learn-excel-shortcuts/?utm_source=shortcuttrainer&utm_medium=header&utm_term=nav2&utm_campaign=shortcuttrainer | P101: learnshortcuts-header-nav2,http://www.automateexcel.com/learn-excel-shortcuts/?utm_source=shortcuttrainer&utm_medium=header&utm_term=nav2&utm_campaign=shortcuttrainer
A102: learnshortcuts-header-formatting-i | B102: http://www.automateexcel.com/learn-excel-shortcuts/?utm_source=shortcuttrainer&utm_medium=header&utm_term=Formatting-I&utm_campaign=shortcuttrainer | P102: learnshortcuts-header-formatting-i,http://www.automateexcel.com/learn-excel-shortcuts/?utm_source=shortcuttrainer&utm_medium=header&utm_term=Formatting-I&utm_campaign=shortcuttrainer
A103: learnshortcuts-header-altshortcuts | B103: http://www.automateexcel.com/learn-excel-shortcuts/?utm_source=shortcuttrainer&utm_medium=header&utm_term=altshortcuts&utm_campaign=shortcuttrainer | P103: learnshortcuts-header-altshortcuts,http://www.automateexcel.com/learn-excel-shortcuts/?utm_source=shortcuttrainer&utm_medium=header&utm_term=altshortcuts&utm_campaign=shortcuttrainer
A104: learnshortcuts-header-rowscolssheets | B104: http://www.automateexcel.com/learn-excel-shortcuts/?utm_source=shortcuttrainer&utm_medium=header&utm_term=rowscolssheets&utm_campaign=shortcuttrainer | P104: learnshortcuts-header-rowscolssheets,http://www.automateexcel.com/learn-excel-shortcuts/?utm_source=shortcuttrainer&utm_medium=header&utm_term=rowscolssheets&utm_campaign=shortcuttrainer
A105: learnshortcuts-header-exs-rowscolssheets | B105: http://www.automateexcel.com/learn-excel-shortcuts/?utm_source=shortcuttrainer&utm_medium=header&utm_term=exs-rowscolssheets&utm_campaign=shortcuttrainer | P105: learnshortcuts-header-exs-rowscolssheets,http://www.automateexcel.com/learn-excel-shortcuts/?utm_source=shortcuttrainer&utm_medium=header&utm_term=exs-rowscolssheets&utm_campaign=shortcuttrainer
A106: learnshortcuts-header-formatting | B106: http://www.automateexcel.com/learn-excel-shortcuts/?utm_source=shortcuttrainer&utm_medium=header&utm_term=Formatting&utm_campaign=shortcuttrainer | P106: learnshortcuts-header-formatting,http://www.automateexcel.com/learn-excel-shortcuts/?utm_source=shortcuttrainer&utm_medium=header&utm_term=Formatting&utm_campaign=shortcuttrainer
A107: learnshortcuts-header-exercise-support | B107: http://www.automateexcel.com/learn-excel-shortcuts/?utm_source=shortcuttrainer&utm_medium=header&utm_term=Exercise-support&utm_campaign=shortcuttrainer | P107: learnshortcuts-header-exercise-support,http://www.automateexcel.com/learn-excel-shortcuts/?utm_source=shortcuttrainer&utm_medium=header&utm_term=Exercise-support&utm_campaign=shortcuttrainer
A108: learnshortcuts-header-formula-shortcuts | B108: http://www.automateexcel.com/learn-excel-shortcuts/?utm_source=shortcuttrainer&utm_medium=header&utm_term=Formula-Shortcuts&utm_campaign=shortcuttrainer | P108: learnshortcuts-header-formula-shortcuts,http://www.automateexcel.com/learn-excel-shortcuts/?utm_source=shortcuttrainer&utm_medium=header&utm_term=Formula-Shortcuts&utm_campaign=shortcuttrainer
A109: learnshortcuts-header-workbook-nav | B109: http://www.automateexcel.com/learn-excel-shortcuts/?utm_source=shortcuttrainer&utm_medium=header&utm_term=Workbook-Nav&utm_campaign=shortcuttrainer | P109: learnshortcuts-header-workbook-nav,http://www.automateexcel.com/learn-excel-shortcuts/?utm_source=shortcuttrainer&utm_medium=header&utm_term=Workbook-Nav&utm_campaign=shortcuttrainer
A110: learnshortcuts-header-data-tools | B110: http://www.automateexcel.com/learn-excel-shortcuts/?utm_source=shortcuttrainer&utm_medium=header&utm_term=Data-Tools&utm_campaign=shortcuttrainer | P110: learnshortcuts-header-data-tools,http://www.automateexcel.com/learn-excel-shortcuts/?utm_source=shortcuttrainer&utm_medium=header&utm_term=Data-Tools&utm_campaign=shortcuttrainer
A111: learnshortcuts-header-keyboard-layout-troubleshoot | B111: http://www.automateexcel.com/learn-excel-shortcuts/?utm_source=shortcuttrainer&utm_medium=header&utm_term=Keyboard-Layout-Troubleshoot&utm_campaign=shortcuttrainer | P111: learnshortcuts-header-keyboard-layout-troubleshoot,http://www.automateexcel.com/learn-excel-shortcuts/?utm_source=shortcuttrainer&utm_medium=header&utm_term=Keyboard-Layout-Troubleshoot&utm_campaign=shortcuttrainer
A112: learnshortcuts-header-productivity-software | B112: http://www.automateexcel.com/learn-excel-shortcuts/?utm_source=shortcuttrainer&utm_medium=header&utm_term=Productivity-Software&utm_campaign=shortcuttrainer | P112: learnshortcuts-header-productivity-software,http://www.automateexcel.com/learn-excel-shortcuts/?utm_source=shortcuttrainer&utm_medium=header&utm_term=Productivity-Software&utm_campaign=shortcuttrainer
A113: learnshortcuts-header-optimize-your-workspace | B113: http://www.automateexcel.com/learn-excel-shortcuts/?utm_source=shortcuttrainer&utm_medium=header&utm_term=Optimize-Your-Workspace&utm_campaign=shortcuttrainer | P113: learnshortcuts-header-optimize-your-workspace,http://www.automateexcel.com/learn-excel-shortcuts/?utm_source=shortcuttrainer&utm_medium=header&utm_term=Optimize-Your-Workspace&utm_campaign=shortcuttrainer
A114: learnshortcuts-header-results | B114: http://www.automateexcel.com/learn-excel-shortcuts/?utm_source=shortcuttrainer&utm_medium=header&utm_term=Results&utm_campaign=shortcuttrainer | P114: learnshortcuts-header-results,http://www.automateexcel.com/learn-excel-shortcuts/?utm_source=shortcuttrainer&utm_medium=header&utm_term=Results&utm_campaign=shortcuttrainer
A115: learnshortcuts-header-freq-used-shortcuts | B115: http://www.automateexcel.com/learn-excel-shortcuts/?utm_source=shortcuttrainer&utm_medium=header&utm_term=Freq-Used-Shortcuts&utm_campaign=shortcuttrainer | P115: learnshortcuts-header-freq-used-shortcuts,http://www.automateexcel.com/learn-excel-shortcuts/?utm_source=shortcuttrainer&utm_medium=header&utm_term=Freq-Used-Shortcuts&utm_campaign=shortcuttrainer
A116: learnshortcuts-header-all-shortcuts | B116: http://www.automateexcel.com/learn-excel-shortcuts/?utm_source=shortcuttrainer&utm_medium=header&utm_term=All-Shortcuts&utm_campaign=shortcuttrainer | P116: learnshortcuts-header-all-shortcuts,http://www.automateexcel.com/learn-excel-shortcuts/?utm_source=shortcuttrainer&utm_medium=header&utm_term=All-Shortcuts&utm_campaign=shortcuttrainer
A117: affiliate-incontent-about | B117: http://www.automateexcel.com/affiliate?utm_source=shortcuttrainer&utm_medium=incontent&utm_term=about&utm_campaign=shortcuttrainer | P117: affiliate-incontent-about,http://www.automateexcel.com/affiliate?utm_source=shortcuttrainer&utm_medium=incontent&utm_term=about&utm_campaign=shortcuttrainer
A118: keyrocketdownload-incontent-intro-basics-hortcuts | B118: http://www.automateexcel.com/affiliate?utm_source=shortcuttrainer&utm_medium=incontent&utm_term=intro&utm_campaign=shortcuttrainer | P118: keyrocketdownload-incontent-intro-basics-hortcuts,http://www.automateexcel.com/affiliate?utm_source=shortcuttrainer&utm_medium=incontent&utm_term=intro&utm_campaign=shortcuttrainer
A121: home-incontent-start-here | B121: http://www.automateexcel.com/?utm_source=shortcuttrainer&utm_medium=incontent&utm_term=start-here&utm_campaign=shortcuttrainer
A122: fulltutorial-incontent-start-here | B122: http://www.automateexcel.com/advanced-excel-training-course/?utm_source=shortcuttrainer&utm_medium=incontent&utm_term=start-here&utm_campaign=shortcuttrainer
A123: keyrocketinfo-incontent-start-here | B123: http://www.automateexcel.com/learn-excel-shortcuts/keyrocket-vid1/?utm_source=shortcuttrainer&utm_medium=incontent&utm_term=start-here&utm_campaign=shortcuttrainer
A124: shortcuttest-incontent-start-here | B124: http://www.automateexcel.com/excel-practice-test/?utm_source=shortcuttrainer&utm_medium=incontent&utm_term=start-here&utm_campaign=shortcuttrainer
A125: learnshortcuts-incontent-start-here | B125: http://www.automateexcel.com/learn-excel-shortcuts/?utm_source=shortcuttrainer&utm_medium=incontent&utm_term=start-here&utm_campaign=shortcuttrainer

Sheet About
B1: Share with your friends and colleagues:
B7: About Automate Excel and Spreadsheet Boot Camp
B8: www.automateexcel.com was founded in 2004 and is one of the oldest and most trusted sources of information for Microsoft Excel and VBA.
B9: Spreadsheet Boot Camp is the name of our awesome self-paced, hands-on Excel Tutorial.
B10: Check out our website for more information:
B11: http://www.automateexcel.com/advanced-excel-training-course
B13: Usage
B14: This spreadsheet is free for your personal use and you may distribute it unedited at your discretion.
B15: Although we prefer that you link to our site: | G15: http://www.automateexcel.com/learn-excel-shortcuts
B16: We encourage you to share it with your friends and colleagues through social media or email, or by posting links on a blog/message board.
B18: If you are an organization, please distribute this trainer as you see fit. We simply ask that you let us know.
B19: This helps us keep track of who is using our trainer and helps us develop better training solutions for broader use.
B21: Affiliate
B22: Our affiliates earn a percentage of any sales that they refer.
B23: Share a link to this trainer, if someone visits that link and later purchases our full tutorial, you will receive percentage of the sale.
B24: http://www.automateexcel.com/affiliate
B30: Contact
B31: spreadsheetbootcamp@gmail.com
B33: Legal
B34: Microsoft, MS, Office, Excel, PowerPoint, Outlook, Word, and Windows are either registered trademarks or trademarks of Microsoft Corporation in the United States and/or other Countries.
B35: Spreadsheet Boot Camp LLC and its software services are independent and are not affiliated with Microsoft Corporation.
B36: Copyright © 2012-2016 by Spreadsheet Boot Camp LLC
B38: Privacy
B39: To improve your user experience, this spreadsheet accesses information on your computer. Specifically, it looks for your computer's unique ID and
B40: checks to see if you've downloaded and installed KeyRocket. No information is ever transmitted without your consent and we will never share any
B41: personal data that you choose to share with us.
B43: When you're finished, Use CTRL+ Page Down to jump to the next worksheet

Sheet <<Start Here>>
M1: Helpful Shotcuts
M2: CTRL + PAGE DOWN = Move to Next Worksheet
M3: CTRL + PAGE UP = Move to Previous Worksheet
M5: CTRL + Q to Enable Mouse
N11: Index
N12: Diag Test Result | T12: Diag Test Result
J13: Using the Mouse | P13: Rows, Columns, & Sheets
K14: Using the Mouse | Q14: Inserting & Deleting | T14: =diag_test_results!AH14 -> 0 | U14: =diag_test_results!AF14&" of " &diag_test_results!AG14 -> 0 of 1
C15: Copy + Paste Diagnostic Test Results Below: | J15: Intro & Basic Shortcuts | Q15: Hiding & Grouping
G16: . | K16: Becoming a Shortcut Guru | Q16: ALT Shortcuts | T16: =diag_test_results!AH16 -> 0 | U16: =diag_test_results!AF16&" of " &diag_test_results!AG16 -> 0 of 1
K17: Using CTRL Shortcuts | P17: Sheets Exercises
K18: CTRL & "Must-Use" Shortcuts | N18: =diag_test_results!AE18 -> 0 | O18: =diag_test_results!AC18&" of " &diag_test_results!AD18 -> 0 of 7 | Q18: Exercises
J19: Selecting & Navigating | P19: Formatting Exercise
K20: Worksheet Navigation | N20: =diag_test_results!AE20 -> 0 | O20: =diag_test_results!AC20&" of " &diag_test_results!AD20 -> 0 of 2 | Q20: Formatting Exercise
K21: Selecting Cells | N21: =diag_test_results!AE21 -> 0 | O21: =diag_test_results!AC21&" of " &diag_test_results!AD21 -> 0 of 2 | P21: Formula Shortcuts
J22: Copying & Pasting | Q22: Formula Creating & Editing | T22: =diag_test_results!AH22 -> 0 | U22: =diag_test_results!AF22&" of " &diag_test_results!AG22 -> 0 of 3
K23: Copying & Pasting Basics | N23: =diag_test_results!AE23 -> 0 | O23: =diag_test_results!AC23&" of " &diag_test_results!AD23 -> 0 of 2 | Q23: Formula Auditing | T23: =diag_test_results!AH23 -> 0 | U23: =diag_test_results!AF23&" of " &diag_test_results!AG23 -> 0 of 1
K24: Paste Special | N24: =diag_test_results!AE24 -> 0 | O24: =diag_test_results!AC24&" of " &diag_test_results!AD24 -> 0 of 1 | Q24: Undo | T24: =diag_test_results!AH24 -> 0 | U24: =diag_test_results!AF24&" of " &diag_test_results!AG24 -> 0 of 1
K25: Exercise #1 | Q25: Formula Exercise
J26: Navigation Exercise | P26: Workbook Navigation
K27: Nav Exercise | Q27: Workbook Nav & Viewing
J28: Formatting 1 | P28: Data Tools
K29: Simple Formatting | N29: =diag_test_results!AE29 -> 0 | O29: =diag_test_results!AC29&" of " &diag_test_results!AD29 -> 0 of 4 | Q29: Find & Go To | T29: =diag_test_results!AH29 -> 0 | U29: =diag_test_results!AF29&" of " &diag_test_results!AG29 -> 0 of 1
J30: Alt Shortcuts, Menus, & Formatting | Q30: Data Tools | T30: =diag_test_results!AH30 -> 0 | U30: =diag_test_results!AF30&" of " &diag_test_results!AG30 -> 0 of 1
K31: Intro to ALT Shortcuts | N31: =diag_test_results!AE31 -> 0 | O31: =diag_test_results!AC31&" of " &diag_test_results!AD31 -> 0 of 1 | P31: Keyboard Layout & Troubleshooting
K32: The Home Ribbon | Q32: Keyboard Layout
K33: Menus | Q33: Keyboard Recommendations
K34: Cell Format Menu - Repeat | Q34: Troubleshooting
B41: When you're finished, Use CTRL+ Page Down to jump to the next worksheet

Sheet diag_test_results (hidden)
A12: 1 | B12: =A12+1 -> 2 | C12: 3 | D12: 4 | E12: 5 | F12: 6 | G12: 7 | I12: 1 | J12: 2 | K12: 3 | M12: save | N12: [test-save] | O12: =MID(DiagnosticTestResult,FIND(N12,DiagnosticTestResult)+LEN(N12),1) ->  | Q12: 1 | R12: 2 | S12: 3 | T12: 4 | U12: 5 | V12: 6 | W12: 7 | Y12: 1 | Z12: 2 | AA12: 3
M13: copy | N13: [test-copy]
I14: Insert Row or Column | M14: undo | N14: ="[test-"&M14&"]" -> [test-undo] | Y14: =VALUE(VLOOKUP(I14,$M$12:$O$31,3,FALSE)) ->  | AF14: =COUNTIF(Y14:AA14,0) -> 0 | AG14: =COUNTA(Y14:AA14) -> 1 | AH14: =AF14/AG14 -> 0
M15: move to end of data region (right) | N15: [test-right-to-end-of-region]
I16: Activate Ribbon Commands | M16: move to first cell in the worksheet | N16: [test-move-to-first-cell] | Y16: =VALUE(VLOOKUP(I16,$M$12:$O$31,3,FALSE)) ->  | AF16: =COUNTIF(Y16:AA16,0) -> 0 | AG16: =COUNTA(Y16:AA16) -> 1 | AH16: =AF16/AG16 -> 0
M17: select all cells in range | N17: [test-select-all-cells-in-range]
A18: Save | B18: Copy | C18: Undo | D18: Paste | E18: Edit Cell | F18: Toggle Absolute / Relative References (In Cell Edit Mode) | G18: Move to end of data region (Right) | M18: select entire row | N18: [test-select-entire-row] | Q18: =VALUE(VLOOKUP(A18,$M$12:$O$31,3,FALSE)) ->  | AC18: =COUNTIF(Q18:W18,0) -> 0 | AD18: =COUNTA(Q18:W18) -> 7 | AE18: =AC18/AD18 -> 0
M19: paste | N19: [test-paste]
A20: Move to end of data region (Right) | B20: Move to First Cell in the Worksheet | M20: paste special | N20: [test-paste-special2] | Q20: =VALUE(VLOOKUP(A20,$M$12:$O$31,3,FALSE)) ->  | R20: =VALUE(VLOOKUP(B20,$M$12:$O$31,3,FALSE)) ->  | AC20: =COUNTIF(Q20:W20,0) -> 0 | AD20: =COUNTA(Q20:W20) -> 2 | AE20: =AC20/AD20 -> 0
A21: Select all Cells in Range | B21: Select Entire Row | M21: bold | N21: [test-bold] | Q21: =VALUE(VLOOKUP(A21,$M$12:$O$31,3,FALSE)) ->  | R21: =VALUE(VLOOKUP(B21,$M$12:$O$31,3,FALSE)) ->  | AC21: =COUNTIF(Q21:W21,0) -> 0 | AD21: =COUNTA(Q21:W21) -> 2 | AE21: =AC21/AD21 -> 0
I22: Edit Cell | J22: Toggle Absolute / Relative References (In Cell Edit Mode) | K22: Copy Formula From Cell Above | M22: apply currency format | N22: [test-currency-format] | Y22: =VALUE(VLOOKUP(I22,$M$12:$O$31,3,FALSE)) ->  | Z22: =VALUE(VLOOKUP(J22,$M$12:$O$31,3,FALSE)) ->  | AA22: =VALUE(VLOOKUP(K22,$M$12:$O$31,3,FALSE)) ->  | AF22: =COUNTIF(Y22:AA22,0) -> 0 | AG22: =COUNTA(Y22:AA22) -> 3 | AH22: =AF22/AG22 -> 0
A23: Copy | B23: Paste | I23: Edit Cell | M23: apply percentage format | N23: [test-percentage-format] | Q23: =VALUE(VLOOKUP(A23,$M$12:$O$31,3,FALSE)) ->  | R23: =VALUE(VLOOKUP(B23,$M$12:$O$31,3,FALSE)) ->  | Y23: =VALUE(VLOOKUP(I23,$M$12:$O$31,3,FALSE)) ->  | AC23: =COUNTIF(Q23:W23,0) -> 0 | AD23: =COUNTA(Q23:W23) -> 2 | AE23: =AC23/AD23 -> 0 | AF23: =COUNTIF(Y23:AA23,0) -> 0 | AG23: =COUNTA(Y23:AA23) -> 1 | AH23: =AF23/AG23 -> 0
A24: Paste Special | I24: Undo | M24: add outline border | N24: [test-outline-border] | Q24: =VALUE(VLOOKUP(A24,$M$12:$O$31,3,FALSE)) ->  | Y24: =VALUE(VLOOKUP(I24,$M$12:$O$31,3,FALSE)) ->  | AC24: =COUNTIF(Q24:W24,0) -> 0 | AD24: =COUNTA(Q24:W24) -> 1 | AE24: =AC24/AD24 -> 0 | AF24: =COUNTIF(Y24:AA24,0) -> 0 | AG24: =COUNTA(Y24:AA24) -> 1 | AH24: =AF24/AG24 -> 0
M25: activate ribbon commands | N25: [test-ribbon-commands]
M26: insert row or column | N26: [test-delete-row]
M27: edit cell | N27: [test-edit-cell]
M28: toggle absolute / relative references (in cell edit mode) | N28: [test-references]
A29: Bold | B29: Apply Currency Format | C29: Apply Percentage Format | D29: Add Outline Border | I29: Find | M29: copy formula from cell above | N29: [test-copy-formula-down] | Q29: =VALUE(VLOOKUP(A29,$M$12:$O$31,3,FALSE)) ->  | R29: =VALUE(VLOOKUP(B29,$M$12:$O$31,3,FALSE)) ->  | S29: =VALUE(VLOOKUP(C29,$M$12:$O$31,3,FALSE)) ->  | T29: =VALUE(VLOOKUP(D29,$M$12:$O$31,3,FALSE)) ->  | Y29: =VALUE(VLOOKUP(I29,$M$12:$O$31,3,FALSE)) ->  | AC29: =COUNTIF(Q29:W29,0) -> 0 | AD29: =COUNTA(Q29:W29) -> 4 | AE29: =AC29/AD29 -> 0 | AF29: =COUNTIF(Y29:AA29,0) -> 0 | AG29: =COUNTA(Y29:AA29) -> 1 | AH29: =AF29/AG29 -> 0
I30: Activate Filter | M30: activate filter | N30: [test-filter] | Y30: =VALUE(VLOOKUP(I30,$M$12:$O$31,3,FALSE)) ->  | AF30: =COUNTIF(Y30:AA30,0) -> 0 | AG30: =COUNTA(Y30:AA30) -> 1 | AH30: =AF30/AG30 -> 0
A31: Activate Ribbon Commands | M31: find | N31: [test-find] | Q31: =VALUE(VLOOKUP(A31,$M$12:$O$31,3,FALSE)) ->  | AC31: =COUNTIF(Q31:W31,0) -> 0 | AD31: =COUNTA(Q31:W31) -> 1 | AE31: =AC31/AD31 -> 0
N32: [test-]
M33: paste-special2 | N33: [test-paste-special2] | O33: paste-special1 | P33: =IFERROR(VALUE(MID(DiagnosticTestResult,FIND(O33,DiagnosticTestResult)+LEN(O33)+1,1)),0) -> 0

Sheet Using the Mouse
M1: CTRL + PAGE DOWN = Move to Next Worksheet
M2: CTRL + PAGE UP = Move to Previous Worksheet
M3: CTRL + Q to Enable Mouse
B5: Before we get started with keyboard shortcuts, let's cover a handful of mouse shortcuts.
A7: 1. Using the Mouse
B11: This section covers using the mouse in Excel. If you've disabled the mouse, it's been temporarily activated again.
A13: x | B13: Zoom In/Out
B14: Hold CTRL and Use the Mouse Wheel to Zoom In/Out quickly
A16: x | B16: Drag and Fill
B17: Select each dark highlighted cell, click, hold and drag the little box in the lower right hand corner of each dark highlighted cell to fill the boxes.
B18: Notice how Excel is smart enough to fill in the sequential days and months.
E20: Monday | G20: Mon | I20: January | K20: Jan | M20: 1 | O20: Jan | P20: 1 | Q20: <<Highlight both of these cells and drag down. | Z20: Monday | AA20: =Z20=E20 -> TRUE | AB20: Mon | AC20: =AB20=G20 -> TRUE | AD20: January | AE20: =AD20=I20 -> TRUE | AF20: Jan | AG20: =AF20=K20 -> TRUE | AH20: 1 | AI20: =AH20=M20 -> TRUE | AJ20: Jan | AK20: 1 | AL20: =AJ20=O20 -> TRUE | AM20: =AK20=P20 -> TRUE
Q21: Notice how in this situation Excel is smart enough to realize you are working with dates. | Z21: Tuesday | AA21: FALSE | AB21: Tue | AC21: FALSE | AD21: February | AE21: FALSE | AF21: Feb | AG21: FALSE | AH21: 1 | AI21: FALSE | AJ21: Feb | AK21: 2 | AL21: =AJ21=O21 -> FALSE | AM21: FALSE
Z22: Wednesday | AA22: FALSE | AB22: Wed | AC22: FALSE | AD22: March | AE22: FALSE | AF22: Mar | AG22: FALSE | AH22: 1 | AI22: FALSE | AJ22: Mar | AK22: 3 | AL22: FALSE | AM22: FALSE
Z23: Thursday | AA23: FALSE | AB23: Thu | AC23: FALSE | AD23: April | AE23: FALSE | AF23: Apr | AG23: FALSE | AH23: 1 | AI23: FALSE | AJ23: Apr | AK23: 4 | AL23: FALSE | AM23: FALSE
Z24: Friday | AA24: FALSE | AB24: Fri | AC24: FALSE | AD24: May | AE24: FALSE | AF24: May | AG24: FALSE | AH24: 1 | AI24: FALSE | AJ24: May | AK24: 5 | AL24: FALSE | AM24: FALSE
Z25: Saturday | AA25: FALSE | AB25: Sat | AC25: FALSE | AD25: June | AE25: FALSE | AF25: Jun | AG25: FALSE | AH25: 1 | AI25: FALSE | AJ25: Jun | AK25: 6 | AL25: FALSE | AM25: FALSE
Z26: Sunday | AA26: FALSE | AB26: Sun | AC26: FALSE | AD26: July | AE26: FALSE | AF26: Jul | AG26: FALSE | AH26: 1 | AI26: FALSE | AJ26: Jul | AK26: 7 | AL26: FALSE | AM26: FALSE
AD27: August | AE27: FALSE | AF27: Aug | AG27: FALSE | AH27: 1 | AI27: FALSE | AJ27: Aug | AK27: 8 | AL27: FALSE | AM27: FALSE
AD28: September | AE28: FALSE | AF28: Sep | AG28: FALSE | AH28: 1 | AI28: FALSE | AJ28: Sep | AK28: 9 | AL28: FALSE | AM28: FALSE
AD29: October | AE29: FALSE | AF29: Oct | AG29: FALSE | AH29: 1 | AI29: FALSE | AJ29: Oct | AK29: 10 | AL29: FALSE | AM29: FALSE
AD30: November | AE30: FALSE | AF30: Nov | AG30: FALSE | AH30: 1 | AI30: FALSE | AJ30: Nov | AK30: 11 | AL30: FALSE | AM30: FALSE
R31: =IF(COUNTIF(AA20:AM31,"=false")=0,"Complete!","") ->  | AD31: December | AE31: FALSE | AF31: Dec | AG31: FALSE | AH31: 1 | AI31: FALSE | AJ31: Dec | AK31: 12 | AL31: FALSE | AM31: FALSE
A33: x | B33: Drag
B34: Click, hold and drag on the border of the cell to move
C36: Move Me
R39: =IF(ISERROR(J36),"Complete!","") -> 
A41: x | B41: Autofill
B42: Double-click the little box in the lower right corner of the top cell to copy the formula down.
C44: 2009 | D44: 10000
C45: 2010 | D45: =D44*1.06 -> 10600 | F45: Select the cell and double-click near the arrow.
C46: 2011 | Z46: 11236 | AA46: =Z46=D46 -> FALSE
C47: 2012 | Z47: 11910.16 | AA47: =Z47=D47 -> FALSE
C48: 2013 | Z48: 12624.7696 | AA48: =Z48=D48 -> FALSE
C49: 2014 | Z49: 13382.25578 | AA49: =Z49=D49 -> FALSE
C50: 2015 | R50: =IF(COUNTIF(AA46:AA50,"=false")=0,"Complete!","") ->  | Z50: 14185.19112 | AA50: =Z50=D50 -> FALSE
B53: Use CTRL+ Page Down to jump to the next worksheet
A56: x

Sheet Intro & Basic Shortcuts
M1: CTRL + PAGE DOWN = Move to Next Worksheet
M2: CTRL + PAGE UP = Move to Previous Worksheet
M3: CTRL + Q to Enable Mouse
A5: 1. Becoming a Shortcut Guru
B10: This workbook will introduce you to numerous powerful time-saving shortcuts.
B11: If you're a frequent Excel user, the return on investment from mastering these shortcuts will be massive.
B12: You will be able to get more done, in less time, all while impressing your coworkers and bosses.
B17: Besides this tutorial, there are several ways to master Excel shortcuts::
B18: 1. Practice Shortcuts with our free online
B19: 2. Install the
B20: 3. Print off our
B21: 4. and take away the safety net.
A23: x | B23: 1. Practice Shortcuts with our free online App
B24: The App works like this: An Excel command will appear (ex. Apply Currency Format)
B25: and you type the appropriate shortcut (ex. CTRL + SHIFT + $). The app will tell you if you are right or wrong, and you move on to the next shortcut.
B26: This is a fantastic way to develop "muscle memory" and make these shortcuts second-nature. You can spend as little as one minute per day and see a huge improvement.
A46: x | B46: 2. Hands down, the easiest way to become a shortcut expert is with this awesome app:
B59: If a shortcut doesn't exist, or is too complicated, you can create your own custom shortcuts:
B67: KeyRocket tracks your usage and identifies which shortcuts would benefit you the most:
B80: KeyRocket is produced by a company called Veodin Software.
B81: Its installed in many corporate environments, so it's safe to use on your work computer and should work well with firewalls and proxies.
B82: It's free to try, but unfortunately, it's a bit expensive to purchase. However, if you're a student you can get a big discount by emailing Veodin from a .edu email address.
B84: If you want to see KeyRocket in action
B85: or
B86: Use this link to
A92: x | B92: 3. Print off our Shortcut Lists.
B93: Print off our shortcut lists and keep them at your desk.
A98: x | B98: 4. Disable the Mouse
B99: We estimate you can work 2-4x faster by using keyboard shortcuts instead of the mouse.
B100: However, as you work, you probably instinctively reach for the mouse.
B101: If you take away the safety net of the mouse, you'll have no choice but to use the keyboard…
C110: Click the icon above to disable the mouse.
B111: You can enable the mouse again at any time by using the shortcut: CTRL + Q (See reminder on the top of each worksheet in cell M3)
A115: 2. Using CTRL Shortcuts
A119: x | B119: Excel uses two primary keys for shortcuts: ALT and CTRL. We will introduce you to the ALT Shortcuts in later lessons.
B120: Now we will focus on the CTRL Shortcuts:
B122: To use the CTRL Shortcuts: Press and Hold CTRL then (while still pressing CTRL) tap another key.
B123: Example: Press and Hold CTRL, then tap C to Copy.
B125: We will identify CTRL shortcuts as (CTRL + C); the + indicating to press and hold the first key.
B126: Having trouble? In the | I126: you'll find a visual demonstration of the CTRL Shortcut.
L135: Source: https://commons.wikimedia.org/wiki/File:ANSI_Keyboard_Layout_Diagram_with_Form_Factor.svg
L136: Author: Rumudiez
A146: 3. CTRL & The "Must-Use" Shortcuts
A151: x | B151: This tutorial is filled with shortcuts. If you feel overwhelmed, focus on these shortcuts first:
B153: The CTRL Shortcuts
B154: CTRL + S | D154: Save Workbook
B155: CTRL + P | D155: Print
B156: CTRL + N | D156: New Workbook
B157: CTRL + O | D157: Open Workbook
B158: CTRL + C | D158: Copy
B159: CTRL + X | D159: Cut
B160: CTRL + V | D160: Paste
B161: CTRL + Z | D161: Undo
B163: Other "Must-Use" Shortcuts
B164: We will practice these shortcuts in future lessons.
B165: Arrow Keys | D165: Navigate Cells
B166: CTRL + Arrow Keys | D166: "Jump" to Next Cell (see below)
B167: SHIFT + Arrow Keys | D167: Select Arrays of Cells
B169: CTRL + TAB | D169: Cycle to Next Workbook
B170: ALT + TAB | D170: Cycle to Next Program (Windows shortcut, not Excel specific)
B171: CTRL + Page Up | D171: Go to Previous Worksheet
B172: CTRL + Page Down | D172: Go to Next Worksheet
B174: F2 | D174: Edit Cell
B175: F4 | D175: Anchor Cell References
B179: When you're finished, Use CTRL+ Page Down to jump to the next worksheet
A194: x

Sheet Selecting & Navigating
M1: CTRL + PAGE DOWN = Move to Next Worksheet
M2: CTRL + PAGE UP = Move to Previous Worksheet
M3: CTRL + Q to Enable Mouse
A5: 1. Worksheet Navigation
A10: x | B10: Arrow Keys
B11: Instead of using the mouse, you can use the Arrow Keys to navigate.
B12: Follow the path from start to finish by using the Arrow Keys on the keyboard.
C14: Start | D14: x | E14: x | F14: x | G14: x
G15: x
G16: x
G17: x | J17: x | K17: x | L17: x | M17: x | N17: x | O17: Finish
G18: x | J18: x
G19: x | J19: x
G20: x | H20: x | I20: x | J20: x
A22: x | B22: CTRL
B23: Next, follow the same path again, but this time hold down the CTRL key while following the path. CTRL allows you to skip to the last populated cell in a series.
B24: Use CTRL for lightning fast navigation within Excel.
B26: Try navigating the new path below. CTRL also allows you to skip to the next nonblank cell.
C28: Start | G28: x
J31: x | O31: Finish
G34: x | J34: x
A36: x | B36: Enter/Tab Navigation
B37: Excel makes it easy to enter data or formulas in adjacent cells.
B38: When you finish entering data into a cell, you can use TAB to move to the cell to the right or ENTER to move down a cell.
B39: Actually, ENTER is a bit more complicated. ENTER moves to the cell directly below the first cell in the range you are editing, which may not necessarily be the currently selected cell.
B40: If you enter several values in a row using TAB, once you hit ENTER you will return to cell directly below the original cell where you first hit TAB.
B42: Try this below:
B43: Use TAB to go from A to D. Once you reach the end use ENTER to start the next row.
C45: a | D45: b | E45: c | F45: d
C46: e | D46: f | E46: g | F46: h
B48: Now, try moving in the reverse direction (Up or to the Left) by holding SHIFT while using ENTER/TAB.
A50: x | B50: Other Navigation
B51: Try each of these shortcuts:
B52: Home | D52: Move to Beginning of Row
B53: Ctrl + Home | D53: Move to First Cell in Worksheet
B54: Ctrl + End | D54: Move to Last Used Cell in Worksheet
B55: Page Up / Down | D55: Scroll Up / Down One Page
A59: 2. Selecting Cells
A64: x | B64: CTRL
B65: If you are using the mouse, you can select non-continuous ranges of cells by holding down CTRL and clicking the desired cells.
A73: x | B73: SHIFT
B74: You can use the SHIFT key in combination with any of the navigation commands in the previous section to select that range of cells.
B75: Try it now: Hold down SHIFT and use the Arrows to select a range of cells.
C77: Start | D77: x | E77: x | F77: x | G77: x
G78: x
G79: x
G80: x | J80: x | K80: x | L80: x | M80: x | N80: x | O80: Finish
G81: x | J81: x
G82: x | J82: x
G83: x | H83: x | I83: x | J83: x
B85: Notice that you can't select the entire path at once by using the SHIFT key. The SHIFT key will only select rectangular blocks of cells.
A87: x | B87: CTRL + SHIFT
B88: Use CTRL with SHIFT and the ARROW Keys to quickly select large arrays of data.
B89: Play around with SHIFT and CTRL + SHIFT in the data set below.
C91: Type | D91: # Sold | E91: Remaining Inventory | F91: Ave Price
C92: Sedan | D92: 23 | E92: 67 | F92: 15000
C93: Truck | D93: 45 | E93: 55 | F93: 22000
C94: SUV | D94: 56 | E94: 44 | F94: 24500
C95: Coupe | D95: 40 | E95: 60 | F95: 13000
A97: x | B97: Other Selection Shortcuts
B98: Try each of these in the data set above.
B99: CTRL + A | D99: Select All Cells in Range. Use this shortcut twice to select the entire worksheet.
B100: CTRL + SHIFT + 8 (*) | D100: Select Data Region Surrounding the Cell.
B101: CTRL + Space | D101: Select Entire Column
B102: SHIFT + Space | D102: Select Entire Row
B104: You can also use SHIFT in conjunction with any of the navigation shortcuts in section 1.4 above:
B105: SHIFT + Home | D105: Select to the Beginning of the Row
B106: SHIFT + Ctrl + Home | D106: Select to First Cell in Worksheet
B107: SHIFT + Ctrl + End | D107: Select to Last Used Cell in Worksheet
B108: SHIFT + Page Up / Down | E108: Select Up / Down One Page
A110: x | B110: Drop Down Lists and Filters
B111: Drop Down Lists allow you to define a cell value by choosing one from a list.
B112: Filters allow you to filter data so only rows matching your criteria are shown.
B113: You don't need the mouse to work with Drop Down Lists or Filters.
B114: Just select the cell with the Drop Down Arrow and use ALT + Down Arrow to activate the Drop Down.
B115: Next, use the arrow keys to select the desired item and hit ENTER to save changes (or ESC to exit without saving).
B117: Try this below:
B119: 1. Data Validation | E119: 2. Filter
B120: A | E120: Name | F120: Age
E121: Steve | F121: 33
E122: Amy | F122: 49
E123: Marco | F123: 21
B127: When you're finished, Use CTRL+ Page Down to jump to the next worksheet
A142: x

Sheet Copying & Pasting
M1: CTRL + PAGE DOWN = Move to Next Worksheet
M2: CTRL + PAGE UP = Move to Previous Worksheet
M3: CTRL + Q to Enable Mouse
A5: 1. Copy & Pasting Basics
A10: x | B10: Copy, Cut, and Paste
B11: Copying (CTRL+ C) copies the contents of a cell or cells. The original cell(s) remain unchanged.
B12: Cutting (CTRL + X) moves a cell or cells. After pasting, The original cell(s) are erased.
B13: Pasting (CTRL + V) pastes the copied or cut cell(s).
B16: Practice Copying, Cutting, and Pasting Below:
C17: Cells to Copy | E17: Copy & Paste <<Here>> | G17: Cells to Cut | I17: Cut & Paste <<Here>>
C18: 1 | G18: 1
C19: 3 | G19: 3
C20: 5 | G20: 5
C21: 7 | G21: 7
C22: 9 | G22: 9
C23: 11 | G23: 11
C24: 13 | G24: 13
C25: 15 | G25: 15
C26: 17 | G26: 17 | R26: =IF(AND(SUM(E18:E26)=81,ISERROR(I18)),"Complete!","") -> 
A30: 2. Paste Special
A35: x | B35: Paste Special (CTRL + ALT + V)
B37: When you Copy & Paste in Excel, you copy every aspect of the cell: formulas, formats, etc.
B38: Alternatively, when you use Paste Special (CTRL + ALT + V) you choose which aspects of the cell to paste.
B39: You can chose to only paste Values, Formats, Comments and so on.
B41: To activate the Paste Special Menu: Copy (CTRL + C) a cell or range of cells, go to the area where you want to Paste, but instead of Pasting as usual by using CTRL + V…
B42: Use CTRL + ALT + V (hold down CTRL and ALT and tap V) to activate the Paste Special Menu.
B44: Here is the Paste Special Menu:
B45: We highlighted the most important
B46: menu options:
D54: Ignore These
B62: Notice the underlined letters? You can select an option simply by tapping the letter key corresponding to the underlined letter.
B64: Hint: Memorize Paste Values and number formats (CTRL + ALT + V > U) as there is a good chance you will use it over and over again.
A66: x | B66: Paste Values
C67: Paste Values (CTRL + ALT + V > V) allows you to paste the output of a cell, but not the format or any other features.
C68: Select the black area (using the navigation shortcuts) and use Paste Values to paste the Taj Mahal to the right.
L69: Paste Here
C70: !
C71: /^\
C72: / \
C73: | | ( ) | |
C74: /^\ | /^\ \ / /^\ | /^\
C75: |O| /^\ ( )|-----|( ) /^\ |O|
C76: |_| |-| |^-^|---||-----||---|^-^| |-| |_|
C77: |O| |O| |/^\|/^\|| | ||/^\|/^\| |O| |O|
C78: |-| |-| ||_|||_||| /^\ |||_|||_|| |-| |-|
C79: |O| |O| |/^\|/^\||( )||/^\|/^\| |O| |O|
C80: |-| |-| ||_|||_|||| ||||_|||_|| |-| |-|
C81: |O| |_|----|___|___|||___|||___|_|_| |O| |O|
C82: |_| |_|
C83: /_______________________________________\
C84: __|_______________________________________|___|
C87: Now try a more practical exercise.
C88: Each month you prepare a spreadsheet that reflects the past month's sales.
C89: After successfully updating the spreadsheet, you value paste that month's results into a historical results section to maintain a record.
C91: Use Paste Values (CTRL + ALT + V > V) to paste the result of formulas, but not the actual formula itself.
L93: Historical Results
F94: Sales | L94: Jan | M94: Feb | N94: Mar | O94: April
E95: Shirts | F95: =SUM(AI95:AM95) -> 251344.734 | L95: 300178.6205 | M95: 260990.5014 | N95: 267147.532 | O95: Paste Here | AI95: =AQ95*100000 -> 12630.07559 | AJ95: =AR95*100000 -> 80180.05732 | AK95: 83177.89406 | AL95: 23171.06119 | AM95: 52185.64587 | AQ95: =RAND() -> 0.1263007559 | AR95: =RAND() -> 0.8018005732 | AS95: =RAND() -> 0.8317789406 | AT95: 0.2317106119 | AU95: 0.5218564587
E96: Pants | F96: =SUM(AI96:AM96) -> 265841.0206 | L96: 239268.554 | M96: 235125.962 | N96: 250529.7072 | O96: Paste Here | AI96: =AQ96*100000 -> 62057.05727 | AJ96: 86747.04999 | AK96: 90733.53882 | AL96: 8699.046965 | AM96: 17604.32758 | AQ96: =RAND() -> 0.6205705727 | AR96: 0.8674704999 | AS96: 0.9073353882 | AT96: 0.08699046965 | AU96: 0.1760432758
E97: Socks | F97: =SUM(AI97:AM97) -> 340184.9447 | L97: 262871.1446 | M97: 110573.9328 | N97: 286897.3088 | O97: Paste Here | AI97: =AQ97*100000 -> 76606.45061 | AJ97: 84054.39991 | AK97: 85234.61469 | AL97: 74886.43666 | AM97: 19403.04283 | AQ97: =RAND() -> 0.7660645061 | AR97: 0.8405439991 | AS97: 0.8523461469 | AT97: 0.7488643666 | AU97: 0.1940304283
E98: Shoes | F98: =SUM(AI98:AM98) -> 180995.1276 | L98: 320598.3971 | M98: 292124.0489 | N98: 306706.0974 | O98: Paste Here | AI98: =AQ98*100000 -> 17787.17907 | AJ98: 66356.26035 | AK98: 38516.37822 | AL98: 49943.20727 | AM98: 8392.102676 | AQ98: =RAND() -> 0.1778717907 | AR98: 0.6635626035 | AS98: 0.3851637822 | AT98: 0.4994320727 | AU98: 0.08392102676
E99: Watches | F99: =SUM(AI99:AM99) -> 255042.7677 | L99: 304541.2596 | M99: 270514.467 | N99: 357542.9571 | O99: Paste Here | AI99: =AQ99*100000 -> 82028.03517 | AJ99: 4733.398822 | AK99: 75653.6456 | AL99: 70242.58226 | AM99: 22385.10583 | AQ99: =RAND() -> 0.8202803517 | AR99: 0.04733398822 | AS99: 0.756536456 | AT99: 0.7024258226 | AU99: 0.2238510583
C101: Notice how the Sales values are no longer nicely formatted? Below we'll learn to use Paste Values and Number Formats (CTRL + ALT + V > U) to paste both the values and number formatting.
A103: x | B103: Paste Formats
C104: Paste Formats (CTRL + ALT + V > T) to see the hidden message. T because the T in formats is underlined.
L105: Paste Here
L106: Boot | M106: best | N106: Spreadsheet | O106: to | P106: Excel! | Q106: to | R106: best
L107: Spreadsheet | M107: way | N107: to | O107: way | P107: learn | Q107: way | R107: to
L108: learn | M108: Boot | N108: Spreadsheet | O108: is | P108: best | Q108: learn | R108: way
L109: way | M109: learn | N109: Camp | O109: way | P109: to | Q109: Boot | R109: best
L110: Excel! | M110: best | N110: way | O110: is | P110: Spreadsheet | Q110: Camp | R110: Boot
L111: Boot | M111: Spreadsheet | N111: Camp | O111: best | P111: the | Q111: Spreadsheet | R111: Camp
L112: learn | M112: learn | N112: to | O112: Boot | P112: Boot | Q112: best | R112: to
L113: Camp | M113: Excel! | N113: Spreadsheet | O113: is | P113: learn | Q113: Camp | R113: way
L114: to | M114: to | N114: Excel! | O114: best | P114: Boot | Q114: Excel! | R114: Boot
L115: is | M115: learn | N115: Boot | O115: Boot | P115: Spreadsheet | Q115: is | R115: Excel!
L116: learn | M116: best | N116: Excel! | O116: Camp | P116: way | Q116: learn | R116: is
C119: Returning to our monthly sales example, use Paste Formats (CTRL + ALT + V > T) to update the cell formatting in the historical results section.
L121: Historical Results
F122: Sales | L122: Jan | M122: Feb | N122: Mar | O122: April
E123: Shirts | F123: =F95 -> 251344.734 | L123: 300178.6205 | M123: 260990.5014 | N123: 267147.532 | O123: 269310.3619
E124: Pants | F124: =F96 -> 265841.0206 | L124: 239268.554 | M124: 235125.962 | N124: 250529.7072 | O124: 277665.3383
E125: Socks | F125: =F97 -> 340184.9447 | L125: 262871.1446 | M125: 110573.9328 | N125: 286897.3088 | O125: 287930.8932
E126: Shoes | F126: =F98 -> 180995.1276 | L126: 320598.3971 | M126: 292124.0489 | N126: 306706.0974 | O126: 259002.6486
E127: Watches | F127: =F99 -> 255042.7677 | L127: 304541.2596 | M127: 270514.467 | N127: 357542.9571 | O127: 300641.4599
A129: x | B129: Paste Values and Number Formats
C130: Paste Values and number format (CTRL + ALT + V > U) allows you to paste the output of a cell, as well as the original number formatting.
C131: Use it in our monthly sales example:
L133: Historical Results
F134: Sales | L134: Jan | M134: Feb | N134: Mar | O134: April
E135: Shirts | F135: =F95 -> 251344.734 | L135: 300178.6205 | M135: 260990.5014 | N135: 267147.532 | O135: Paste Here
E136: Pants | F136: =F96 -> 265841.0206 | L136: 239268.554 | M136: 235125.962 | N136: 250529.7072 | O136: Paste Here
E137: Socks | F137: =F97 -> 340184.9447 | L137: 262871.1446 | M137: 110573.9328 | N137: 286897.3088 | O137: Paste Here
E138: Shoes | F138: =F98 -> 180995.1276 | L138: 320598.3971 | M138: 292124.0489 | N138: 306706.0974 | O138: Paste Here
E139: Watches | F139: =F99 -> 255042.7677 | L139: 304541.2596 | M139: 270514.467 | N139: 357542.9571 | O139: Paste Here
A142: x | B142: Paste Widths (CTRL + ALT + V > W) is also useful. Paste Widths allows you to paste column widths.
C143: Try copying column U and pasting the column width into column V.
C144: Use CTRL + Z to undo this change.
B146: Skip Blanks
A147: x | B147: Skip Blanks will only copy and paste non-blank cells.
B148: Try it below
C150: Discount Rate | E150: Paste Here While Skipping Blanks
C151: 0.054 | Z151: 0.054 | AA151: =Z151=E151 -> FALSE
C152: 0.052 | Z152: 0.052 | AA152: =Z152=E152 -> FALSE
E153: Do Not Overwrite This
C154: 0.043 | Z154: 0.043 | AA154: =Z154=E154 -> FALSE
E155: Do Not Overwrite This
C156: 0.068 | Z156: 0.068 | AA156: =Z156=E156 -> FALSE
C157: 0.062 | R157: =IF(COUNTIF(AA152:AA157,"=false")=0,"Complete!","") ->  | Z157: 0.062 | AA157: =Z157=E157 -> FALSE
A160: x | B160: Transpose
B161: Transpose allows you to paste a vertical series horizontally or vis-a-versa. In other words, instead of appearing top to bottom the data will appear left to right.
E163: Paste Here
C164: CTRL | Z164: CTRL | AA164: + | AB164: ALT | AC164: + | AD164: V | AE164: + | AF164: E | AG164: To | AH164: Paste | AI164: Me | AJ164: Sideways
C165: + | Z165: =Z164=E164 -> FALSE | AA165: =AA164=F164 -> FALSE | AB165: FALSE | AC165: FALSE | AD165: FALSE | AE165: FALSE | AF165: FALSE | AG165: FALSE | AH165: FALSE | AI165: FALSE | AJ165: FALSE
C166: ALT
C167: +
C168: V
C169: +
C170: E
C171: To
C172: Paste
C173: Me
C174: Sideways | R174: =IF(COUNTIF(Z165:AJ165,"=false")=0,"Complete!","") -> 
A178: 3. Exercise
A183: x | B183: Combine your knowledge from the previous sections to complete this simple exercise.
B184: Jump from cell to cell, following the arrow direction. At each "jump", follow the directions.
B186: Use the following shortcuts:
B187: CTRL
B188: SHIFT
B189: Arrow Keys
B190: CTRL + C
B191: CTRL + V
C193: START | AJ193: Copy This
BQ199: =AJ255="copy this" -> FALSE
C200: =IF(COUNTIF(BQ199:BQ206,"=false")=0,"Finished!","") ->  | BF200: Paste Here | BQ200: =BF200="Paste Here" -> TRUE
BF201: Paste Here | BQ201: =BF201="Paste Here" -> TRUE
B202: When you're finished, Use CTRL+ Page Down to jump to the next worksheet | BF202: Paste Here | BQ202: TRUE
BF203: Paste Here | BQ203: TRUE
BF204: Paste Here | BQ204: TRUE
BF205: Paste Here | BQ205: TRUE
BF206: Paste Here | BQ206: TRUE
A217: x
BF249: Copy This
BF250: Copy This
BF251: Copy This
BF252: Copy This
BF253: Copy This
BF254: Copy This
AJ255: Paste Here | BF255: Copy This

Sheet Nav 1.
M1: CTRL + PAGE DOWN = Move to Next Worksheet
M2: CTRL + PAGE UP = Move to Previous Worksheet
M3: CTRL + Q to Enable Mouse
AH11: =Nav_IsStarted -> TRUE
B16: Start Here>>>>> | C16: X
C17: x
C18: x
C19: X | D19: x | G19: x | H19: X
H20: x
H21: x
H22: X | I22: x | J22: x | K22: X
K23: x
K25: x
K27: x
K29: x
K31: x
E32: X | F32: x | H32: x | I32: x | J32: x | K32: X
E33: x
E34: x
E35: x
E36: X | F36: x | H36: x | I36: x | J36: X
J37: x | M37: =IF(M41="draw bridge","Go to Next Sheet","") -> 
J38: x
J39: x
J40: x | AB40: Select Draw Bridge from Drop Down
J41: X | K41: x | L41: x | M41: Select Draw Bridge from Drop Down | AB41: Draw Bridge
AB42: Swim
AB43: Storm Gates
AB44: Turn Back
M46: =IF(M41="draw bridge","Go to Next Sheet","") -> 

Sheet Nav 2. (hidden)
M1: CTRL + PAGE DOWN = Move to Next Worksheet
M2: CTRL + PAGE UP = Move to Previous Worksheet
M3: CTRL + Q to Enable Mouse
AJ11: =Nav_IsStarted -> TRUE
A14: <<Start Here>>
A15: =AJ15 -> Copy This | B15: x | C15: x | D15: x | E15: x | F15: x | G15: x | H15: x | I15: Paste Here | AJ15: Copy This | AR15: Done
I16: x
I17: x
I18: x
I19: x
I20: x
I23: x
I24: x
D25: Value Paste | E25: x | F25: x | G25: x | H25: x | I25: =AR25 -> Copy This | AH25: Value Paste | AM25: Paste as Values! | AR25: Copy This

Sheet Formatting I
J1: CTRL + PAGE DOWN = Move to Next Worksheet
J2: CTRL + PAGE UP = Move to Previous Worksheet
J3: CTRL + Q to Enable Mouse
A5: 1. Simple Formatting
A10: x | B10: It's vital to format your spreadsheets to properly communicate your results to your audience.
B11: But let's face it… After spending hours preparing data, who wants to spend time formatting?
B12: The next several sections will cover huge time saving formatting shortcuts.
B14: Complete the shortcut exercises below. Try to find at least one new shortcut to incorporate in your work.
B16: For each item below, apply the appropriate format to the unformatted cells.
B18: Format Type | C18: Shortcut | D18: Unformatted | E18: Formatted | F18: Memorization tricks
B20: Bold | C20: CTRL + B | D20: Text | E20: Text | F20: B for Bold
B21: Italic | C21: CTRL + I | D21: Text | E21: Text | F21: I for Italic
B22: Underline | C22: CTRL + U | D22: Text | E22: Text | F22: U for Underline
B24: Apply General Format | C24: CTRL + SHIFT + ~ | D24: 2036-02-27T07:59:59.712 | E24: 2036-02-27T07:59:59.712
B25: Apply Number Format | C25: CTRL + SHIFT + ! | D25: 2036-02-27T07:59:59.712 | E25: 49732.33333
B26: Apply Time Format | C26: CTRL + SHIFT + @ | D26: 2036-02-27T07:59:59.712 | E26: 49732.33333 | F26: @ is the symbol for "at", as in "meet at 3pm"
B27: Apply Date Format | C27: CTRL + SHIFT + # | D27: 2036-02-27T07:59:59.712 | E27: 2036-02-27T07:59:59.712
B28: Apply Currency Format | C28: CTRL + SHIFT + $ | D28: 2036-02-27T07:59:59.712 | E28: 49732.33333 | F28: $ for Currency Format
B29: Apply Percentage Format | C29: CTRL + SHIFT + % | D29: 2036-02-27T07:59:59.712 | E29: 49732.33333 | F29: % for percentage
B30: Apply Scientific Format | C30: CTRL + SHIFT + ^ | D30: 2036-02-27T07:59:59.712 | E30: 49732.33333 | F30: ^ Is the symbol for an exponent. You need an exponent for scientific notation
B32: Add Outline Border | C32: CTRL + SHIFT + & | D32: Text | E32: Text
B34: Remove Borders | C34: CTRL + SHIFT + _ | D34: Text | E34: Text
A37: x | B37: Repeat Previous Format
B38: F4 tells Excel to repeat the previously applied format.
B39: You can apply a format, continue working in your spreadsheet, then, when you are ready, you can use F4 to reapply that same formatting.
B41: Let's walk through an example:
B43: 1. Underline (CTRL + U)
B44: 2. Bold (CTRL + B) | D44: 3. Type any text | G44: 4. Reapply formatting (F4)
B45: Bold & Underline This Text | G45: Reapply Format
B47: Notice that in step 4, the F4 shortcut applies the last formatting used: Bold Formatting. It does not apply Underline Formatting even though it was used on the same cell.
B49: This shortcut isn't very useful with simple formatting, such as, applying Bold text, but it is very useful when applying multiple formatting changes with the
B50: Cell Formatting Menu (CTRL + 1) that you will be introduced to in the next worksheet.
B53: When you're finished, Use CTRL+ Page Down to jump to the next worksheet
A68: x

Sheet Alt Shortcuts, Menus, Formats
M1: CTRL + PAGE DOWN = Move to Next Worksheet
M2: CTRL + PAGE UP = Move to Previous Worksheet
M3: CTRL + Q to Enable Mouse
A5: 1. Introduction to ALT Shortcuts
A10: x | B10: ALT Shortcuts are quite a bit different than CTRL shortcuts.
B11: They are best introduced with an example:
B13: Use the ARROW Keys to select this cell:
B14: Text
B15: 1. Tap (and release) the ALT Key.
B16: Notice the letters and numbers that appear on the top of the screen?
B17: These letters and numbers correspond to the Ribbon Menus and Commands.
B18: By tapping the ALT key, virtually every single Excel feature is just a couple keystrokes away.
B19: 2. Tap the 'H' Key.
B20: This brings up the Home Ribbon.
B21: 3. Tap the '6' Key.
B22: This indents the text in the selected cell(s).
B24: We abbreviate the shortcut as ALT > H > 6
B26: Now, undo the indent with the Undo Shortcut (Ctrl + Z)
A30: 2. Formatting - The Home Ribbon
A35: x | B35: The Home Ribbon contains most of the cell formatting options you need:
B42: From the previous section you know that ALT > H > 6 indents text. Instead of 6, you can use W to Wrap Text, or AC to Align Center, etc.
B44: Practice using the Home Ribbon Commands below. If you can't find the command, scroll down for the appropriate keystrokes.
B48: Practice:
B49: Apply Bottom Border | C49: Text | F49: Text
B51: Allign Center | C51: Text | F51: Text
B53: Wrap Text | C53: Long String of Text | F53: Long String of Text
B55: Merge and Center | C55: text1 | D55: text2 | F55: text1
B57: Add Digit After Decimal | C57: 33 | F57: 33
B59: Solutions:
B60: ALT > H > B > O
B61: ALT > H > AC
B62: ALT > H > W
B63: ALT > H > M
B64: ALT > H > 0
A66: x | B66: Custom Shortcuts & Merge Cells
B67: As you may have noticed, while these shortcuts don't require memorization, they take several keystrokes to activate.
B68: You can actually program custom shortcuts. There are several ways to do this, but if you have the KeyRocket App it's very easy:
B78: In the image above, we've assigned the shortcut CTRL + M to the Merge and Center Command.
A82: 3. Menus
A87: x | B87: Many of the Ribbon commands activate pop-up menus:
D88: Sort Menu
B102: Using the keyboard to navigate these menus can save you quite a bit of time.
B103: Luckily that's very easy.
A108: x | B108: Navigating Menus
B109: When you activate a menu, a menu cursor appears (see above).
B110: You can move the cursor with the Arrow Keys or by pressing the TAB key (SHIFT + TAB moves in reverse)
B112: In general, The Arrow Keys allow you to navigate within a section, while the TAB key allows you to cycle between sections.
B113: That being said, each menu is a little different and you will explore on your own.
A115: x | B115: Menu Options
B116: Within Menus, you will find several different menu options:
B118: Check Boxes | E118: Entry Boxes | G118: Drop Downs
A128: x | B128: Activating and Saving Menu Options
B129: Check Boxes - When a Check Box is activate, use SPACE to check or uncheck the checkbox. Also,
B130: Whenever you see an underlined letter, you can type the letter (or ALT + the letter if you are in another section of the menu) to check or uncheck that option.
F132: ALT + K will select the Strikethrough option
B136: Entry Boxes - When the Entry Box is selected, you can type your entry directly into the box. Alternatively, you can use the Up / Down Arrows (when available).
B137: Use ENTER or TAB to save your selection
B138: Drop Downs - When the drop down menu is selected, simply use the Up / Down Arrows to activate the drop down and make your selection.
B139: Use ENTER or TAB to save your selection
B141: ESC exits menu without saving changes
B142: ENTER exits menu and saves changes
B144: We will practice navigating a menu in the next section.
A148: 4. Cell Format Menu & Repeat Formatting
A152: x | B152: Practice Menu Navigation
B153: Use CTRL + 1 (hold down CTRL and press 1) to bring up the Cell Formatting Menu.
B154: Practice using TAB, the Arrow Keys, and the other Keyboard Commands to navigate this Menu.
B156: You can see all the formatting options available to you. Most of these options are available directly from the Home Ribbon.
B157: With that in mind, you generally only need to use the Cell Formatting Menu for very complex or specific formatting.
A160: x | B160: F4 to Repeat
B161: As discussed in the previous worksheet, F4 will repeat the previous format.
B162: When you apply changes made to the Cell Formatting Menu, all of the changes made in one session are included in the "previous format" with the F4 shortcut.
B163: So, you can make a large number of formatting changes within the Cell Formatting Menu and then use F4 to apply all of those changes to other cells.
B165: Try it Below:
B167: Use the Cell Formatting Menu to apply several different formats to the cell below:
B168: Text1
B170: Then use F4 to reapply the formatting
B171: Text2
B175: Use CTRL+ Page Down to jump to the next worksheet
A190: x

Sheet Rows, Columns, Sheets
M1: CTRL + PAGE DOWN = Move to Next Worksheet
M2: CTRL + PAGE UP = Move to Previous Worksheet
M3: CTRL + Q to Enable Mouse
A5: 1. Inserting & Deleting - Rows, Columns, and Cells
A10: x | B10: The Inserting and Deleting Shortcuts are very easy to remember. Use CTRL and + to add or - to delete.
B11: CTRL + + | C11: Inserts Rows, Columns, or Cells
B12: CTRL + - | C12: Deletes Rows, Columns, or Cells
B14: These shortcuts activate the Insert and Delete Dialog Boxes:
B25: When you chose 'Entire' Row or Column, you insert or delete entire rows or columns.
B26: When you "Shift cells", you insert (or delete) a single cell and "shift" the remaining cells in that row or column to make room for the new cell.
B28: If you select a single row (or column) before using CTRL + + or CTRL + - you only affect a single row (or column).
B29: However, you can select multiple rows (or columns) to insert or delete the number of rows (or columns) that you've selected.
B31: Practice Inserting and Deleting:
C33: <<1. Delete Row>>
J34: <<2. Insert Column>>
C36: <Insert 2 Rows>
C37: <Insert 2 Rows>
E39: A | F39: B | G39: C | H39: D | I39: E | J39: F
C40: <<Shift Cells Right>> | D40: A | E40: B | F40: C | G40: D | H40: E | I40: F
A42: x | B42: Skip the Dialog Box
B43: You can skip the Dialog Box by selecting entire rows or columns before using the Insert / Delete shortcuts.
B44: This will insert or delete the number of rows or columns that you have selected.
C45: CTRL + SPACE | D45: Select Entire Column
C46: SHIFT + SPACE | D46: Select Entire Row
C48: <<1. Select Entire Row. 2. Delete This Row>>
B50: Select These 3 Rows, and use CTRL + + to add 3 new rows:
C51: 1
C52: 2
C53: 3
A57: 2. Hiding & Grouping - Rows and Columns
A62: x | B62: This section will introduce you to the shortcuts for hiding and grouping rows and columns.
B63: Hide & Unhide
B64: Hide Columns | D64: CTRL + 0
B65: Hide Rows | D65: CTRL + 9
B67: Unhide Columns | D67: CTRL + SHIFT + 0
B68: Unhide Rows | D68: CTRL + SHIFT + 9
A78: x | B78: Grouping & Ungrouping
B79: Group Rows or Columns | D79: ALT + SHIFT + →
B80: UnGroup Rows or Columns | D80: ALT + SHIFT + ←
B82: You might find the ALT Shortcuts are easier to remember:
B83: Group Rows or Columns | D83: ALT > A > G > G
B84: UnGroup Rows or Columns | D84: ALT > A > U > U
B85: G for Group, U for UnGroup
B88: <<Hide This Row>>
B90: <<Unhide the Row Below>>
B93: Group
B94: These
B95: Rows
B97: UnGroup
B98: These
B99: Rows
A104: 3. Rows, Columns, Sheets - ALT Shortcuts
A109: x | B109: Many of the Rows, Columns, and Sheets Shortcuts are only available as ALT Shortcuts
B111: The Insert, Delete, and Format Ribbon Submenus:
C112: ALT > H > I | E112: ALT > H > D | I112: ALT > H > O
A124: x | B124: There are a couple of notable commands:
B125: Insert Sheet | D125: ALT > H > I > S
B126: Delete Sheet | D126: ALT > H > D > S
B128: Column Width | D128: ALT > H > O > W
B129: Autofit Column Width | D129: ALT > H > O > I
B130: Rename Sheet | D130: ALT > H > O > R
B131: Tab Color | D131: ALT > H > O > T
B139: Use CTRL+ Page Down to jump to the next worksheet
A154: x

Sheet Exs. Rows,Cols,Sheets
N1: CTRL + PAGE DOWN = Move to Next Worksheet
N2: CTRL + PAGE UP = Move to Previous Worksheet
N3: CTRL + Q to Enable Mouse
A6: 1. Rows, Columns, & Sheets Exercises
A10: x | C10: Use the shortcuts learned on the previous sheets to complete these exercises.
D13: Delete These 2 Rows (SHIFT + SPACE and CTRL + -)
B15: Delete Me | C15: Delete Me | D15: Delete Me | E15: Delete Me | F15: Delete Me | G15: Delete Me | H15: Delete Me | I15: Delete Me | J15: Delete Me | K15: Delete Me | L15: Delete Me | M15: Delete Me | N15: Delete Me | O15: Delete Me | P15: Delete Me | Q15: Delete Me | R15: Delete Me | S15: Delete Me | T15: Delete Me | U15: Delete Me | V15: Delete Me | W15: Delete Me | X15: Delete Me | Y15: Delete Me | Z15: Delete Me
B16: Delete Me | C16: Delete Me | D16: Delete Me | E16: Delete Me | F16: Delete Me | G16: Delete Me | H16: Delete Me | I16: Delete Me | J16: Delete Me | K16: Delete Me | L16: Delete Me | M16: Delete Me | N16: Delete Me | O16: Delete Me | P16: Delete Me | Q16: Delete Me | R16: Delete Me | S16: Delete Me | T16: Delete Me | U16: Delete Me | V16: Delete Me | W16: Delete Me | X16: Delete Me | Y16: Delete Me | Z16: Delete Me
I17: Delete Me | J17: Delete Me
I18: Delete Me | J18: Delete Me
D19: Delete these 2 columns (CTRL + SPACE and CTRL + -) | I19: Delete Me | J19: Delete Me
I20: Delete Me | J20: Delete Me
I21: Delete Me | J21: Delete Me
I22: Delete Me | J22: Delete Me
I23: Delete Me | J23: Delete Me
I24: Delete Me | J24: Delete Me
I25: Delete Me | J25: Delete Me
I26: Delete Me | J26: Delete Me
I27: Delete Me | J27: Delete Me
I28: Delete Me | J28: Delete Me
I29: Delete Me | J29: Delete Me
I30: Delete Me | J30: Delete Me
I31: Delete Me | J31: Delete Me
B34: Add Row Here | C34: Add Row Here | D34: Add Row Here | E34: Add Row Here | F34: Add Row Here | G34: Add Row Here | H34: Add Row Here | I34: Add Row Here | J34: Add Row Here | K34: Add Row Here | L34: Add Row Here | M34: Add Row Here | N34: Add Row Here | O34: Add Row Here | P34: Add Row Here | Q34: Add Row Here | R34: Add Row Here | S34: Add Row Here | T34: Add Row Here | U34: Add Row Here | V34: Add Row Here | W34: Add Row Here | X34: Add Row Here | Y34: Add Row Here | Z34: Add Row Here | AA34: Add Row Here | AB34: Add Row Here | AC34: Add Row Here
O35: Add Column Here
D36: Add Columns and Rows (It's easiest to select a row/column first before using CTRL + +) | O36: Add Column Here
O37: Add Column Here
D38: Use AutoFit (ALT > H > O > I) to make the text in the columns to the right appear entirely in one column. >>>> | O38: Add Column Here
O39: Add Column Here
O40: Add Column Here
O41: Add Column Here
D45: Hide the following 2 rows (SHIFT + SPACE and ALT > H > O > U > R or CTRL + 9)
B47: Hide Me | C47: Hide Me | D47: Hide Me | E47: Hide Me | F47: Hide Me | G47: Hide Me | H47: Hide Me | I47: Hide Me | J47: Hide Me | K47: Hide Me | L47: Hide Me | M47: Hide Me | N47: Hide Me | O47: Hide Me | P47: Hide Me | Q47: Hide Me | R47: Hide Me | S47: Hide Me | T47: Hide Me | U47: Hide Me | V47: Hide Me | W47: Hide Me | X47: Hide Me | Y47: Hide Me | Z47: Hide Me
B48: Hide Me | C48: Hide Me | D48: Hide Me | E48: Hide Me | F48: Hide Me | G48: Hide Me | H48: Hide Me | I48: Hide Me | J48: Hide Me | K48: Hide Me | L48: Hide Me | M48: Hide Me | N48: Hide Me | O48: Hide Me | P48: Hide Me | Q48: Hide Me | R48: Hide Me | S48: Hide Me | T48: Hide Me | U48: Hide Me | V48: Hide Me | W48: Hide Me | X48: Hide Me | Y48: Hide Me | Z48: Hide Me
D50: Find the hidden rows below and unhide them (SHIFT + SPACE and ALT > H > O > U > O or CTRL + 0)
C57: Group the rows so you can hide/unhide them as a group.
C58: This may be the preferred method to hide rows/columns because you can easily see that rows are hidden
C59: Data > Outline > Group (ALT > A > G > G)
B61: Group Me | C61: Group Me | D61: Group Me | E61: Group Me | F61: Group Me | G61: Group Me | H61: Group Me | I61: Group Me | J61: Group Me | K61: Group Me | L61: Group Me | M61: Group Me | N61: Group Me | O61: Group Me | P61: Group Me | Q61: Group Me | R61: Group Me | S61: Group Me | T61: Group Me | U61: Group Me
B62: Group Me | C62: Group Me | D62: Group Me | E62: Group Me | F62: Group Me | G62: Group Me | H62: Group Me | I62: Group Me | J62: Group Me | K62: Group Me | L62: Group Me | M62: Group Me | N62: Group Me | O62: Group Me | P62: Group Me | Q62: Group Me | R62: Group Me | S62: Group Me | T62: Group Me | U62: Group Me
B63: Group Me | C63: Group Me | D63: Group Me | E63: Group Me | F63: Group Me | G63: Group Me | H63: Group Me | I63: Group Me | J63: Group Me | K63: Group Me | L63: Group Me | M63: Group Me | N63: Group Me | O63: Group Me | P63: Group Me | Q63: Group Me | R63: Group Me | S63: Group Me | T63: Group Me | U63: Group Me
B64: Group Me | C64: Group Me | D64: Group Me | E64: Group Me | F64: Group Me | G64: Group Me | H64: Group Me | I64: Group Me | J64: Group Me | K64: Group Me | L64: Group Me | M64: Group Me | N64: Group Me | O64: Group Me | P64: Group Me | Q64: Group Me | R64: Group Me | S64: Group Me | T64: Group Me | U64: Group Me
B65: Group Me | C65: Group Me | D65: Group Me | E65: Group Me | F65: Group Me | G65: Group Me | H65: Group Me | I65: Group Me | J65: Group Me | K65: Group Me | L65: Group Me | M65: Group Me | N65: Group Me | O65: Group Me | P65: Group Me | Q65: Group Me | R65: Group Me | S65: Group Me | T65: Group Me | U65: Group Me
B66: Group Me | C66: Group Me | D66: Group Me | E66: Group Me | F66: Group Me | G66: Group Me | H66: Group Me | I66: Group Me | J66: Group Me | K66: Group Me | L66: Group Me | M66: Group Me | N66: Group Me | O66: Group Me | P66: Group Me | Q66: Group Me | R66: Group Me | S66: Group Me | T66: Group Me | U66: Group Me
B67: Group Me | C67: Group Me | D67: Group Me | E67: Group Me | F67: Group Me | G67: Group Me | H67: Group Me | I67: Group Me | J67: Group Me | K67: Group Me | L67: Group Me | M67: Group Me | N67: Group Me | O67: Group Me | P67: Group Me | Q67: Group Me | R67: Group Me | S67: Group Me | T67: Group Me | U67: Group Me
B68: Group Me | C68: Group Me | D68: Group Me | E68: Group Me | F68: Group Me | G68: Group Me | H68: Group Me | I68: Group Me | J68: Group Me | K68: Group Me | L68: Group Me | M68: Group Me | N68: Group Me | O68: Group Me | P68: Group Me | Q68: Group Me | R68: Group Me | S68: Group Me | T68: Group Me | U68: Group Me
B69: Group Me | C69: Group Me | D69: Group Me | E69: Group Me | F69: Group Me | G69: Group Me | H69: Group Me | I69: Group Me | J69: Group Me | K69: Group Me | L69: Group Me | M69: Group Me | N69: Group Me | O69: Group Me | P69: Group Me | Q69: Group Me | R69: Group Me | S69: Group Me | T69: Group Me | U69: Group Me
B72: Ungroup These Rows. Alt > A > U > U
B74: Ungroup | C74: Ungroup | D74: Ungroup | E74: Ungroup | F74: Ungroup | G74: Ungroup | H74: Ungroup | I74: Ungroup | J74: Ungroup | K74: Ungroup | L74: Ungroup | M74: Ungroup | N74: Ungroup | O74: Ungroup | P74: Ungroup | Q74: Ungroup | R74: Ungroup | S74: Ungroup | T74: Ungroup | U74: Ungroup | V74: Ungroup | W74: Ungroup | X74: Ungroup | Y74: Ungroup | Z74: Ungroup
B75: Ungroup | C75: Ungroup | D75: Ungroup | E75: Ungroup | F75: Ungroup | G75: Ungroup | H75: Ungroup | I75: Ungroup | J75: Ungroup | K75: Ungroup | L75: Ungroup | M75: Ungroup | N75: Ungroup | O75: Ungroup | P75: Ungroup | Q75: Ungroup | R75: Ungroup | S75: Ungroup | T75: Ungroup | U75: Ungroup | V75: Ungroup | W75: Ungroup | X75: Ungroup | Y75: Ungroup | Z75: Ungroup
B76: Ungroup | C76: Ungroup | D76: Ungroup | E76: Ungroup | F76: Ungroup | G76: Ungroup | H76: Ungroup | I76: Ungroup | J76: Ungroup | K76: Ungroup | L76: Ungroup | M76: Ungroup | N76: Ungroup | O76: Ungroup | P76: Ungroup | Q76: Ungroup | R76: Ungroup | S76: Ungroup | T76: Ungroup | U76: Ungroup | V76: Ungroup | W76: Ungroup | X76: Ungroup | Y76: Ungroup | Z76: Ungroup
C80: Use CTRL+ Page Down to jump to the next worksheet
A95: x

Sheet Formatting
M1: CTRL + PAGE DOWN = Move to Next Worksheet
M2: CTRL + PAGE UP = Move to Previous Worksheet
M3: CTRL + Q to Enable Mouse
B20: Format the data below to match the picture.
B21: If you need help, click the HELP buttons off to the side.
B22: 1. Apply Currency Formatting for Revenues, COGS, and Profit.
B23: 2. Change date formatting to Short Date: 3/31/2017.
B24: 3. Autofit the column width in the cells so everything is visible.
B25: 4. Add an underline under the Cost of Goods Sold line.
B26: 5. Bold the column and row headers.
D36: 2012-03-31 | E36: 2012-06-30 | F36: 2012-09-30 | G36: 2012-12-31
C37: Revenues | D37: 50000000 | E37: 55000000 | F37: 60000000 | G37: 58000000
C38: Cost of Goods Sold | D38: 32000000 | E38: 33000000 | F38: 36000000 | G38: 35000000
C39: Profit | D39: =SUM(D37:D38) -> 82000000 | E39: =SUM(E37:E38) -> 88000000 | F39: =SUM(F37:F38) -> 96000000 | G39: =SUM(G37:G38) -> 93000000
B45: Use CTRL+ Page Down to jump to the next worksheet

Sheet Exercise support (hidden)
B3: 1.1
C5: 2012-03-31 | D5: 2012-06-30 | E5: 2012-09-30 | F5: 2012-12-31 | I5: CTRL + 1 to activate Format Menu, Use ALT, Tab, Space, Arrows to navigate. | R5: 2017-03-31 | S5: 2017-06-30 | T5: 2017-09-30 | U5: 2017-12-31
B6: Revenues | C6: 50000000 | D6: 55000000 | E6: 60000000 | F6: 58000000 | I6: Also you can use CTRL + ALT + V to Paste Formats. | Q6: Revenues | R6: 50000000 | S6: 55000000 | T6: 60000000 | U6: 58000000
B7: Cost of Goods Sold | C7: 32000000 | D7: 33000000 | E7: 36000000 | F7: 35000000 | I7: ALT + H + O + I | Q7: Cost of Goods Sold | R7: 32000000 | S7: 33000000 | T7: 36000000 | U7: 35000000
B8: Profit | C8: =SUM(C6:C7) -> 82000000 | D8: =SUM(D6:D7) -> 88000000 | E8: =SUM(E6:E7) -> 96000000 | F8: =SUM(F6:F7) -> 93000000 | I8: CTRL + U | Q8: Profit | R8: =SUM(R6:R7) -> 82000000 | S8: =SUM(S6:S7) -> 88000000 | T8: =SUM(T6:T7) -> 96000000 | U8: =SUM(U6:U7) -> 93000000
I9: CTRL + B
B12: 1.2
B14: Date | C14: D Rate
B15: =B16-1 -> -4 | C15: 0.0483
B16: -3 | C16: 0.0484
B17: -2 | C17: 0.0487
B18: -1 | C18: 0.0486
B19: 00:00:00 | C19: 0.0489
B20: 1900-01-01 | C20: 0.0489
B21: 1900-01-02 | C21: 0.0488
B24: 2.1 | D24: The macro only needs to check the values, not the formats for exercises 2.1, 2.2 and 2.3
B27: Use Date()
B28: Use Vlookup(). Make sure you have the correct TRUE/FALSE indicator to look up the exact EMP ID
B29: Use Vlookup(). Make sure you have the correct TRUE/FALSE indicator to look up the approximate age range
C33: Salary Buckets | K33: Salary Check | M33: Tax by Bracket | U33: Total Tax | W33: Effective Rate | Y33: Effective Rate
B34: Salary | C34: 8925 | D34: 36250 | E34: 87850 | F34: 183250 | G34: 398350 | H34: 400000 | I34: Greater | K34: Check | M34: 0.1 | N34: 0.15 | O34: 0.25 | P34: 0.28 | Q34: 0.33 | R34: 0.35 | S34: 0.396 | Y34: Check
B35: 123318.2241 | C35: 8925 | D35: 27325 | E35: 51600 | F35: 35468.22415 | G35: 0 | H35: 0 | I35: 0 | K35: TRUE | M35: 892.5 | N35: 4098.75 | O35: 12900 | P35: 9931.102762 | Q35: 0 | R35: 0 | S35: 0 | U35: 27822.35276 | W35: 0.2256142833 | Y35: ok
B36: 87017.49 | C36: 8925 | D36: 27325 | E36: 50767.49 | F36: 0 | G36: 0 | H36: 0 | I36: 0 | K36: TRUE | M36: 892.5 | N36: 4098.75 | O36: 12691.8725 | P36: 0 | Q36: 0 | R36: 0 | S36: 0 | U36: 17683.1225 | W36: 0.2032134287 | Y36: ok
B37: 170884.068 | C37: 8925 | D37: 27325 | E37: 51600 | F37: 83034.068 | G37: 0 | H37: 0 | I37: 0 | K37: TRUE | M37: 892.5 | N37: 4098.75 | O37: 12900 | P37: 23249.53904 | Q37: 0 | R37: 0 | S37: 0 | U37: 41140.78904 | W37: 0.2407526314 | Y37: ok
B38: 450000 | C38: 8925 | D38: 27325 | E38: 51600 | F38: 95400 | G38: 215100 | H38: 1650 | I38: 50000 | K38: TRUE | M38: 892.5 | N38: 4098.75 | O38: 12900 | P38: 26712 | Q38: 70983 | R38: 577.5 | S38: 19800 | U38: 135963.75 | W38: 0.3021416667 | Y38: ok
B39: 107939.3175 | C39: 8925 | D39: 27325 | E39: 51600 | F39: 20089.3175 | G39: 0 | H39: 0 | I39: 0 | K39: TRUE | M39: 892.5 | N39: 4098.75 | O39: 12900 | P39: 5625.0089 | Q39: 0 | R39: 0 | S39: 0 | U39: 23516.2589 | W39: 0.2178655512 | Y39: ok
B40: 20189 | C40: 8925 | D40: 11264 | E40: 0 | F40: 0 | G40: 0 | H40: 0 | I40: 0 | K40: TRUE | M40: 892.5 | N40: 1689.6 | O40: 0 | P40: 0 | Q40: 0 | R40: 0 | S40: 0 | U40: 2582.1 | W40: 0.1278963792 | Y40: ok
B41: 93697.8224 | C41: 8925 | D41: 27325 | E41: 51600 | F41: 5847.8224 | G41: 0 | H41: 0 | I41: 0 | K41: TRUE | M41: 892.5 | N41: 4098.75 | O41: 12900 | P41: 1637.390272 | Q41: 0 | R41: 0 | S41: 0 | U41: 19528.64027 | W41: 0.2084214955 | Y41: ok
B42: 200612.16 | C42: 8925 | D42: 27325 | E42: 51600 | F42: 95400 | G42: 17362.16 | H42: 0 | I42: 0 | K42: TRUE | M42: 892.5 | N42: 4098.75 | O42: 12900 | P42: 26712 | Q42: 5729.5128 | R42: 0 | S42: 0 | U42: 50332.7628 | W42: 0.2508958719 | Y42: ok
B43: 75000 | C43: 8925 | D43: 27325 | E43: 38750 | F43: 0 | G43: 0 | H43: 0 | I43: 0 | K43: TRUE | M43: 892.5 | N43: 4098.75 | O43: 9687.5 | P43: 0 | Q43: 0 | R43: 0 | S43: 0 | U43: 14678.75 | W43: 0.1957166667 | Y43: ok
B44: 162835.8621 | C44: 8925 | D44: 27325 | E44: 51600 | F44: 74985.8621 | G44: 0 | H44: 0 | I44: 0 | K44: TRUE | M44: 892.5 | N44: 4098.75 | O44: 12900 | P44: 20996.04139 | Q44: 0 | R44: 0 | S44: 0 | U44: 38887.29139 | W44: 0.2388128198 | Y44: ok
B46: These records should allow you to check if the Checks are working
B47: 162835.8621 | C47: 8925 | D47: 27325 | E47: 51600 | F47: 74985.8621 | G47: 0 | H47: 0 | I47: 0 | K47: TRUE | M47: 892.5 | N47: 4098.75 | O47: 12900 | P47: 20996.04139 | Q47: 70983 | R47: 0 | S47: 0 | U47: 109870.2914 | W47: 0.674730308 | Y47: check
B48: 75000 | C48: 8925 | D48: 27325 | E48: 0 | F48: 0 | G48: 0 | H48: 0 | I48: 0 | K48: FALSE | M48: 892.5 | N48: 4098.75 | O48: 9687.5 | P48: 0 | Q48: 0 | R48: 0 | S48: 0 | U48: 14678.75 | W48: 0.1957166667 | Y48: ok
B51: 2.2
C53: Use date(), year(), month(), day()
C54: Use IF statements
C55: Use IF statements
C56: Use IF statements and date()
B61: Emp ID | C61: Birth Date | E61: Hire Date | F61: 1/1/2014 Age | G61: 1905-07-05 | H61: Proj 2014 | S61: =(DATE(2014,1,1)-P61)/365 -> 114.0821918 | T61: =VLOOKUP(O61,$M$92:$S$141,3,FALSE) ->  | U61: =T61*(1+VLOOKUP(S61,$T$91:$U$97,2,TRUE)) -> 
B62: 1330 | C62: 1982-05-07 | E62: 2027-11-03 | F62: 31.67671233 | G62: 85622.14024 | H62: 92471.91146 | S62: 114.0821918
B63: 1939 | C63: 1963-12-24 | E63: 1992-11-23 | F63: 50.05753425 | G63: 69427.89569 | H63: 72205.01152 | S63: 114.0821918
B64: 1877 | C64: 1957-02-26 | E64: 2010-09-21 | F64: 56.88493151 | G64: 84416.83205 | H64: 87793.50533 | S64: 114.0821918
B65: 1751 | C65: 1976-03-08 | E65: 2014-11-17 | F65: 37.84383562 | G65: 108263.3544 | H65: 114759.1557 | S65: 114.0821918
B66: 1261 | C66: 1980-06-03 | E66: 2032-10-15 | F66: 33.60273973 | G66: 94024.75812 | H66: 99666.24361 | S66: 114.0821918
B67: 1252 | C67: 1958-10-22 | E67: 2011-10-24 | F67: 55.23287671 | G67: 127851.9946 | H67: 132966.0743 | S67: 114.0821918
B68: 1669 | C68: 1958-12-12 | E68: 1982-01-18 | F68: 55.09315068 | G68: 125151.9613 | H68: 130158.0397 | S68: 114.0821918
B69: 1418 | C69: 1984-09-14 | E69: 2023-04-15 | F69: 29.31780822 | G69: 117110.2212 | H69: 126479.0389 | S69: 114.0821918
B70: 1273 | C70: 1965-02-03 | E70: 2004-02-29 | F70: 48.94246575 | G70: 142050.0963 | H70: 149152.6011 | S70: 114.0821918
B71: 1579 | C71: 1976-03-08 | E71: 2013-08-31 | F71: 37.84383562 | G71: 121293.0694 | H71: 128570.6536 | S71: 114.0821918
B72: 1889 | C72: 1971-01-04 | E72: 2013-05-15 | F72: 43.02191781 | G72: 121773.0489 | H72: 127861.7013 | S72: 114.0821918
B73: 1581 | C73: 1971-07-12 | E73: 2010-09-18 | F73: 42.50410959 | G73: 71802.78159 | H73: 75392.92067 | S73: 114.0821918
B74: 1364 | C74: 1959-01-17 | E74: 1985-05-07 | F74: 54.99452055 | G74: 80844.97506 | H74: 84078.77407 | S74: 114.0821918
B75: 1816 | C75: 1982-05-07 | E75: 2014-05-24 | F75: 31.67671233 | G75: 96528.27375 | H75: 104250.5357 | S75: 114.0821918
B76: 1948 | C76: 1957-12-16 | E76: 2001-09-17 | F76: 56.08219178 | G76: 132319.4956 | H76: 137612.2754 | S76: 114.0821918
B77: 1295 | C77: 1955-05-06 | E77: 2003-07-21 | F77: 58.69863014 | G77: 68257.12696 | H77: 70987.41204 | S77: 114.0821918
B78: 1946 | C78: 1960-03-14 | E78: 1998-04-06 | F78: 53.83835616 | G78: 76500.1487 | H78: 79560.15464 | S78: 114.0821918
B79: 1212 | C79: 1957-12-16 | E79: 1989-09-16 | F79: 56.08219178 | G79: 123154.6274 | H79: 128080.8125 | S79: 114.0821918
B80: 1739 | C80: 1971-01-04 | E80: 2016-02-20 | F80: 43.02191781 | G80: 107058.0462 | H80: 112410.9485 | S80: 114.0821918
B81: 1112 | C81: 1957-06-02 | E81: 1990-03-05 | F81: 56.62191781 | G81: 77019.43167 | H81: 80100.20894 | S81: 114.0821918
B82: 1677 | C82: 1956-05-30 | E82: 1987-02-08 | F82: 57.63013699 | G82: 122326.8713 | H82: 127219.9462 | S82: 114.0821918
B83: 1791 | C83: 1974-04-03 | E83: 2000-02-17 | F83: 39.77534247 | G83: 124242.0251 | H83: 131696.5466 | S83: 114.0821918
B84: 1641 | C84: 1957-06-02 | E84: 1999-08-27 | F84: 56.62191781 | G84: 139938.4249 | H84: 145535.9619 | S84: 114.0821918
B85: 1500 | C85: 1985-01-24 | E85: 2007-03-05 | F85: 28.95616438 | G85: 69302.83901 | H85: 77619.17969 | S85: 114.0821918
B86: 1328 | C86: 1957-07-27 | E86: 1980-08-06 | F86: 56.47123288 | G86: 103514.7736 | H86: 107655.3646 | S86: 114.0821918
B87: 1502 | C87: 1976-07-03 | E87: 2027-11-29 | F87: 37.52328767 | G87: 89023.68194 | H87: 94365.10285 | S87: 114.0821918
B88: 1495 | C88: 1960-05-31 | E88: 2004-03-11 | F88: 53.62465753 | G88: 138304.351 | H88: 143836.525 | S88: 114.0821918
B89: 1419 | C89: 1976-07-03 | E89: 2012-07-20 | F89: 37.52328767 | G89: 111265.9057 | H89: 117941.8601 | S89: 114.0821918
B90: 1080 | C90: 1968-01-25 | E90: 2017-02-02 | F90: 45.96712329 | G90: 133283.0275 | H90: 139947.1789 | S90: 114.0821918
B91: 1008 | C91: 1981-01-03 | E91: 2032-11-14 | F91: 33.01643836 | G91: 106682.8762 | H91: 113083.8487 | S91: 114.0821918
B92: 1861 | C92: 1979-03-08 | E92: 2006-12-08 | F92: 34.84383562 | G92: 117245.9971 | H92: 124280.7569 | S92: 114.0821918
B93: 1792 | C93: 1981-09-24 | E93: 2015-12-07 | F93: 32.29315068 | G93: 119891.2436 | H93: 129482.5431 | S93: 114.0821918
B94: 1487 | C94: 1970-04-12 | E94: 2008-02-02 | F94: 43.75342466 | G94: 126235.7858 | H94: 132547.5751 | S94: 114.0821918
B95: 1305 | C95: 1978-08-02 | E95: 2023-08-16 | F95: 35.44109589 | G95: 64643.58442 | H95: 68522.19948 | S95: 114.0821918
B96: 1198 | C96: 1970-10-08 | E96: 2015-05-28 | F96: 43.2630137 | G96: 95090.71744 | H96: 99845.25331 | S96: 114.0821918
B97: 1131 | C97: 1961-07-30 | E97: 2002-05-06 | F97: 52.46027397 | G97: 125608.1204 | H97: 130632.4452 | S97: 114.0821918
B98: 1749 | C98: 1973-12-08 | E98: 1998-05-16 | F98: 40.09315068 | G98: 78451.0329 | H98: 82373.58455 | S98: 114.0821918
B99: 2000 | C99: 1966-10-04 | E99: 1999-09-30 | F99: 47.27671233 | G99: 80379.28781 | H99: 84398.2522 | S99: 114.0821918
B100: 1157 | C100: 1981-10-07 | E100: 2035-08-18 | F100: 32.25753425 | G100: 107491.576 | H100: 116090.9021 | S100: 114.0821918
B101: 1067 | C101: 1967-12-22 | E101: 1995-08-22 | F101: 46.06027397 | G101: 106589.9769 | H101: 111919.4758 | S101: 114.0821918
B102: 1239 | C102: 1970-07-10 | E102: 2017-01-13 | F102: 43.50958904 | G102: 80312.59091 | H102: 84328.22046 | S102: 114.0821918
B103: 1700 | C103: 1981-10-07 | E103: 2023-07-16 | F103: 32.25753425 | G103: 95052.60493 | H103: 102656.8133
B107: 2.3
C110: Use date(), year(), month(), day()
C112: Use IF statements
C113: Use IF statements
C114: Use IF statements and date()
B118: Number Retired by 1/1/2024 | E118: 30 | S118: Number Retired by 1/1/2024 | V118: =COUNTIF(AD122:AD163,"=yes") -> 30
B119: Number Active on 1/1/2024 | E119: 12 | S119: Number Active on 1/1/2024 | V119: =COUNTBLANK(AD122:AD163) -> 12
B120: Percentage Active | E120: 0.2857142857 | S120: Percentage Active | V120: =V119/(V119+V118) -> 0.2857142857
B121: Employee ID | C121: Birth Date | E121: Hire Date | K121: Age 60 Service | L121: Expected Retirement Date | M121: Retired by 1/1/2024? | S121: Employee ID | T121: Birth Date | V121: Hire Date | W121: Age 65 Date | Y121: Age 60 Date | AB121: Age 60 Service | AC121: Expected Retirement Date | AD121: Retired by 1/1/2024?
B122: 1330 | C122: 1982-05-07 | E122: 2011-01-01 | F122: 2047-05-07 | H122: 2042-05-07 | K122: 31.36712329 | L122: 2042-05-07 | M122: Yes | S122: 1330 | T122: 1982-05-07 | V122: 2011-01-01 | W122: =DATE(YEAR(T122)+65,MONTH(T122),DAY(T122)) -> 2047-05-07 | Y122: =DATE(YEAR(T122)+60,MONTH(T122),DAY(T122)) -> 2042-05-07 | AB122: =(Y122-V122)/365 -> 31.36712329 | AC122: =IF(AB122>20,Y122,W122) -> 2042-05-07 | AD122: =IF(AC122>DATE(2024,1,1),"Yes","") -> Yes
B123: 1939 | C123: 1963-12-24 | E123: 1996-11-09 | F123: 2028-12-24 | H123: 2023-12-24 | K123: 27.13972603 | L123: 2023-12-24 | S123: 1939 | T123: 1963-12-24 | V123: 1996-11-09 | W123: 2028-12-24 | Y123: 2023-12-24 | AB123: 27.13972603 | AC123: 2023-12-24
B124: 1877 | C124: 1957-02-26 | E124: 1983-07-11 | F124: 2022-02-26 | H124: 2017-02-26 | K124: 33.65479452 | L124: 2017-02-26 | S124: 1877 | T124: 1957-02-26 | V124: 1983-07-11 | W124: 2022-02-26 | Y124: 2017-02-26 | AB124: 33.65479452 | AC124: 2017-02-26
B125: 1751 | C125: 1976-03-08 | E125: 2011-01-01 | F125: 2041-03-08 | H125: 2036-03-08 | K125: 25.2 | L125: 2036-03-08 | M125: Yes | S125: 1751 | T125: 1976-03-08 | V125: 2011-01-01 | W125: 2041-03-08 | Y125: 2036-03-08 | AB125: 25.2 | AC125: 2036-03-08 | AD125: Yes
B126: 1261 | C126: 1980-06-03 | E126: 2011-01-01 | F126: 2045-06-03 | H126: 2040-06-03 | K126: 29.44109589 | L126: 2040-06-03 | M126: Yes | S126: 1261 | T126: 1980-06-03 | V126: 2011-01-01 | W126: 2045-06-03 | Y126: 2040-06-03 | AB126: 29.44109589 | AC126: 2040-06-03 | AD126: Yes
B127: 1252 | C127: 1958-10-22 | E127: 1993-03-05 | F127: 2023-10-22 | H127: 2018-10-22 | K127: 25.64931507 | L127: 2018-10-22 | S127: 1252 | T127: 1958-10-22 | V127: 1993-03-05 | W127: 2023-10-22 | Y127: 2018-10-22 | AB127: 25.64931507 | AC127: 2018-10-22
B128: 1669 | C128: 1958-12-12 | E128: 1985-10-03 | F128: 2023-12-12 | H128: 2018-12-12 | K128: 33.21369863 | L128: 2018-12-12 | S128: 1669 | T128: 1958-12-12 | V128: 1985-10-03 | W128: 2023-12-12 | Y128: 2018-12-12 | AB128: 33.21369863 | AC128: 2018-12-12
B129: 1418 | C129: 1984-09-14 | E129: 2011-01-01 | F129: 2049-09-14 | H129: 2044-09-14 | K129: 33.7260274 | L129: 2044-09-14 | M129: Yes | S129: 1418 | T129: 1984-09-14 | V129: 2011-01-01 | W129: 2049-09-14 | Y129: 2044-09-14 | AB129: 33.7260274 | AC129: 2044-09-14 | AD129: Yes
B130: 1273 | C130: 1965-02-03 | E130: 2011-01-01 | F130: 2030-02-03 | H130: 2025-02-03 | K130: 14.10136986 | L130: 2030-02-03 | M130: Yes | S130: 1273 | T130: 1965-02-03 | V130: 2011-01-01 | W130: 2030-02-03 | Y130: 2025-02-03 | AB130: 14.10136986 | AC130: 2030-02-03 | AD130: Yes
B131: 1579 | C131: 1976-03-08 | E131: 2009-12-24 | F131: 2041-03-08 | H131: 2036-03-08 | K131: 26.22191781 | L131: 2036-03-08 | M131: Yes | S131: 1579 | T131: 1976-03-08 | V131: 2009-12-24 | W131: 2041-03-08 | Y131: 2036-03-08 | AB131: 26.22191781 | AC131: 2036-03-08 | AD131: Yes
B132: 1889 | C132: 1971-01-04 | E132: 2011-01-01 | F132: 2036-01-04 | H132: 2031-01-04 | K132: 20.02191781 | L132: 2031-01-04 | M132: Yes | S132: 1889 | T132: 1971-01-04 | V132: 2011-01-01 | W132: 2036-01-04 | Y132: 2031-01-04 | AB132: 20.02191781 | AC132: 2031-01-04 | AD132: Yes
B133: 1581 | C133: 1971-07-12 | E133: 2011-01-01 | F133: 2036-07-12 | H133: 2031-07-12 | K133: 20.53972603 | L133: 2031-07-12 | M133: Yes | S133: 1581 | T133: 1971-07-12 | V133: 2011-01-01 | W133: 2036-07-12 | Y133: 2031-07-12 | AB133: 20.53972603 | AC133: 2031-07-12 | AD133: Yes
B134: 1364 | C134: 1959-01-17 | E134: 1984-03-30 | F134: 2024-01-17 | H134: 2019-01-17 | K134: 34.82465753 | L134: 2019-01-17 | S134: 1364 | T134: 1959-01-17 | V134: 1984-03-30 | W134: 2024-01-17 | Y134: 2019-01-17 | AB134: 34.82465753 | AC134: 2019-01-17
B135: 1816 | C135: 1982-05-07 | E135: 2011-01-01 | F135: 2047-05-07 | H135: 2042-05-07 | K135: 31.36712329 | L135: 2042-05-07 | M135: Yes | S135: 1816 | T135: 1982-05-07 | V135: 2011-01-01 | W135: 2047-05-07 | Y135: 2042-05-07 | AB135: 31.36712329 | AC135: 2042-05-07 | AD135: Yes
B136: 1948 | C136: 1957-12-16 | E136: 2006-11-06 | F136: 2022-12-16 | H136: 2017-12-16 | K136: 11.11780822 | L136: 2022-12-16 | S136: 1948 | T136: 1957-12-16 | V136: 2006-11-06 | W136: 2022-12-16 | Y136: 2017-12-16 | AB136: 11.11780822 | AC136: 2022-12-16
B137: 1295 | C137: 1955-05-06 | E137: 2005-04-23 | F137: 2020-05-06 | H137: 2015-05-06 | K137: 10.04109589 | L137: 2020-05-06 | S137: 1295 | T137: 1955-05-06 | V137: 2005-04-23 | W137: 2020-05-06 | Y137: 2015-05-06 | AB137: 10.04109589 | AC137: 2020-05-06
B138: 1946 | C138: 1960-03-14 | E138: 2011-01-01 | F138: 2025-03-14 | H138: 2020-03-14 | K138: 9.205479452 | L138: 2025-03-14 | M138: Yes | S138: 1946 | T138: 1960-03-14 | V138: 2011-01-01 | W138: 2025-03-14 | Y138: 2020-03-14 | AB138: 9.205479452 | AC138: 2025-03-14 | AD138: Yes
B139: 1212 | C139: 1957-12-16 | E139: 2003-06-25 | F139: 2022-12-16 | H139: 2017-12-16 | K139: 14.48767123 | L139: 2022-12-16 | S139: 1212 | T139: 1957-12-16 | V139: 2003-06-25 | W139: 2022-12-16 | Y139: 2017-12-16 | AB139: 14.48767123 | AC139: 2022-12-16
B140: 1739 | C140: 1971-01-04 | E140: 2011-01-01 | F140: 2036-01-04 | H140: 2031-01-04 | K140: 20.02191781 | L140: 2031-01-04 | M140: Yes | S140: 1739 | T140: 1971-01-04 | V140: 2011-01-01 | W140: 2036-01-04 | Y140: 2031-01-04 | AB140: 20.02191781 | AC140: 2031-01-04 | AD140: Yes
B141: 1112 | C141: 1957-06-02 | E141: 1997-05-09 | F141: 2022-06-02 | H141: 2017-06-02 | K141: 20.07945205 | L141: 2017-06-02 | S141: 1112 | T141: 1957-06-02 | V141: 1997-05-09 | W141: 2022-06-02 | Y141: 2017-06-02 | AB141: 20.07945205 | AC141: 2017-06-02
B142: 1677 | C142: 1956-05-30 | E142: 1980-04-26 | F142: 2021-05-30 | H142: 2016-05-30 | K142: 36.11780822 | L142: 2016-05-30 | S142: 1677 | T142: 1956-05-30 | V142: 1980-04-26 | W142: 2021-05-30 | Y142: 2016-05-30 | AB142: 36.11780822 | AC142: 2016-05-30
B143: 1791 | C143: 1974-04-03 | E143: 2003-12-21 | F143: 2039-04-03 | H143: 2034-04-03 | K143: 30.30410959 | L143: 2034-04-03 | M143: Yes | S143: 1791 | T143: 1974-04-03 | V143: 2003-12-21 | W143: 2039-04-03 | Y143: 2034-04-03 | AB143: 30.30410959 | AC143: 2034-04-03 | AD143: Yes
B144: 1641 | C144: 1957-06-02 | E144: 1999-03-31 | F144: 2022-06-02 | H144: 2017-06-02 | K144: 18.18630137 | L144: 2022-06-02 | S144: 1641 | T144: 1957-06-02 | V144: 1999-03-31 | W144: 2022-06-02 | Y144: 2017-06-02 | AB144: 18.18630137 | AC144: 2022-06-02
B145: 1500 | C145: 1985-01-24 | E145: 2011-01-01 | F145: 2050-01-24 | H145: 2045-01-24 | K145: 34.08767123 | L145: 2045-01-24 | M145: Yes | S145: 1500 | T145: 1985-01-24 | V145: 2011-01-01 | W145: 2050-01-24 | Y145: 2045-01-24 | AB145: 34.08767123 | AC145: 2045-01-24 | AD145: Yes
B146: 1328 | C146: 1957-07-27 | E146: 2006-06-10 | F146: 2022-07-27 | H146: 2017-07-27 | K146: 11.1369863 | L146: 2022-07-27 | S146: 1328 | T146: 1957-07-27 | V146: 2006-06-10 | W146: 2022-07-27 | Y146: 2017-07-27 | AB146: 11.1369863 | AC146: 2022-07-27
B147: 1502 | C147: 1976-07-03 | E147: 2011-01-01 | F147: 2041-07-03 | H147: 2036-07-03 | K147: 25.52054795 | L147: 2036-07-03 | M147: Yes | S147: 1502 | T147: 1976-07-03 | V147: 2011-01-01 | W147: 2041-07-03 | Y147: 2036-07-03 | AB147: 25.52054795 | AC147: 2036-07-03 | AD147: Yes
B148: 1495 | C148: 1960-05-31 | E148: 2007-10-19 | F148: 2025-05-31 | H148: 2020-05-31 | K148: 12.62465753 | L148: 2025-05-31 | M148: Yes | S148: 1495 | T148: 1960-05-31 | V148: 2007-10-19 | W148: 2025-05-31 | Y148: 2020-05-31 | AB148: 12.62465753 | AC148: 2025-05-31 | AD148: Yes
B149: 1419 | C149: 1976-07-03 | E149: 2011-01-01 | F149: 2041-07-03 | H149: 2036-07-03 | K149: 25.52054795 | L149: 2036-07-03 | M149: Yes | S149: 1419 | T149: 1976-07-03 | V149: 2011-01-01 | W149: 2041-07-03 | Y149: 2036-07-03 | AB149: 25.52054795 | AC149: 2036-07-03 | AD149: Yes
B150: 1080 | C150: 1968-01-25 | E150: 2009-11-29 | F150: 2033-01-25 | H150: 2028-01-25 | K150: 18.16712329 | L150: 2033-01-25 | M150: Yes | S150: 1080 | T150: 1968-01-25 | V150: 2009-11-29 | W150: 2033-01-25 | Y150: 2028-01-25 | AB150: 18.16712329 | AC150: 2033-01-25 | AD150: Yes
B151: 1008 | C151: 1981-01-03 | E151: 2010-08-10 | F151: 2046-01-03 | H151: 2041-01-03 | K151: 30.42191781 | L151: 2041-01-03 | M151: Yes | S151: 1008 | T151: 1981-01-03 | V151: 2010-08-10 | W151: 2046-01-03 | Y151: 2041-01-03 | AB151: 30.42191781 | AC151: 2041-01-03 | AD151: Yes
B152: 1861 | C152: 1979-03-08 | E152: 2011-01-01 | F152: 2044-03-08 | H152: 2039-03-08 | K152: 28.2 | L152: 2039-03-08 | M152: Yes | S152: 1861 | T152: 1979-03-08 | V152: 2011-01-01 | W152: 2044-03-08 | Y152: 2039-03-08 | AB152: 28.2 | AC152: 2039-03-08 | AD152: Yes
B153: 1792 | C153: 1981-09-24 | E153: 2011-01-01 | F153: 2046-09-24 | H153: 2041-09-24 | K153: 30.75068493 | L153: 2041-09-24 | M153: Yes | S153: 1792 | T153: 1981-09-24 | V153: 2011-01-01 | W153: 2046-09-24 | Y153: 2041-09-24 | AB153: 30.75068493 | AC153: 2041-09-24 | AD153: Yes
B154: 1487 | C154: 1970-04-12 | E154: 2011-01-01 | F154: 2035-04-12 | H154: 2030-04-12 | K154: 19.29041096 | L154: 2035-04-12 | M154: Yes | S154: 1487 | T154: 1970-04-12 | V154: 2011-01-01 | W154: 2035-04-12 | Y154: 2030-04-12 | AB154: 19.29041096 | AC154: 2035-04-12 | AD154: Yes
B155: 1305 | C155: 1978-08-02 | E155: 2002-09-22 | F155: 2043-08-02 | H155: 2038-08-02 | K155: 35.88493151 | L155: 2038-08-02 | M155: Yes | S155: 1305 | T155: 1978-08-02 | V155: 2002-09-22 | W155: 2043-08-02 | Y155: 2038-08-02 | AB155: 35.88493151 | AC155: 2038-08-02 | AD155: Yes
B156: 1198 | C156: 1970-10-08 | E156: 2008-02-10 | F156: 2035-10-08 | H156: 2030-10-08 | K156: 22.6739726 | L156: 2030-10-08 | M156: Yes | S156: 1198 | T156: 1970-10-08 | V156: 2008-02-10 | W156: 2035-10-08 | Y156: 2030-10-08 | AB156: 22.6739726 | AC156: 2030-10-08 | AD156: Yes
B157: 1131 | C157: 1961-07-30 | E157: 2003-01-15 | F157: 2026-07-30 | H157: 2021-07-30 | K157: 18.55068493 | L157: 2026-07-30 | M157: Yes | S157: 1131 | T157: 1961-07-30 | V157: 2003-01-15 | W157: 2026-07-30 | Y157: 2021-07-30 | AB157: 18.55068493 | AC157: 2026-07-30 | AD157: Yes
B158: 1749 | C158: 1973-12-08 | E158: 2000-10-21 | F158: 2038-12-08 | H158: 2033-12-08 | K158: 33.15342466 | L158: 2033-12-08 | M158: Yes | S158: 1749 | T158: 1973-12-08 | V158: 2000-10-21 | W158: 2038-12-08 | Y158: 2033-12-08 | AB158: 33.15342466 | AC158: 2033-12-08 | AD158: Yes
B159: 2000 | C159: 1966-10-04 | E159: 2004-09-09 | F159: 2031-10-04 | H159: 2026-10-04 | K159: 22.08219178 | L159: 2026-10-04 | M159: Yes | S159: 2000 | T159: 1966-10-04 | V159: 2004-09-09 | W159: 2031-10-04 | Y159: 2026-10-04 | AB159: 22.08219178 | AC159: 2026-10-04 | AD159: Yes
B160: 1157 | C160: 1981-10-07 | E160: 2011-01-01 | F160: 2046-10-07 | H160: 2041-10-07 | K160: 30.78630137 | L160: 2041-10-07 | M160: Yes | S160: 1157 | T160: 1981-10-07 | V160: 2011-01-01 | W160: 2046-10-07 | Y160: 2041-10-07 | AB160: 30.78630137 | AC160: 2041-10-07 | AD160: Yes
B161: 1067 | C161: 1967-12-22 | E161: 2011-01-01 | F161: 2032-12-22 | H161: 2027-12-22 | K161: 16.98356164 | L161: 2032-12-22 | M161: Yes | S161: 1067 | T161: 1967-12-22 | V161: 2011-01-01 | W161: 2032-12-22 | Y161: 2027-12-22 | AB161: 16.98356164 | AC161: 2032-12-22 | AD161: Yes
B162: 1239 | C162: 1970-07-10 | E162: 1998-01-13 | F162: 2035-07-10 | H162: 2030-07-10 | K162: 32.50958904 | L162: 2030-07-10 | M162: Yes | S162: 1239 | T162: 1970-07-10 | V162: 1998-01-13 | W162: 2035-07-10 | Y162: 2030-07-10 | AB162: 32.50958904 | AC162: 2030-07-10 | AD162: Yes
B163: 1700 | C163: 1981-10-07 | E163: 2011-01-01 | F163: 2046-10-07 | H163: 2041-10-07 | K163: 30.78630137 | L163: 2041-10-07 | M163: Yes | S163: 1700 | T163: 1981-10-07 | V163: 2011-01-01 | W163: 2046-10-07 | Y163: 2041-10-07 | AB163: 30.78630137 | AC163: 2041-10-07 | AD163: Yes
C169: Navigation Exercise Support
C171: Select Draw Bridge from Drop Down | F171: [Nav_PenaltyCount] | H171: 61
C172: Draw Bridge | F172: [Nav_StartTime]
C173: Swim | F173: [Nav_EndTime]
C174: Storm Gates | F174: [Nav_Step2] | H174: FALSE
C175: Turn Back | F175: [Nav_Step3] | H175: FALSE
F176: [Nav_Step4] | H176: FALSE
F177: [Nav_Step5] | H177: FALSE
F178: [Nav_Step6] | H178: FALSE
F179: [Nav_Step7] | H179: FALSE
F180: [Nav_Step8] | H180: FALSE
F181: [Nav_Step9] | H181: FALSE
F182: [Nav_Step10] | H182: FALSE
F183: [Nav_IsStarted] | H183: TRUE

Sheet Formula Shortcuts
M1: CTRL + PAGE DOWN = Move to Next Worksheet
M2: CTRL + PAGE UP = Move to Previous Worksheet
M3: CTRL + Q to Enable Mouse
A5: 1. Formula Creating & Editing
A9: x | B9: F2 to Edit Existing Cell Contents in Cell Edit Mode
B10: You probably know that you can simply select a cell and start typing to add content to that cell.
B11: If the cell is blank, that's exactly what you want, but what if the cell has existing content and you want to edit (not replace) the existing content?
B12: Use the F2 key to enter Cell Edit Mode. From Cell Edit Mode you can edit the existing cell contents.
B14: Use F2 to edit the Formula in F16 to multiply 3*5 instead of adding 3+5.
E16: =G16+I16 -> 8 | G16: 3 | I16: 5
A18: x | B18: Cursor Appears Within Cell, Not Formula Bar
B19: Notice that the text cursor appears within the cell instead of above in the formula bar.
A23: x | B23: Navigate Within Cell Edit Mode
B24: When in Cell Edit Mode you can use Arrows, CTRL, and SHIFT to move to and/or select portions of the cell content, similar to navigating and selecting cells.
B25: Think of each character within a cell as a mini-cell itself. You use the Arrows to navigate between characters, CTRL to jump quickly, SHIFT to select multiple characters, etc..
B26: Remember HOME and END? HOME will bring you to the beginning character in a line and END will bring you to the last character.
A28: x | B28: Tap F2 Again to Enter Cell Enter Mode
B29: When in Cell Edit Mode, tapping F2 again will switch you to Cell Enter Mode (you can toggle back and forth).
A31: x | B31: In Cell Enter Mode Arrow Keys No Longer Navigate Within the Cell Content, but Instead Add Cell References
B32: In Cell Enter Mode, using the Arrow Keys will add a cell reference just like when you first enter a formula.
B33: If your cursor is within an existing cell reference, then the Arrow Keys will change that cell reference.
B34: If your cursor is not in an existing cell reference, then the Arrow Keys will add a new cell reference.
B37: In the bottom left of the screen you can see if you're in "enter" or "edit" mode.
A42: x | B42: Use F2 to Quickly Visualize Cell References
B43: F2 also allows you to quickly "audit" your formula. When you press F2, colored borders will appear around the cells referenced by the current cell.
A47: x | B47: Quick Sum
B48: To sum an array of numbers you use the Sum function: =sum(a1:a5)
B50: Instead of typing out the Sum function =sum(...) you can use ALT + = (don't type the +).
B51: ALT + = will automatically fill in the sum function with its best guess of the area you want to sum.
B52: Try it below:
C53: 5 | E53: 1 | F53: 3 | G53: 5
C54: 19 | E54: 7 | F54: 9 | G54: 11
C55: 12 | E55: 13 | F55: 15 | G55: 17
P56: =IF(AND(C56=36,G56=81),"Complete!","") -> 
B58: Remember: if the sum array is not correct, simply use the Arrows, CTRL, and SHIFT to adjust the array.
A60: x | B60: Lock Cell References
B61: As we mentioned in the earlier lesson on Copying and Pasting, when you Copy & Paste formulas the cell references move proportionally.
B62: This means that if you Copy a formula and Paste it two cells to the right, the column references will move two to the right (i.e. C to E).
C64: 2 | E64: 5
C65: 99 | E65: 3
C66: 77 | E66: 55
C67: 32 | E67: 11
C68: =SUM(C64:C67) -> 210 | P68: =IF(E68=SUM(E64:E67),"Complete!","") -> 
C69: ^Copy (CTRL + C) and Paste (CTRL + V) this formula to see the references move
B71: Many times this is exactly what you want, but sometimes you want the cell reference to remain unchanged.
B72: You can freeze (also called "anchor") cell references by adding $ signs to the references.
C73: =D47 | D73: Cell reference is not frozen
C74: =$D47 | D74: Column reference is frozen, but row reference is not
C75: =D$47 | D75: Row reference is frozen, but column is not
C76: =$D$47 | D76: Both row and column references are frozen.
B78: Actually typing in the $ signs can be a real pain. Instead, with your cursor within the cell reference you want to change, press F4.
B79: F4 will cycle through absolute / relative references.
B81: Practice: Use F4 to lock the cell references in the cell below, so when you copy and paste the formula the cell references don't move.
C82: 3
C83: 8
D85: =C82*C83 -> 24
P87: =IF(AA87=TRUE,"Complete!","") ->  | Z87: 24 | AA87: =F87=Z87 -> FALSE
B90: Using F4, create a single formula in cell C94 that, when copied, will create a multiplication table:
G92: Multiplication Table
C93: 1 | D93: =C93+1 -> 2 | E93: 3 | F93: 4 | G93: 5 | H93: 6 | I93: 7 | J93: 8 | K93: 9
B94: 1
B95: =B94+1 -> 2
B96: 3
B97: 4
B98: 5
B99: 6
B100: 7
B101: 8
B102: 9 | P102: =IF(Z102=SUM(C94:K102),"Complete!","") ->  | Z102: 2025
A105: x | B105: Copy Cell Above
B106: CTRL + ' will copy the contents of the cell above into the selected cell:
B107: Try it by selecting C109 and using CTRL + ':
C108: 13
P109: =IF(Z109=SUM(C109),"Complete!","") ->  | Z109: 13
B111: Now try selecting C113:D114 and use CTRL + '
C112: 13 | D112: 14
B116: Notice that above only the first selected cell is updated with the formula above. D113 and row 114 remain unchanged.
B117: CTRL + ' is fairly limited. Instead try using CTRL + D and CTRL + R ...
A119: x | B119: Fill
B120: The Fill Down (CTRL + D) and Fill Right (CTRL + R) shortcuts allow you to enter a formula in one cell and "Fill" the formula in other cells.
B121: These are easy to remember: D for Down and R for Right and easy to use:
B122: Simply select the cell containing the formula you wish to copy, along with all the cells you wish to copy the formula into.
B124: Try it by selecting cells D127:E137 and pressing CTRL + D:
C126: ID | D126: Product | E126: Price | L126: ID | M126: Product | N126: Price
C127: 1 | D127: =VLOOKUP($C127,$L$127:$N$137,2,FALSE) -> Hats | E127: =VLOOKUP($C127,$L$127:$N$137,3,FALSE) -> 15 | L127: 5 | M127: Socks | N127: 8
C128: 2 | L128: 2 | M128: Shoes | N128: 20 | AA128: Shoes | AB128: 20 | AC128: =D128=AA128 -> FALSE | AD128: =E128=AB128 -> FALSE
C129: 3 | L129: 8 | M129: Shorts | N129: 8 | AA129: Pants | AB129: 10 | AC129: =D129=AA129 -> FALSE | AD129: FALSE
C130: 4 | L130: 3 | M130: Pants | N130: 10 | AA130: Parkas | AB130: 350 | AC130: FALSE | AD130: FALSE
C131: 5 | L131: 7 | M131: Shirts | N131: 7 | AA131: Socks | AB131: 8 | AC131: FALSE | AD131: FALSE
C132: 6 | L132: 1 | M132: Hats | N132: 15 | AA132: Raincoats | AB132: 100 | AC132: FALSE | AD132: FALSE
C133: 7 | L133: 11 | M133: Gloves | N133: 4 | AA133: Shirts | AB133: 7 | AC133: FALSE | AD133: FALSE
C134: 8 | L134: 6 | M134: Raincoats | N134: 100 | AA134: Shorts | AB134: 8 | AC134: FALSE | AD134: FALSE
C135: 9 | L135: 10 | M135: Ski Jackets | N135: 300 | AA135: Sunglasses | AB135: 11 | AC135: FALSE | AD135: FALSE
C136: 10 | L136: 4 | M136: Parkas | N136: 350 | AA136: Ski Jackets | AB136: 300 | AC136: FALSE | AD136: FALSE
C137: 11 | L137: 9 | M137: Sunglasses | N137: 11 | P137: =IF(COUNTIF(AC128:AD137,FALSE)=0,"Complete!","") ->  | AA137: Gloves | AB137: 4 | AC137: FALSE | AD137: FALSE
B139: Now try Filling Right CTRL + R
B141: Jan | C141: Feb | D141: Mar | E141: April | F141: May | G141: June | H141: July | I141: Aug | J141: Sep | K141: Oct | L141: Nov | M141: Dec
B142: =1+A142 -> 1 | P142: =IF(SUM(B142:M142)=AA142,"Complete!","") ->  | AA142: 78
A146: 2. Formula Auditing
A151: x | B151: Nested Formula Result
B152: When you are working with complex nested formulas you may wish to check the result of parts of the Excel formula.
B153: You can select individual pieces of a formula and press the F9 key to calculate the result of those pieces.
B154: The selected part of the formula is replaced by the result of that piece.
B155: Try this in the example below:
B157: Use F2 to edit the Vlookup formula in cell D160. Highlight C163+D163 and press F9.
B158: Hint: Use F2 to Edit the cell and the arrows + SHIFT to make your selection before pressing F9.
C160: =VLOOKUP(C163+D163,N161:O162,2,FALSE) -> Steve Scott | N160: Emp ID | O160: Name
N161: 5 | O161: Jack Jones
N162: 7 | O162: Steve Scott
C163: 4 | D163: 3 | E163: 1
B165: Be careful using F9! If you use F9 and save/exit the cell (by pressing ENTER) your changes will be saved.
B166: You probably don't want this. If you want use CTRL + Z to undo this.
B167: Alternatively, while still editing the cell, press F9 again to cycle back to display cell references. Or you can use the ESC key to leave the cell without saving.
A169: x | B169: Formula Precedents and Dependents.
B170: Formula Precedents are all the cells that "go into" the current cell.
B171: Formula Dependents refers to all the cells that "rely on" the current cell.
C173: Cell 1 | G173: =SUBSTITUTE(C173,"1","2") -> Cell 2 | H173: =SUBSTITUTE(C173,"1","2")
C174: ^ Cell 1 is a precedent to Cell 2 | G174: ^ Cell 2 is a dependent to Cell 1
A177: x | B177: "Go To" Precedents and Trace Dependents (CTRL + [ or ])
B178: "Go To" Precedents/Dependents selects all the cells that go into/rely on the selected cell.
B179: If there is only one cell input, then Excel will jump to that cell.
A185: x | B185: Trace Precedents/Dependents (ALT > M > P or D)
B186: Trace behaves similar to Go To except "tracing" doesn't select the cells, it generates arrows to them.
B187: If you are reviewing a cell and you're not sure what the cell's purpose is, the best thing to do is Trace Dependents and you can
B188: see where the cell is referenced.
A194: x | B194: Try Selecting (CTRL + [ or ]) & Tracing (ALT > M > P or D) Precedents / Dependents in the cells below
B195: Remove the Trace Arrows using ALT > M > A
C197: Year | D197: 2012 | H197: Year | I197: Sales
C198: Sales | D198: =VLOOKUP(D197,H198:I203,2,FALSE) -> 144617 | H198: 2007 | I198: 100326
H199: 2008 | I199: 154419
H200: 2009 | I200: 152094
H201: 2010 | I201: 117870
H202: 2011 | I202: 147971
H203: 2012 | I203: 144617
A205: x | B205: Formula View
B206: Use CTRL + ~ (~ is the key to the left of the 1 key in upper left of keyboard) or ALT > M > H to switch to Formula View.
B207: Formula View displays each cell's actual formula instead of the result of the formula.
B208: When you select a cell with a formula in Formula View mode, the formula inputs are highlighted:
B218: Try using Formula View Mode now. Click on the Sales in cell D198 and press CTRL + ~.
B220: Some people use this view to audit their formulas. They may even print the formula view out on paper to review the logic.
A224: 3. Undo
A229: x | B229: Undo
B230: Use CTRL + Z reverses your last action.
B231: Make a mistake? Simply hit CTRL + Z.
B233: CTRL + Y will undo your undo.
A237: 4. Formula Exercise
A242: x | B242: The formula below produces an error. One of the inputs is bad.
B243: 1. Using the F2 and F9 technique, find the bad input reference and remove it.
B244: 2. Then "lock" the discount rate cell reference so you can copy the formula down.
B245: 3. Copy the formula down using the techniques discussed above.
D247: 5-Year Adj.
C248: Employee ID | D248: Ave. Salary | H248: Discount Rate
C249: 816 | D249: =(AG250++AH250+AI250+AJ250+AK250)/COUNT(AG250:AK250)*(1+H249)^COUNT(AG250:AK250) ->  | H249: 0.03 | AG249: 1 | AH249: 2 | AI249: 3 | AJ249: 4 | AK249: 5
C250: 120 | AG250: 84153.10384 | AI250: 96346.88859 | AJ250: 103091.1708 | AK250: 110307.5527
C251: 780 | AG251: 59573.38476 | AI251: 68205.56821 | AJ251: 72979.95799 | AK251: 78088.55505
C252: 325 | AG252: 137005.4607 | AI252: 156857.552 | AJ252: 167837.5806 | AK252: 179586.2112
C253: 349 | AG253: 98196.85432 | AI253: 112425.5785 | AJ253: 120295.369 | AK253: 128716.0448
C254: 742 | AG254: 97415.63301 | AI254: 111531.1582 | AJ254: 119338.3393 | AK254: 127692.0231
C255: 226 | AG255: 126706.5234 | AI255: 145066.2986 | AJ255: 155220.9395 | AK255: 166086.4053
C256: 715 | AG256: 110564.5555 | AI256: 126585.3596 | AJ256: 135446.3347 | AK256: 144927.5782
C257: 281 | AG257: 64729.16492 | AI257: 74108.42092 | AJ257: 79296.01039 | AK257: 84846.73111
C258: 732 | AG258: 136738.9759 | AI258: 156552.4535 | AJ258: 167511.1252 | AK258: 179236.904
C259: 129 | AG259: 116291.1742 | AI259: 133141.7653 | AJ259: 142461.6889 | AK259: 152434.0071
C260: 337 | AG260: 101808.425 | AI260: 116560.4658 | AJ260: 124719.6984 | AK260: 133450.0773
C261: 440 | AG261: 101421.3208 | AI261: 116117.2701 | AJ261: 124245.479 | AK261: 132942.6626
C262: 211 | AG262: 99286.63702 | AI262: 113673.2707 | AJ262: 121630.3997 | AK262: 130144.5276
C263: 845 | AG263: 91829.26946 | AI263: 105135.3306 | AJ263: 112494.8038 | AK263: 120369.44
C264: 697 | AG264: 62454.22602 | AI264: 71503.84337 | AJ264: 76509.1124 | AK264: 81864.75027
C265: 843 | AG265: 112634.7218 | AI265: 128955.493 | AJ265: 137982.3775 | AK265: 147641.144
C266: 531 | AG266: 72089.75641 | AI266: 82535.56211 | AJ266: 88313.05146 | AK266: 94494.96506
C267: 160 | R267: =IF(D267=AA267,"Complete!","") ->  | AA267: 104875.5331 | AG267: 59682.7838 | AI267: 68330.81917 | AJ267: 73113.97651 | AK267: 78231.95487
AG268: 89623.05559 | AI268: 102609.4363 | AJ268: 109792.0969 | AK268: 117477.5437
B271: Use CTRL+ Page Down to jump to the next worksheet
A286: x

Sheet Workbook Nav
M1: CTRL + PAGE DOWN = Move to Next Worksheet
M2: CTRL + PAGE UP = Move to Previous Worksheet
M3: CTRL + Q to Enable Mouse
A5: 1. Workbook Navigation & Viewing
B10: These shortcuts are useful for navigating within and between workbooks.
B11: The first set of shortcuts are the most useful and you definitely should incorporate these.
B12: Try each of the other shortcuts at least once so you understand what they do.
A14: x | B14: Navigation
B15: Move to next/previous worksheet | F15: CTRL + Page Down/Up
B16: Next Workbook | F16: CTRL + TAB (SHIFT for reverse)
B17: Next Application | F17: ALT + TAB (SHIFT for reverse)
B19: Activate Control Box | F19: ALT + SPACE
B20: New Worksheet | F20: ALT + SHIFT + F1
B23: Viewing
B24: Command | F24: CTRL + …
B25: Close Window | F25: F4
B26: Restore Window Size | F26: F5
B27: Next Window | F27: F6
B28: Move Window | F28: F7
B29: Resize Window | F29: F8
B30: Minimize Workbook | F30: F9
B31: Maximize/Restore Window | F31: F10
B33: Command | F33: … + F6
B34: Next Pane | F34: Alone
B35: Previous Pane | F35: SHIFT
B36: Next Window | F36: CTRL
B37: Previous Window | F37: CTRL + SHIFT
B39: Other Viewing
B40: Formula View Mode | F40: CTRL + ~
B41: Hide Ribbon | F41: CTRL + F1
B42: Expand or Collapse Formula Bar | F42: CTRL + SHIFT + U
B46: Use CTRL+ Page Down to jump to the next worksheet
A61: x

Sheet Data Tools
L1: CTRL + PAGE DOWN = Move to Next Worksheet
L2: CTRL + PAGE UP = Move to Previous Worksheet
L3: CTRL + Q to Enable Mouse
A5: 1. Find & Go To
A10: x | B10: Find and Replace (CTRL + F) is a massively powerful search tool.
B12: This often overlooked tool that allows you to search a workbook, worksheet, or selection of a worksheet for specific text or numbers.
B13: The Replace feature behaves similarly, but actually replaces the searched value with another value.
B15: You can activate the Find and Replace Dialog Box by typing CTRL + F or CTRL + H.
B16: CTRL + F will open up the Find section and CTRL + H will open up the Replace section.
B17: CTRL + F is much more intuitive (F for Find) so you may want to use that shortcut exclusively and then simply navigate to the Replace section.
A35: x | B35: Exercise 1
B36: Open the Find Dialog Box (CTRL + F)
B37: Type "overlooked" and hit ENTER.
B39: Remember the Menu Navigation Shortcuts?
B40: You can select a Menu Option by holding ALT and tapping it's corresponding underlined letter.
B42: Use CTRL + F to activate the Find Dialog Box and use ALT + T to show the detailed Options.
B43: From here you can select the following options:
C44: Toggle between searching entire workbook or worksheet
C45: Look in formula inputs (whatever is typed into a cell) or look at formula results
C46: Case-sensitive
C47: Match entire cell contents
A49: x | B49: Exercise 2
B50: Now try an example with Find and Replace
B51: The best time to use Replace (CTRL + H) is to replace a specific piece of text that is scattered throughout the workbook.
B53: Use Replace to change the reference in the formulas below from Salaryv1 to Salaryv2. You can see how much time this would save if there were numerous references throughout the workbook.
C55: Emp ID | D55: Salary | J55: Emp ID | K55: Salary1 | M55: Emp ID | N55: Salary2
C56: 567 | D56: =VLOOKUP(C56,Salaryv1,2,FALSE) -> 67508 | J56: 567 | K56: 67508 | M56: 567 | N56: 67349 | AA56: =N56=D56 -> FALSE
C57: 453 | D57: =VLOOKUP(C57,Salaryv1,2,FALSE) -> 58412 | J57: 453 | K57: 58412 | M57: 453 | N57: 69028 | AA57: =N57=D57 -> FALSE
C58: 940 | D58: =VLOOKUP(C58,Salaryv1,2,FALSE) -> 74494 | J58: 940 | K58: 74494 | M58: 940 | N58: 63923 | AA58: =N58=D58 -> FALSE
C59: 320 | D59: =VLOOKUP(C59,Salaryv1,2,FALSE) -> 72761 | J59: 320 | K59: 72761 | M59: 320 | N59: 62322 | AA59: =N59=D59 -> FALSE
C60: 1100 | D60: =VLOOKUP(C60,Salaryv1,2,FALSE) -> 56518 | J60: 1100 | K60: 56518 | M60: 1100 | N60: 73443 | R60: =IF(COUNTIF(AA56:AA60,"=false")=0,"Complete!","") ->  | AA60: =N60=D60 -> FALSE
A63: x | B63: The Go To Dialog Box (CTRL + G) is another useful search tool.
B65: From here you can jump to "named ranges" in the workbook.
D81: Use ALT + S to open the Go To Special Dialog Box
B99: From here you can select all cells with certain characteristics (errors, blanks, text, etc.)
A103: 2. Data Tools
A106: x
B108: This is the last section where you will be introduced to new shortcuts.
B109: The first shortcuts have to do with manipulating and presenting data. We won't discuss what these features actually do, but our dives into these in great detail.
B111: The second shortcuts are miscellaneous shortcuts that don't fit in any other section.
A113: x | B113: Data Tools
B114: Practice these shortcuts on the data set to the right.
B116: Filter | F116: CTRL + SHIFT + L | H116: Emp ID | I116: Age | J116: Service
B117: Table | F117: CTRL + T | H117: 89490 | I117: 35 | J117: 12
B118: Insert Chart | F118: ALT + F1 | H118: 101127 | I118: 43 | J118: 7
B119: Create Pivot Chart | F119: F11 | H119: 83995 | I119: 43 | J119: 3
H120: 83493 | I120: 53 | J120: 17
H121: 108003 | I121: 65 | J121: 14
A122: x | B122: Misc. Tools | H122: 103383 | I122: 75 | J122: 1
B123: Open Visual Basic (VBA) Editor | F123: ALT + F11 | H123: 84545 | I123: 54 | J123: 0
B124: Open Macro Dialog Box | F124: ALT + F8 | H124: 94262 | I124: 43 | J124: 4
B125: Open Name Manager Dialog Box | F125: CTRL + F3 | H125: 81168 | I125: 63 | J125: 6
B129: Use CTRL+ Page Down to jump to the next worksheet
A145: x

Sheet Keyboard Layout & Troubleshoot
M1: CTRL + PAGE DOWN = Move to Next Worksheet
M2: CTRL + PAGE UP = Move to Previous Worksheet
M3: CTRL + Q to Enable Mouse
A6: x
B8: Keys | C8: Shortcut Examples
B9: CTRL (Control) | C9: CTRL Shortcut | AA9: 2 | AB9: 3
B10: ALT | C10: ALT Shortcut | AA10: 4 | AB10: 5
B11: SHIFT | AA11: 6 | AB11: 7
B12: TAB | AA12: 8
B13: Enter / Return | AA13: 9
B14: Space | AA14: 24
B15: ~ | AA15: 17
B16: !, @, #, $, %, ^, *, (, ) | AA16: 19
B17: _ | AA17: 18
B18: + | AA18: 20 | AB18: 21
B19: - | AA19: 18 | AB19: 22
B20: Delete | L20: Source: https://commons.wikimedia.org/wiki/File:ANSI_Keyboard_Layout_Diagram_with_Form_Factor.svg | AA20: 10
B21: End | L21: Author: Rumudiez | AA21: 12
B22: Page Up / Down | AA22: 13
B23: Home | AA23: 14
B24: F2, F4, and all other F Keys | AA24: 25
A28: x | B28: Your keyboard layout may appear quite a bit different. This is especially the case on laptop keyboards where space is at a premium.
B29: Poor keyboard layout can really cut into your ability to use keyboard shortcuts and work efficiently.
B31: Here are a few things to look out for:
B32: 1. A fn key directly to the left of the CTRL key on the bottom-left of the keyboard.
B38: 2. Small or unusually shaped arrow keys.
B39: 3. Out of place Page Up / Page Down, End, or Home keys.
B41: If your keyboard has any of these layout flaws (especially #1) you should consider buying a new keyboard.
B42: We've included a keyboard buying guide on our website: | F42: http://www.automateexcel.com/external-keyboard-for-laptop/?utm_source=shortcuttrainer&utm_medium=link&utm_term=shortcut&utm_content=shortcut&utm_campaign=keyboardguide
A45: 2. Troubleshooting
B50: fn Mode
B51: Many keyboards have functions associated with the F1-F12 keys:
B52: Examples:
B53: Adjust Brightness
B54: Adjust Volume
B55: Turn Wireless On / Off
B57: Typically, to activate these functions you hold down the fn key, while pressing the appropriate function key.
B58: If the fn key is not pressed then the keys activate the F1-F12 commands instead.
B60: As an aspriring shortcut guru, that's exactly what you want. Unfortunately, sometimes the configuration is reversed.
B61: You will need to hold down the fn key to access the F1-F12 commands.
B63: Fortunately, there is an easy fix:
B65: 1. Restart your computer.
B66: 2. Press the F10 key to open the Bios setup window (you must do this before the Windows screen appears).
B67: 3. Navigate to "System Configuration"
B68: 4. Find a option labeled "Action Keys Mode" or something similar.
B69: 5. Select the desired mode.
B70: 6. Press F10 to save your change and finish restarting your computer.
B72: Note: Each laptop is unique and this method may not work for all laptops. If it doesn't work, we recommend googling "<laptop make & model> toggle fn key".
B76: Use CTRL+ Page Down to jump to the next worksheet
A90: x

Sheet Results (hidden)
K1: CTRL + PAGE DOWN = Move to Next Worksheet
K2: CTRL + PAGE UP = Move to Previous Worksheet
K3: CTRL + Q to Enable Mouse
B4: Results
C9: Navigation Exercise | E9: Formatting Exercise | J9: Help us Collect Data
A11: Your Results | I11: We are collecting data on completion times.
B12: Last Attempt | I12: Once we have enough data, we will make it available through our website | M12: =HYPERLINK("http://www.automateexcel.com/in/eff-results","Visit Site") -> Visit Site
B13: Time | C13: =Nav_Last_Seconds ->  | E13: =Form_Last_Seconds ->  | I13: If you wish to help us collect data, please submit your results using the button below. | AD13: =C13*24*60*60 ->  | AF13: =E13*24*60*60 -> 
B14: Penalties | C14: =Nav_PenaltyCount -> 4 | I14: If, after you submit, you take the tests again, we request that you resubmit so we receive the latest data.
B15: Total Time | C15: =Nav_Latest_SecondwPen -> 
I16: Fields | K16: All Responses Are Optional
B17: Best | I17: School
B18: Time | C18: =Nav_Best_Seconds -> 0.000173611108 | E18: =Form_Best_Seconds -> 0.0006250000006 | I18: Company
B19: Penalties | C19: =Nav_Best_PenaltyCount -> 0 | I19: Work Experience
B20: Total Time | C20: =Nav_Best_SecondwPen -> 0.0001736111111 | I20: Profession (Actual or Expected)
I21: Email
B22: First
B23: Time | C23: =Nav_First_Seconds -> 0.0001736111153 | E23: =Form_First_Seconds -> 0.0006250000006
B24: Penalties | C24: =Nav_First_PenaltyCount -> 0
B25: Total Time | C25: =Nav_First_SecondwPen -> 0.0001736111111
A29: Benchmarks
B30: Expert | C30: 0.0002430555556 | E30: 0.000474537037
B31: Advanced | C31: 0.0002893518519 | E31: 0.0005555555556
B32: Intermediate | C32: 0.0003356481481 | E32: 0.0006365740741
B33: Beginner | C33: 0.000462962963 | E33: 0.0009490740741
B35: Efficiency Increase | C35: =IF(ROUNDUP((C25-C20)/C20,1)=0,"Minimal",ROUNDUP((C25-C20)/C20,1)) -> Minimal | E35: =IF(ROUNDUP((E23-E18)/E18,1)=0,"Minimal",ROUNDUP((E23-E18)/E18,1)) -> Minimal
B36: Potential Efficiency Increase | C36: =IF(MAX(ROUNDUP((C25-C20)/C20,1),ROUNDUP((C25-C30)/C30,1))=0,"Minimal",MAX(ROUNDUP((C25-C20)/C20,1),ROUNDUP((C25-C30)/C30,1))) -> Minimal | E36: =IF(MAX(ROUNDUP((E23-E18)/E18,1),ROUNDUP((E23-E30)/E30,1))=0,"Minimal",MAX(ROUNDUP((E23-E18)/E18,1),ROUNDUP((E23-E30)/E30,1))) -> 0.4 | AD36: =IF(MAX(ROUNDUP((C15-C20)/C20,1),ROUNDUP((C15-C30)/C30,1))=0,"Minimal",MAX(ROUNDUP((C15-C20)/C20,1),ROUNDUP((C15-C30)/C30,1))) ->  | AF36: =IF(MAX(ROUNDUP((E13-E18)/E18,1),ROUNDUP((E13-E30)/E30,1))=0,"Minimal",MAX(ROUNDUP((E13-E18)/E18,1),ROUNDUP((E13-E30)/E30,1))) -> 

Sheet Results2 (hidden)
L1: 1 | M1: 2 | N1: 3 | O1: 4 | P1: 5 | Q1: 6 | R1: 7 | S1: 8 | T1: 9 | U1: 10 | V1: 11 | W1: 12 | X1: 13 | Y1: 14 | Z1: 15 | AA1: 16 | AB1: 17 | AC1: 18 | AD1: 19 | AE1: 20 | AF1: 21 | AG1: 22 | AH1: 23 | AI1: 24 | AJ1: 25 | AK1: 26 | AL1: 27 | AM1: 28 | AN1: 29 | AO1: 30 | AP1: 31 | AQ1: 32 | AR1: 33 | AS1: 34 | AT1: 35 | AU1: 36 | AV1: 37 | AW1: 38 | AX1: 39 | AY1: 40 | AZ1: 41 | BA1: 42 | BB1: 43 | BC1: 44 | BD1: 45 | BE1: 46 | BF1: 47 | BG1: 48 | BH1: 49 | BI1: 50 | BJ1: 51 | BK1: 52 | BL1: 53 | BM1: 54 | BN1: 55 | BO1: 56 | BP1: 57 | BQ1: 58 | BR1: 59 | BS1: 60 | BT1: 61 | BU1: 62 | BV1: 63 | BW1: 64 | BX1: 65 | BY1: 66 | BZ1: 67 | CA1: 68 | CB1: 69 | CC1: 70 | CD1: 71 | CE1: 72 | CF1: 73 | CG1: 74 | CH1: 75 | CI1: 76 | CJ1: 77 | CK1: 78 | CL1: 79 | CM1: 80 | CN1: 81 | CO1: 82 | CP1: 83 | CQ1: 84 | CR1: 85 | CS1: 86 | CT1: 87
F3: Navigation Exericse
K4: 0 | U4: 10 | AE4: 20 | AO4: 30 | AY4: 40 | BI4: 50 | BS4: 60 | CC4: 70
F5: Best Time | L5: 1 | M5: 2 | N5: 3 | O5: 4 | P5: 5 | Q5: 6 | R5: 7 | S5: 8 | T5: 9 | U5: 10 | V5: 11 | W5: 12 | X5: 13 | Y5: 14 | Z5: 15 | AA5: 16 | AB5: 17 | AC5: 18 | AD5: 19 | AE5: 20 | AF5: 21 | AG5: 22 | AH5: 23 | AI5: 24 | AJ5: 25 | AK5: 26 | AL5: 27 | AM5: 28 | AN5: 29 | AO5: 30 | AP5: 31 | AQ5: 32 | AR5: 33 | AS5: 34 | AT5: 35 | AU5: 36 | AV5: 37 | AW5: 38 | AX5: 39 | AY5: 40 | AZ5: 41 | BA5: 42 | BB5: 43 | BC5: 44 | BD5: 45 | BE5: 46 | BF5: 47 | BG5: 48 | BH5: 49 | BI5: 50 | BJ5: 51 | BK5: 52 | BL5: 53 | BM5: 54 | BN5: 55 | BO5: 56 | BP5: 57 | BQ5: 58 | BR5: 59 | BS5: 60 | BT5: 61 | BU5: 62 | BV5: 63 | BW5: 64 | BX5: 65 | BY5: 66 | BZ5: 67 | CA5: 68 | CB5: 69 | CC5: 70 | CD5: 71 | CE5: 72 | CF5: 73 | CG5: 74 | CH5: 75 | CI5: 76
L6: =REPT(" ",'Record Times'!$BR$4*3.5)&'Record Times'!$BR$4&" secs"
F8: First Time | L8: 1 | M8: 2 | N8: 3 | O8: 4 | P8: 5 | Q8: 6 | R8: 7 | S8: 8 | T8: 9 | U8: 10 | V8: 11 | W8: 12 | X8: 13 | Y8: 14 | Z8: 15 | AA8: 16 | AB8: 17 | AC8: 18 | AD8: 19 | AE8: 20 | AF8: 21 | AG8: 22 | AH8: 23 | AI8: 24 | AJ8: 25 | AK8: 26 | AL8: 27 | AM8: 28 | AN8: 29 | AO8: 30 | AP8: 31 | AQ8: 32 | AR8: 33 | AS8: 34 | AT8: 35 | AU8: 36 | AV8: 37 | AW8: 38 | AX8: 39 | AY8: 40 | AZ8: 41 | BA8: 42 | BB8: 43 | BC8: 44 | BD8: 45 | BE8: 46 | BF8: 47 | BG8: 48 | BH8: 49 | BI8: 50 | BJ8: 51 | BK8: 52 | BL8: 53 | BM8: 54 | BN8: 55 | BO8: 56 | BP8: 57 | BQ8: 58 | BR8: 59 | BS8: 60 | BT8: 61 | BU8: 62 | BV8: 63 | BW8: 64 | BX8: 65 | BY8: 66 | BZ8: 67 | CA8: 68 | CB8: 69 | CC8: 70 | CD8: 71 | CE8: 72 | CF8: 73 | CG8: 74 | CH8: 75 | CI8: 76
M10: need to add in the actual times someplace
N13: need to adjust the nav exercise so expet is more advanced?
N16: I think the best/first times should be in adjascent rows…

Sheet Data Submission (hidden)
A1: ninja_forms_field_4 | B1: Email | C1: =Results!K21 -> 00:00:00 | E1: diag test results | K1: 4 | N1: mouse enabled?
A2: ninja_forms_field_5 | B2: School | C2: =Results!K17 -> 0 | K2: 5 | N2: 1 | P2: 1=yes
A3: ninja_forms_field_6 | B3: Company | C3: =Results!K18 -> 0 | D3: URL | K3: 6
A4: ninja_forms_field_7 | B4: experience | C4: =Results!K19 -> 0 | D4: http://www.automateexcel.com/in/eff-feedback | K4: 7 | P4: Yes
A5: ninja_forms_field_9 | B5: Profession | C5: =Results!K20 -> 0 | K5: 9 | P5: No
A6: ninja_forms_field_10 | B6: Form_Attempts | C6: ='Record Times'!E6 -> 3 | K6: 10
A7: ninja_forms_field_11 | B7: Form_Time_Best | C7: =Results!E18 -> 0.0006250000006 | G7: <<post penalties I assume? | K7: 11 | N7: None
A8: ninja_forms_field_12 | B8: Form_Time_First | C8: =Results!E23 -> 0.0006250000006 | K8: 12 | N8: Internship(s) Only
A9: ninja_forms_field_13 | B9: Nav_Attempts | C9: ='Record Times'!BI6 -> 11 | K9: 13 | N9: <1 year
A10: ninja_forms_field_14 | B10: Nav_Time_Best | C10: =Results!C20 -> 0.0001736111111 | K10: 14 | N10: 1 year
A11: ninja_forms_field_15 | B11: Nav_Time_First | C11: =Results!C25 -> 0.0001736111111 | D11: orig_computerID | K11: 15 | N11: 2 years
A12: ninja_forms_field_16 | B12: ComputerID | C12: 1746527678 | D12: 1746527678 | K12: 16 | N12: 3 years
A13: ninja_forms_field_17 | B13: submit | K13: 17 | N13: 4 years
N14: 5 years
A15: ninja_forms_field_17 | N15: 6 years
A16: ninja_forms_field_5 | N16: 7 years
A17: ninja_forms_field_6 | N17: 8 years
A18: ninja_forms_field_17 | N18: 9 years
A19: ninja_forms_field_9 | N19: 10 years
A20: ninja_forms_field_10 | N20: 11 years
A21: ninja_forms_field_11 | N21: 12 years
A22: ninja_forms_field_12 | N22: 13 years
A23: ninja_forms_field_13 | N23: 14 years
A24: ninja_forms_field_14 | N24: 15 years
A25: ninja_forms_field_15 | N25: 16 years
A26: ninja_forms_field_16 | N26: 17 years
A27: ninja_forms_field_17 | N27: 18 years
N28: 19 years
N29: 20+ years

Sheet Freq Used Shortcuts
B9: Navigation | F9: Editing | J9: ALT Shortcuts
B10: Cell Navigation and Selection | F10: Cells | J10: Cell Size
B11: Move one cell in any direction | D11: Arrow Keys | F11: Edit Cell | H11: F2 | J11: Row Height | L11: ALT + H + O + H
B12: Go to end of contiguous range | D12: CTRL + Arrow Keys | F12: Cancel cell entry | H12: ESC | J12: AutoFit Row Height | L12: ALT + H + O + A
B13: Select range | D13: SHIFT + Arrow Keys | F13: Anchor cells | H13: F4 | J13: Column Width | L13: ALT + H + O + W
B14: Select contiguous range | D14: CTRL + SHIFT + Arrow Keys | F14: Highlight within cells | H14: SHIFT + Arrow Keys | J14: AutoFit Column Width | L14: ALT + H + O + I
B15: Move one page up (down) | D15: Page Up (Down) | J15: Default Column Width | L15: ALT + H + O + D
B16: Move to beginning of row | D16: Home | F16: Fill Down | H16: CTRL + D
B17: Move to cell "A1" | D17: CTRL + Home | F17: Fill Right | H17: CTRL + R | J17: Visibility
B18: Move to cell to the right (left) | D18: TAB (SHIFT + TAB) | J18: Hide/Unhide Columns, Rows & Sheets | L18: ALT + H + O + U
B19: Move to cell below (above) | D19: Enter (SHIFT + Enter) | F19: Copy | H19: CTRL + C
B20: Select All | D20: CTRL + A | F20: Paste | H20: CTRL + V | J20: Organize Sheets
F21: Paste Special | H21: CTRL + ALT + V | J21: Rename Sheet | L21: ALT + H + O + R
B22: Worksheet Navigation | F22: Cut | H22: CTRL + X | J22: Move or Copy Sheet | L22: ALT + H + O + M
B23: Move to next/previous worksheet | D23: CTRL + Page Up/Down | F23: Undo | H23: CTRL + Z | J23: Tab Color | L23: ALT + H + O + T
B24: New Worksheet | D24: SHIFT + F11 | F24: Repeat | H24: CTRL + Y
B26: Workbook Navigation | F26: Row/Columns | J26: Viewing
B27: Switch workbooks | D27: CTRL + TAB | F27: Select Column | H27: CTRL + SPACE | J27: Freeze Panes | L27: ALT + W + F + F
B28: Switch workbooks in reverse | D28: CTRL + SHIFT + TAB | F28: Select Row | H28: SHIFT + SPACE | J28: Split Screen | L28: ALT + W + S
B29: New Workbook | D29: CTRL + N | F29: Delete Row or Column | H29: CTRL + "-"
F30: Insert Row or Column | H30: CTRL + "+"
B31: Basics | F31: Group/Ungroup rows or columns | H31: ALT + SHIFT + Left/Right Arrow Keys
B32: Save | D32: CTRL + S
B33: Print | D33: CTRL + P | F33: Tools/Other Features | J33: Tools
B34: New Workbook | D34: CTRL + N | F34: Display Name Menu | H34: CTRL + F3 | J34: Sort | L34: ALT + A + SS
B35: Close Program | D35: ALT + F4 | F35: Go To | H35: F5 or CTRL + G | J35: Filter | L35: ALT + A + T
B36: Open Workbook | D36: CTRL + O | F36: Find | H36: CTRL + F | J36: Text to Columns | L36: ALT + A + E
B37: Close Window | D37: CTRL + W (CTRL + F4) | F37: Replace | H37: CTRL + H | J37: Data Validation | L37: ALT + A + V
B39: Recalculate Workbook | D39: F9 | F39: Auditing | J39: Auditing
F40: Show Formulas | H40: CTRL + ~ | J40: Trace Precedents | L40: ALT + M + P
B41: Formatting | F41: Go To | H41: F5 or CTRL + G | J41: Trace Dependents | L41: ALT + M + D
B42: Cell Formatting | J42: Remove Trace Arrows | L42: ALT + M + A + A
B43: Format Menu | D43: CTRL + 1 | J43: Track Changes | L43: ALT + R + G
B44: Bold | D44: CTRL + B
B45: Italic | D45: CTRL + I
B46: Underline | D46: CTRL + U
B47: Insert a comment | D47: SHIFT + F2
B49: Want to master Excel? Visit www.spreadsheetbootcamp.com | G49: Excel is either a registered trademark or trademark of Microsoft Corporation in the United States and/or other countries.

Sheet All Shortcuts
B10: Key | C10: Alone | D10: Shift | E10: Ctrl | F10: Alt | G10: Ctrl + Shift | H10: Alt + Shift | I10: Ctrl + Alt | J10: Ctrl + Alt + Shift
B11: Esc | C11: Esc
B12: Backspace | C12: Backspace | D12: Collapse Selection | E12: Goto Active Cell
B13: Tab | C13: Move Right | D13: Move Left | E13: next window | F13: next application | G13: Previous Window
B14: Enter | C14: Enter | D14: Move Up | E14: Fill Selection with Active Cell | F14: New Line in Cell
B15: Insert | C15: Insert Mode | E15: Copy
B16: Delete | C16: Clear | E16: Delete To End Of Line
B17: Home | C17: Start of Row | E17: Start of Worksheet | G17: Select to Start of Sheet
B18: End | C18: End of Row | E18: End of Worksheet | G18: Select to End of Sheet
B19: Page Up | C19: Page Up | E19: Previous Worksheet | F19: Left 1 screen | G19: Select Current, Next Sheet
B20: Page Down | C20: Page Down | E20: Next Worksheet | F20: Right 1 screen | G20: Select Current, Prev Sheet
B21: Left Arrow | C21: Move Left | D21: Select Left | E21: Move Left Area | F21: Back
B22: Right Arrow | C22: Move Right | D22: Select Right | E22: Move Right Area | F22: Forward
B23: Up Arrow | C23: Move Up | D23: Select Up | E23: Move Up Area
B24: Down Arrow | C24: Move Down | D24: Select Down | E24: Move Down Area | F24: Drop down list
B25: Space Bar | C25: Space | D25: Select Row | E25: Select Column | F25: Control Box | G25: Select All
B27: F1 | C27: Help | D27: What's This Help | E27: Show/Hide Ribbon | F27: Insert Chart | H27: New Worksheet
B28: F2 | C28: Edit Mode | D28: Add/Edit Comment | E28: Print Preview | F28: Save As
B29: F3 | C29: Paste Name | D29: Insert Function | E29: Define Name | G29: Names From Labels
B30: F4 | C30: Repeat Action | D30: Find Again | E30: Close Window | F30: Quit Excel | G30: Find Previous
B31: F5 | C31: Goto | D31: Find | E31: Restore Window Size
B32: F6 | C32: Next Pane | D32: Prev Pane | E32: Next Window | F32: Previous Window | G32: Prev Workbook
B33: F7 | C33: Spell Check | E33: Move Window
B34: F8 | C34: Extend Selection | D34: Add To Selection | E34: Resize Window | F34: Macro List
B35: F9 | C35: Calculate All | D35: Calculate Worksheet | E35: Minimize Workbook | I35: Calculate all | J35: Recheck dependents
B36: F10 | C36: Activate Menu | D36: Context Menu | E36: Maximize/Restore Window | H36: Smart Tag menu
B37: F11 | C37: New Chart | D37: New Worksheet | E37: New Macro Sheet | F37: VB Editor | H37: Script Editor
B38: F12 | C38: Save As | D38: Save | E38: Open | G38: Print
B40: ` ~ | C40: ` | D40: ~ | E40: Toggle Formula View | G40: General Format
B41: 1 ! | C41: 1900-01-01 | D41: ! | E41: Format Cells | G41: Number Format
B42: 2 @ | C42: 1900-01-02 | D42: @ | E42: Bold | G42: Time Format
B43: 3 # | C43: 1900-01-03 | D43: # | E43: Italics | G43: Date Format
B44: 4 $ | C44: 1900-01-04 | D44: $ | E44: Underline | G44: Currency Format
B45: 5 % | C45: 1900-01-05 | D45: % | E45: Strike thru | G45: Percent Format
B46: 6 ^ | C46: 1900-01-06 | D46: ^ | E46: Hide/Display Objects | G46: Exponent Format
B47: 7 & | C47: 1900-01-07 | D47: & | E47: Show/Hide Standard Toolbar | G47: Outside Border
B48: 8 * | C48: 1900-01-08 | D48: * | E48: Display/Hide Outline Symbols | G48: Select Region
B49: 9 ( | C49: 1900-01-09 | D49: ( | E49: Hide Rows | G49: Unhide Rows
B50: 0 ) | C50: 00:00:00 | D50: ) | E50: Hide Columns | G50: Unhide Columns
B51: - _ | C51: - | D51: _ | E51: Delete Cells | F51: control menu | G51: No Border
B52: = + | C52: = | D52: + | E52: Calculate All | F52: auto sum | G52: Insert Cells
B53: [ { | C53: [ | D53: { | E53: Show Precedents | G53: All Precedents
B54: ] } | C54: ] | D54: } | E54: Show Dependents | G54: All Dependents
B55: \ | | E55: Select Differences | G55: Select Unequal Cells
B56: ; : | C56: ; | D56: : | E56: Insert Date | F56: Select Visible Cells | G56: Insert Time
B57: ' " | C57: ' | D57: " | E57: Copy Formula From Above | F57: Style | G57: Copy Value Above
B58: , < | C58: , | D58: <
B59: . > | C59: . | D59: > | E59: Next corner of range
B60: / ? | C60: / | D60: ? | E60: Select Array | G60: Select Array
B62: A | C62: a | D62: A | E62: Select All | G62: Insert Formula Arguments
B63: B | C63: b | D63: B | E63: Bold
B64: C | C64: c | D64: C | E64: Copy
B65: D | C65: d | D65: D | E65: Fill Down
B66: E | C66: e | D66: E
B67: F | C67: f | D67: F | E67: Find | G67: Open Font Menu
B68: G | C68: g | D68: G | E68: Go To
B69: H | C69: h | D69: H | E69: Replace
B70: I | C70: i | D70: I | E70: Italics
B71: J | C71: j | D71: J
B72: K | C72: k | D72: K | E72: Insert/Edit Hyperlink
B73: L | C73: l | D73: L | E73: Create Table
B74: M | C74: m | D74: M
B75: N | C75: n | D75: N | E75: New Workbook
B76: O | C76: o | D76: O | E76: Open Workbook | G76: Select All Cells w/Comments
B77: P | C77: p | D77: P | E77: Print | G77: Open Font Menu
B78: Q | C78: q | D78: Q
B79: R | C79: r | D79: R | E79: Fill Right
B80: S | C80: s | D80: S | E80: Save
B81: T | C81: t | D81: T | E81: Create Table
B82: U | C82: u | D82: U | E82: Underline
B83: V | C83: v | D83: V | E83: Paste | I83: Paste Special
B84: W | C84: w | D84: W | E84: Close Window
B85: X | C85: x | D85: X | E85: Cut
B86: Y | C86: y | D86: Y | E86: Repeat
B87: Z | C87: z | D87: Z | E87: Undo
G88: Excel is either a registered trademark or trademark of
B89: Want to master Excel? Visit www.spreadsheetbootcamp.com to learn Excel entirely inside an Excel spreadsheet. | G89: Microsoft Corporation in the United States and/or other countries.

Sheet Record Times (hidden)
C1: DO NOT MOVE ANY OF THESE CELLS! That will bomb the macros!
B2: Formatting Exercise | P2: Exercise 2.1 | AD2: Exercise 2.2 | AR2: Exercise 2.3 | BF2: Navigation Exercise
D3: Completion Time | M3: Min | N3: Sec | O3: Seconds | P3: Sec w/Pen | BI3: Completion Time | BQ3: Min | BR3: Sec | BS3: Penalties | BT3: Seconds | BU3: Sec w/Pen
B4: Best | D4: Best Time | E4: =MIN(E9:E1048576) -> 00:00:54 | M4: =VLOOKUP(E4,E9:N1048576,9,FALSE) -> 0 | N4: =VLOOKUP(E4,E9:N1048576,10,FALSE) -> 54 | O4: =E4 -> 0.0006250000006 | R4: Best Time | S4: =MIN(S9:S1048576) -> 00:00:00 | AA4: =VLOOKUP(S4,S9:AB1048576,9,FALSE) ->  | AB4: =VLOOKUP(S4,S9:AB1048576,10,FALSE) ->  | AF4: Best Time | AG4: =MIN(AG9:AG1048576) -> 00:00:00 | AO4: =VLOOKUP(AG4,AG9:AP1048576,9,FALSE) ->  | AP4: =VLOOKUP(AG4,AG9:AP1048576,10,FALSE) ->  | AT4: Best Time | AU4: =MIN(AU9:AU1048576) -> 00:00:00 | BC4: =VLOOKUP(AU4,AU9:BD1048576,9,FALSE) ->  | BD4: =VLOOKUP(AU4,AU9:BD1048576,10,FALSE) ->  | BF4: Best | BI4: =MIN(BI9:BI1048576) -> 00:00:15 | BQ4: =VLOOKUP(BI4,BI9:BR1048576,9,FALSE) -> 0 | BR4: 10 | BS4: =VLOOKUP(BI4,BI9:BS1048576,11,FALSE) -> 0 | BT4: =BI4 -> 0.000173611108 | BU4: =TIME(HOUR(Nav_Best_Seconds),MINUTE(Nav_Best_Seconds),SECOND(Nav_Best_Seconds)+Nav_Best_PenaltyCount*3) -> 0.0001736111111
D5: # Attempts | E5: 13 | M5: Display | AA5: Display | AO5: Display | BC5: Display | BH5: # Attempts | BI5: 0 | BQ5: Display | BR5: =VLOOKUP(BI4,BI9:BR1048576,10,FALSE)
D6: # Completions | E6: =COUNT(E9:E1048576) -> 3 | BH6: # Completions | BI6: =COUNT(BI9:BI1048576) -> 11
B7: Latest | C7: 2016-04-30T16:45:05 | E7: =IF(D7="","",D7-C7) ->  | F7: =IF(D7="","",DAY(E7)) ->  | G7: =IF(D7="","",HOUR(E7)) ->  | H7: =IF(D7="","",MINUTE(E7)) ->  | I7: =IF(D7="","",SECOND(E7)) ->  | M7: =IF(D7="","",MINUTE(E7)+G7*60) ->  | N7: =IF(D7="","",SECOND(E7)) ->  | O7: =E7 ->  | BF7: Latest | BI7: =IF(BH7="","",BH7-BG7) ->  | BJ7: =IF(BH7="","",DAY(BI7)) ->  | BK7: =IF(BH7="","",HOUR(BI7)) ->  | BL7: =IF(BH7="","",MINUTE(BI7)) ->  | BM7: =IF(BH7="","",SECOND(BI7)) ->  | BQ7: =IF(BH7="","",MINUTE(BI7)+BK7*60) ->  | BR7: =IF(BH7="","",SECOND(BI7)) ->  | BS7: 4 | BT7: =BI7 ->  | BU7: =TIME(HOUR(BT7),MINUTE(BT7),SECOND(BT7)+BS7*3) -> 
C8: Beg Time Stamp | D8: End Time Stamp | E8: Completion Time | F8: Day | G8: Hour | H8: Min | I8: Sec | M8: Min | N8: Sec | Q8: Beg Time Stamp | R8: End Time Stamp | S8: Completion Time | Y8: Hour | Z8: Min | AA8: Min | AB8: Sec | AE8: Beg Time Stamp | AF8: End Time Stamp | AG8: Completion Time | AM8: Hour | AN8: Min | AO8: Min | AP8: Sec | AS8: Beg Time Stamp | AT8: End Time Stamp | AU8: Completion Time | BA8: Hour | BB8: Min | BC8: Min | BD8: Sec | BG8: Beg Time Stamp | BH8: End Time Stamp | BI8: Completion Time | BJ8: Day | BK8: Hour | BL8: Min | BM8: Sec | BQ8: Min | BR8: Sec | BS8: Penalties
B9: First | C9: 2016-04-11T19:29:18 | D9: 2016-04-11T19:30:12 | E9: 0.0006250000006 | F9: 0 | G9: 0 | H9: 0 | I9: 54 | M9: 0 | N9: 54 | O9: =E9 -> 0.0006250000006 | BF9: First | BG9: 2015-07-08T11:52:19 | BH9: 2015-07-08T11:52:34 | BI9: 0.0001736111153 | BJ9: 0 | BK9: 0 | BL9: 0 | BM9: 15 | BQ9: 0 | BR9: 15 | BT9: =BI9 -> 0.0001736111153 | BU9: =TIME(HOUR(BT9),MINUTE(BT9),SECOND(BT9)+BS9*3) -> 0.0001736111111
C10: 2016-04-11T19:29:18 | D10: 2016-04-11T19:30:42 | E10: 0.0009722222167 | F10: 0 | G10: 0 | H10: 1 | I10: 24 | M10: 1 | N10: 24 | BG10: 2015-07-16T10:59:05 | BH10: 2015-07-16T10:59:20 | BI10: 0.0001736111153 | BJ10: 0 | BK10: 0 | BL10: 0 | BM10: 15 | BQ10: 0 | BR10: 15
C11: 2016-04-15T11:23:42 | D11: 2016-04-15T11:25:04 | E11: 0.0009490740704 | F11: 0 | G11: 0 | H11: 1 | I11: 22 | M11: 1 | N11: 22 | BG11: 2015-07-16T10:59:05 | BH11: 2016-01-17T23:28:43 | BI11: 0.0001736111153 | BJ11: 0 | BK11: 0 | BL11: 0 | BM11: 15 | BQ11: 0 | BR11: 15
BG12: 2015-07-16T10:59:05 | BH12: 2016-01-17T23:28:46 | BI12: 0.0001736111153 | BJ12: 0 | BK12: 0 | BL12: 0 | BM12: 15 | BQ12: 0 | BR12: 15
BG13: 42201.4577 | BH13: 42386.9787 | BI13: 0.0001736111153 | BJ13: 0 | BK13: 0 | BL13: 0 | BM13: 15 | BQ13: 0 | BR13: 15
BG14: 42201.4577 | BH14: 42388.02677 | BI14: 185.5210069 | BJ14: 3 | BK14: 12 | BL14: 30 | BM14: 15 | BQ14: 750 | BR14: 15
BG15: 42388.40897 | BH15: 42388.40914 | BI15: 0.000173611108 | BJ15: 0 | BK15: 0 | BL15: 0 | BM15: 15 | BQ15: 0 | BR15: 15
BG16: 42388.41628 | BH16: 42388.41649 | BI16: 0.0002083333311 | BJ16: 0 | BK16: 0 | BL16: 0 | BM16: 18 | BQ16: 0 | BR16: 18
BG17: 42475.47391 | BH17: 42475.47417 | BI17: 0.0002546296309 | BJ17: 0 | BK17: 0 | BL17: 0 | BM17: 22 | BQ17: 0 | BR17: 22
BG18: 42475.47435 | BH18: 42475.47456 | BI18: 0.0002083333311 | BJ18: 0 | BK18: 0 | BL18: 0 | BM18: 18 | BQ18: 0 | BR18: 18
BG19: 42475.52571 | BH19: 42475.52591 | BI19: 0.0002083333311 | BJ19: 0 | BK19: 0 | BL19: 0 | BM19: 18 | BQ19: 0 | BR19: 18
